Body,Body Name,Date,TransNo,Amount � (Excl VAT),Supplier name,Supplier ID,Expense Area,Expense Type,Expense Code
http://opendatacommunities.org/id/london-borough-council/sutton,London Borough of Sutton,16/08/2020,6976230,"(5,000.00)",Community Action Sutton,99879,"Environment, Housing & Regeneration Directorate",Grants,F473
http://opendatacommunities.org/id/london-borough-council/sutton,London Borough of Sutton,24/07/2020,6975584,"5,212.40 ",777 Demolition & Haulage Co Ltd,25578,"Environment, Housing & Regeneration Directorate",Spoil Removal - DD,D855
http://opendatacommunities.org/id/london-borough-council/sutton,London Borough of Sutton,29/07/2020,6975310,"1,150.00 ",8on Holdings Ltd,99898,"Environment, Housing & Regeneration Directorate",Depositors,X460
http://opendatacommunities.org/id/london-borough-council/sutton,London Borough of Sutton,29/07/2020,6975310,"1,326.00 ",8on Holdings Ltd,99898,"Environment, Housing & Regeneration Directorate",Depositors,X460
http://opendatacommunities.org/id/london-borough-council/sutton,London Borough of Sutton,01/07/2020,40444178,"22,585.67 ",A Wilderness Way Ltd,35014,Peoples Services Directorate,Residential Care-Children,G330
http://opendatacommunities.org/id/london-borough-council/sutton,London Borough of Sutton,13/08/2020,1296882,537.70 ,REDACTED - PERSONAL DATA,34764,Peoples Services Directorate,Approved Lodgings,H323
http://opendatacommunities.org/id/london-borough-council/sutton,London Borough of Sutton,04/06/2019,6975214,732.00 ,Abbott Toxicology Plc,24389,Peoples Services Directorate,Children Assessments,G329
http://opendatacommunities.org/id/london-borough-council/sutton,London Borough of Sutton,17/08/2020,6976440,"1,137.00 ",Abbott Toxicology Plc,24389,Peoples Services Directorate,Children Assessments,G329
http://opendatacommunities.org/id/london-borough-council/sutton,London Borough of Sutton,31/05/2020,40449342,"2,400.00 ",Abiding Ltd,33363,Peoples Services Directorate,Residential Care-Children,G330
http://opendatacommunities.org/id/london-borough-council/sutton,London Borough of Sutton,05/08/2020,6975763,"1,885.86 ",Ability Housing Association,23287,Peoples Services Directorate,Rent - General,D650
http://opendatacommunities.org/id/london-borough-council/sutton,London Borough of Sutton,03/08/2020,1296310,"3,960.00 ",Absolute Care Services Ltd,10021,Peoples Services Directorate,Contract Cleaning,D806
http://opendatacommunities.org/id/london-borough-council/sutton,London Borough of Sutton,03/08/2020,1296311,"5,000.00 ",Absolute Care Services Ltd,10021,Peoples Services Directorate,Contract Cleaning,D806
http://opendatacommunities.org/id/london-borough-council/sutton,London Borough of Sutton,03/08/2020,1296312,"4,080.00 ",Absolute Care Services Ltd,10021,Peoples Services Directorate,Contract Cleaning,D806
http://opendatacommunities.org/id/london-borough-council/sutton,London Borough of Sutton,03/08/2020,1296313,"5,000.00 ",Absolute Care Services Ltd,10021,Peoples Services Directorate,Contract Cleaning,D806
http://opendatacommunities.org/id/london-borough-council/sutton,London Borough of Sutton,11/08/2020,1296583,"2,310.00 ",Absolute Care Services Ltd,10021,Peoples Services Directorate,Contract Cleaning,D806
http://opendatacommunities.org/id/london-borough-council/sutton,London Borough of Sutton,11/08/2020,1296584,"2,800.00 ",Absolute Care Services Ltd,10021,Peoples Services Directorate,Contract Cleaning,D806
http://opendatacommunities.org/id/london-borough-council/sutton,London Borough of Sutton,14/08/2020,1296893,"7,210.00 ",Absolute Care Services Ltd,10021,Peoples Services Directorate,Contract Cleaning,D806
http://opendatacommunities.org/id/london-borough-council/sutton,London Borough of Sutton,27/07/2020,6975281,"5,589.89 ",Absolute Care Services Ltd,10021,Peoples Services Directorate,Homecare Core Services,G336
http://opendatacommunities.org/id/london-borough-council/sutton,London Borough of Sutton,27/07/2020,6975282,"6,357.91 ",Absolute Care Services Ltd,10021,Peoples Services Directorate,Homecare Core Services,G336
http://opendatacommunities.org/id/london-borough-council/sutton,London Borough of Sutton,27/07/2020,6975293,"5,348.23 ",Absolute Care Services Ltd,10021,Peoples Services Directorate,Homecare Core Services,G336
http://opendatacommunities.org/id/london-borough-council/sutton,London Borough of Sutton,03/08/2020,6975607,"6,357.91 ",Absolute Care Services Ltd,10021,Peoples Services Directorate,Homecare Core Services,G336
http://opendatacommunities.org/id/london-borough-council/sutton,London Borough of Sutton,03/08/2020,6975608,"5,348.23 ",Absolute Care Services Ltd,10021,Peoples Services Directorate,Homecare Core Services,G336
http://opendatacommunities.org/id/london-borough-council/sutton,London Borough of Sutton,03/08/2020,6975609,"5,589.89 ",Absolute Care Services Ltd,10021,Peoples Services Directorate,Homecare Core Services,G336
http://opendatacommunities.org/id/london-borough-council/sutton,London Borough of Sutton,10/08/2020,6976107,"6,357.91 ",Absolute Care Services Ltd,10021,Peoples Services Directorate,Homecare Core Services,G336
http://opendatacommunities.org/id/london-borough-council/sutton,London Borough of Sutton,10/08/2020,6976108,"5,348.23 ",Absolute Care Services Ltd,10021,Peoples Services Directorate,Homecare Core Services,G336
http://opendatacommunities.org/id/london-borough-council/sutton,London Borough of Sutton,10/08/2020,6976109,"5,589.89 ",Absolute Care Services Ltd,10021,Peoples Services Directorate,Homecare Core Services,G336
http://opendatacommunities.org/id/london-borough-council/sutton,London Borough of Sutton,17/08/2020,6976252,"5,348.23 ",Absolute Care Services Ltd,10021,Peoples Services Directorate,Homecare Core Services,G336
http://opendatacommunities.org/id/london-borough-council/sutton,London Borough of Sutton,17/08/2020,6976255,"5,589.89 ",Absolute Care Services Ltd,10021,Peoples Services Directorate,Homecare Core Services,G336
http://opendatacommunities.org/id/london-borough-council/sutton,London Borough of Sutton,17/08/2020,6976257,"6,357.91 ",Absolute Care Services Ltd,10021,Peoples Services Directorate,Homecare Core Services,G336
http://opendatacommunities.org/id/london-borough-council/sutton,London Borough of Sutton,02/08/2020,40442908,428.54 ,Absolute Care Services Ltd,10021,Peoples Services Directorate,Home Care,G334
http://opendatacommunities.org/id/london-borough-council/sutton,London Borough of Sutton,02/08/2020,40443038,672.00 ,Absolute Care Services Ltd,10021,Peoples Services Directorate,Home Care,G334
http://opendatacommunities.org/id/london-borough-council/sutton,London Borough of Sutton,02/08/2020,40443044,734.65 ,Absolute Care Services Ltd,10021,Peoples Services Directorate,Home Care,G334
http://opendatacommunities.org/id/london-borough-council/sutton,London Borough of Sutton,02/08/2020,40443052,600.00 ,Absolute Care Services Ltd,10021,Peoples Services Directorate,Home Care,G334
http://opendatacommunities.org/id/london-borough-council/sutton,London Borough of Sutton,02/08/2020,40443246,531.23 ,Absolute Care Services Ltd,10021,Peoples Services Directorate,Home Care,G334
http://opendatacommunities.org/id/london-borough-council/sutton,London Borough of Sutton,09/08/2020,40444884,428.54 ,Absolute Care Services Ltd,10021,Peoples Services Directorate,Home Care,G334
http://opendatacommunities.org/id/london-borough-council/sutton,London Borough of Sutton,09/08/2020,40445026,672.00 ,Absolute Care Services Ltd,10021,Peoples Services Directorate,Home Care,G334
http://opendatacommunities.org/id/london-borough-council/sutton,London Borough of Sutton,09/08/2020,40445041,734.65 ,Absolute Care Services Ltd,10021,Peoples Services Directorate,Home Care,G334
http://opendatacommunities.org/id/london-borough-council/sutton,London Borough of Sutton,09/08/2020,40445049,600.00 ,Absolute Care Services Ltd,10021,Peoples Services Directorate,Home Care,G334
http://opendatacommunities.org/id/london-borough-council/sutton,London Borough of Sutton,09/08/2020,40445271,531.23 ,Absolute Care Services Ltd,10021,Peoples Services Directorate,Home Care,G334
http://opendatacommunities.org/id/london-borough-council/sutton,London Borough of Sutton,16/08/2020,40446376,734.65 ,Absolute Care Services Ltd,10021,Peoples Services Directorate,Home Care,G334
http://opendatacommunities.org/id/london-borough-council/sutton,London Borough of Sutton,16/08/2020,40446384,600.00 ,Absolute Care Services Ltd,10021,Peoples Services Directorate,Home Care,G334
http://opendatacommunities.org/id/london-borough-council/sutton,London Borough of Sutton,16/08/2020,40446402,428.54 ,Absolute Care Services Ltd,10021,Peoples Services Directorate,Home Care,G334
http://opendatacommunities.org/id/london-borough-council/sutton,London Borough of Sutton,16/08/2020,40446459,672.00 ,Absolute Care Services Ltd,10021,Peoples Services Directorate,Home Care,G334
http://opendatacommunities.org/id/london-borough-council/sutton,London Borough of Sutton,16/08/2020,40446567,531.23 ,Absolute Care Services Ltd,10021,Peoples Services Directorate,Home Care,G334
http://opendatacommunities.org/id/london-borough-council/sutton,London Borough of Sutton,23/08/2020,40450459,672.00 ,Absolute Care Services Ltd,10021,Peoples Services Directorate,Home Care,G334
http://opendatacommunities.org/id/london-borough-council/sutton,London Borough of Sutton,23/08/2020,40450482,734.65 ,Absolute Care Services Ltd,10021,Peoples Services Directorate,Home Care,G334
http://opendatacommunities.org/id/london-borough-council/sutton,London Borough of Sutton,23/08/2020,40450490,600.00 ,Absolute Care Services Ltd,10021,Peoples Services Directorate,Home Care,G334
http://opendatacommunities.org/id/london-borough-council/sutton,London Borough of Sutton,23/08/2020,40450548,428.54 ,Absolute Care Services Ltd,10021,Peoples Services Directorate,Home Care,G334
http://opendatacommunities.org/id/london-borough-council/sutton,London Borough of Sutton,23/08/2020,40450711,531.23 ,Absolute Care Services Ltd,10021,Peoples Services Directorate,Home Care,G334
http://opendatacommunities.org/id/london-borough-council/sutton,London Borough of Sutton,20/08/2020,1297222,"23,338.00 ",Achieving For Children Limited,28009,Peoples Services Directorate,Top-up Funding,G064
http://opendatacommunities.org/id/london-borough-council/sutton,London Borough of Sutton,20/08/2020,1297222,"20,170.00 ",Achieving For Children Limited,28009,Peoples Services Directorate,Top-up Funding,G064
http://opendatacommunities.org/id/london-borough-council/sutton,London Borough of Sutton,20/08/2020,1297223,"14,830.00 ",Achieving For Children Limited,28009,Peoples Services Directorate,Top-up Funding,G064
http://opendatacommunities.org/id/london-borough-council/sutton,London Borough of Sutton,11/08/2020,6976056,"10,000.00 ",Acme Joinery Ltd,99879,"Environment, Housing & Regeneration Directorate",Grants,F473
http://opendatacommunities.org/id/london-borough-council/sutton,London Borough of Sutton,07/08/2020,40444584,"2,903.20 ",Acorn Lodge,15804,Peoples Services Directorate,Residential Care - Ext Provider,G310
http://opendatacommunities.org/id/london-borough-council/sutton,London Borough of Sutton,07/08/2020,40444274,"3,115.36 ",Acorn Residential Home,15828,Peoples Services Directorate,Residential Care - Ext Provider,G310
http://opendatacommunities.org/id/london-borough-council/sutton,London Borough of Sutton,16/08/2019,6976433,"2,148.00 ",Action For Children Services Ltd,13159,Peoples Services Directorate,Respite Care,G333
http://opendatacommunities.org/id/london-borough-council/sutton,London Borough of Sutton,31/07/2020,1296253,"4,268.88 ",Active Prospects,13617,Peoples Services Directorate,Contract Cleaning,D806
http://opendatacommunities.org/id/london-borough-council/sutton,London Borough of Sutton,06/08/2020,1296385,883.28 ,Active Prospects,13617,Peoples Services Directorate,Contract Cleaning,D806
http://opendatacommunities.org/id/london-borough-council/sutton,London Borough of Sutton,22/07/2020,6975024,"56,651.97 ",ADAM HTT LTD,34364,Peoples Services Directorate,Hired Peoples Transport (Children),E072
http://opendatacommunities.org/id/london-borough-council/sutton,London Borough of Sutton,22/07/2020,6975024,"45,559.29 ",ADAM HTT LTD,34364,Peoples Services Directorate,Hired Peoples Transport (Children),E072
http://opendatacommunities.org/id/london-borough-council/sutton,London Borough of Sutton,29/07/2020,6975295,"24,072.00 ",ADAM HTT LTD,34364,Peoples Services Directorate,Hired Peoples Transport (Children),E072
http://opendatacommunities.org/id/london-borough-council/sutton,London Borough of Sutton,29/07/2020,6975295,"4,166.20 ",ADAM HTT LTD,34364,Peoples Services Directorate,Hired Peoples Transport (Children),E072
http://opendatacommunities.org/id/london-borough-council/sutton,London Borough of Sutton,05/08/2020,6975737,"17,699.36 ",ADAM HTT LTD,34364,Peoples Services Directorate,Hired Peoples Transport (Children),E072
http://opendatacommunities.org/id/london-borough-council/sutton,London Borough of Sutton,05/08/2020,6975737,"5,208.52 ",ADAM HTT LTD,34364,Peoples Services Directorate,Hired Peoples Transport (Children),E072
http://opendatacommunities.org/id/london-borough-council/sutton,London Borough of Sutton,12/08/2020,6976101,"1,632.25 ",ADAM HTT LTD,34364,Peoples Services Directorate,Hired Peoples Transport (Children),E072
http://opendatacommunities.org/id/london-borough-council/sutton,London Borough of Sutton,19/08/2020,6976416,"2,027.00 ",ADAM HTT LTD,34364,Peoples Services Directorate,Hired Peoples Transport (Children),E072
http://opendatacommunities.org/id/london-borough-council/sutton,London Borough of Sutton,26/08/2020,6976784,"1,860.00 ",ADAM HTT LTD,34364,Peoples Services Directorate,Hired Peoples Transport (Children),E072
http://opendatacommunities.org/id/london-borough-council/sutton,London Borough of Sutton,11/08/2020,6976050,"10,000.00 ",Adams Environmental ltd,99879,"Environment, Housing & Regeneration Directorate",Grants,F473
http://opendatacommunities.org/id/london-borough-council/sutton,London Borough of Sutton,05/08/2020,1296308,"220,964.66 ",Adecco Uk Ltd,10059,Resources Directorate,Suspense/Holding Accounts,X550
http://opendatacommunities.org/id/london-borough-council/sutton,London Borough of Sutton,11/08/2020,1296623,"205,279.64 ",Adecco Uk Ltd,10059,Resources Directorate,Suspense/Holding Accounts,X550
http://opendatacommunities.org/id/london-borough-council/sutton,London Borough of Sutton,17/08/2020,1296825,"194,250.07 ",Adecco Uk Ltd,10059,Resources Directorate,Suspense/Holding Accounts,X550
http://opendatacommunities.org/id/london-borough-council/sutton,London Borough of Sutton,24/08/2020,1297094,"199,352.36 ",Adecco Uk Ltd,10059,Resources Directorate,Suspense/Holding Accounts,X550
http://opendatacommunities.org/id/london-borough-council/sutton,London Borough of Sutton,05/08/2020,6975748,"6,469.74 ",Advanced Demand Side Management Ltd,26989,Resources Directorate,Water - Metered,D690
http://opendatacommunities.org/id/london-borough-council/sutton,London Borough of Sutton,31/07/2020,6975854,"2,291.69 ",Advanced Demand Side Management Ltd,26989,Resources Directorate,Water - Metered,D690
http://opendatacommunities.org/id/london-borough-council/sutton,London Borough of Sutton,29/07/2020,40444119,"3,361.64 ",Affinity Fostering Services Ltd,26535,Peoples Services Directorate,Foster Parents,G326
http://opendatacommunities.org/id/london-borough-council/sutton,London Borough of Sutton,29/07/2020,40444130,"3,981.33 ",Affinity Fostering Services Ltd,26535,Peoples Services Directorate,Foster Parents,G326
http://opendatacommunities.org/id/london-borough-council/sutton,London Borough of Sutton,29/07/2020,40444230,"3,538.34 ",Affinity Fostering Services Ltd,26535,Peoples Services Directorate,Foster Parents,G326
http://opendatacommunities.org/id/london-borough-council/sutton,London Borough of Sutton,29/07/2020,40444231,"3,361.64 ",Affinity Fostering Services Ltd,26535,Peoples Services Directorate,Foster Parents,G326
http://opendatacommunities.org/id/london-borough-council/sutton,London Borough of Sutton,29/07/2020,40444232,"3,538.34 ",Affinity Fostering Services Ltd,26535,Peoples Services Directorate,Foster Parents,G326
http://opendatacommunities.org/id/london-borough-council/sutton,London Borough of Sutton,29/07/2020,40444238,557.14 ,Affinity Fostering Services Ltd,26535,Peoples Services Directorate,Foster Parents,G326
http://opendatacommunities.org/id/london-borough-council/sutton,London Borough of Sutton,07/08/2020,40444280,"7,511.00 ",Aims Care Partnership (Leighton House Ltd),12628,Peoples Services Directorate,Residential Care - Ext Provider,G310
http://opendatacommunities.org/id/london-borough-council/sutton,London Borough of Sutton,07/08/2020,40444432,"8,400.16 ",Aitch Care Homes,20446,Peoples Services Directorate,Residential Care - Ext Provider,G310
http://opendatacommunities.org/id/london-borough-council/sutton,London Borough of Sutton,07/08/2020,40444635,"5,278.00 ",Aitch Care Homes,20446,Peoples Services Directorate,Residential Care - Ext Provider,G310
http://opendatacommunities.org/id/london-borough-council/sutton,London Borough of Sutton,06/08/2020,6975804,"1,240.00 ",AJ Oakes & Partners,20142,"Environment, Housing & Regeneration Directorate",Emergency Repairs,D540
http://opendatacommunities.org/id/london-borough-council/sutton,London Borough of Sutton,13/08/2020,1296846,535.00 ,REDACTED - PERSONAL DATA,34860,Peoples Services Directorate,Approved Lodgings,H323
http://opendatacommunities.org/id/london-borough-council/sutton,London Borough of Sutton,31/07/2020,40444216,"1,368.34 ",All4U Fostering Ltd,30193,Peoples Services Directorate,Foster Parents,G326
http://opendatacommunities.org/id/london-borough-council/sutton,London Borough of Sutton,28/07/2020,6975244,"1,850.00 ",Allen Lane Ltd,18334,Resources Directorate,Agency Staff - Other,A301
http://opendatacommunities.org/id/london-borough-council/sutton,London Borough of Sutton,28/07/2020,6975247,"1,868.75 ",Allen Lane Ltd,18334,Resources Directorate,Agency Staff - Other,A301
http://opendatacommunities.org/id/london-borough-council/sutton,London Borough of Sutton,04/08/2020,6975679,"1,850.00 ",Allen Lane Ltd,18334,Resources Directorate,Agency Staff - Other,A301
http://opendatacommunities.org/id/london-borough-council/sutton,London Borough of Sutton,04/08/2020,6975680,"3,450.00 ",Allen Lane Ltd,18334,Resources Directorate,Agency Staff - Other,A301
http://opendatacommunities.org/id/london-borough-council/sutton,London Borough of Sutton,04/08/2020,6975681,"3,450.00 ",Allen Lane Ltd,18334,Resources Directorate,Agency Staff - Other,A301
http://opendatacommunities.org/id/london-borough-council/sutton,London Borough of Sutton,04/08/2020,6975682,"2,748.50 ",Allen Lane Ltd,18334,Resources Directorate,Agency Staff - Other,A301
http://opendatacommunities.org/id/london-borough-council/sutton,London Borough of Sutton,04/08/2020,6975683,"1,868.75 ",Allen Lane Ltd,18334,Resources Directorate,Agency Staff - Other,A301
http://opendatacommunities.org/id/london-borough-council/sutton,London Borough of Sutton,04/08/2020,6975684,"1,868.75 ",Allen Lane Ltd,18334,Resources Directorate,Agency Staff - Other,A301
http://opendatacommunities.org/id/london-borough-council/sutton,London Borough of Sutton,11/08/2020,6975988,"1,868.75 ",Allen Lane Ltd,18334,Resources Directorate,Agency Staff - Other,A301
http://opendatacommunities.org/id/london-borough-council/sutton,London Borough of Sutton,11/08/2020,6975989,"1,850.00 ",Allen Lane Ltd,18334,Resources Directorate,Agency Staff - Other,A301
http://opendatacommunities.org/id/london-borough-council/sutton,London Borough of Sutton,11/08/2020,6975990,"1,868.75 ",Allen Lane Ltd,18334,Resources Directorate,Agency Staff - Other,A301
http://opendatacommunities.org/id/london-borough-council/sutton,London Borough of Sutton,12/08/2020,6976077,"3,450.00 ",Allen Lane Ltd,18334,Resources Directorate,Agency Staff - Other,A301
http://opendatacommunities.org/id/london-borough-council/sutton,London Borough of Sutton,12/08/2020,6976078,"1,649.10 ",Allen Lane Ltd,18334,Resources Directorate,Agency Staff - Other,A301
http://opendatacommunities.org/id/london-borough-council/sutton,London Borough of Sutton,30/06/2020,6976210,"4,947.30 ",Allen Lane Ltd,18334,Resources Directorate,Agency Staff - Other,A301
http://opendatacommunities.org/id/london-borough-council/sutton,London Borough of Sutton,07/07/2020,6976211,"2,748.50 ",Allen Lane Ltd,18334,Resources Directorate,Agency Staff - Other,A301
http://opendatacommunities.org/id/london-borough-council/sutton,London Borough of Sutton,23/06/2020,6976295,"3,737.50 ",Allen Lane Ltd,18334,Resources Directorate,Agency Staff - Other,A301
http://opendatacommunities.org/id/london-borough-council/sutton,London Borough of Sutton,18/08/2020,6976354,"1,480.00 ",Allen Lane Ltd,18334,Resources Directorate,Agency Staff - Other,A301
http://opendatacommunities.org/id/london-borough-council/sutton,London Borough of Sutton,18/08/2020,6976355,"3,450.00 ",Allen Lane Ltd,18334,Resources Directorate,Agency Staff - Other,A301
http://opendatacommunities.org/id/london-borough-council/sutton,London Borough of Sutton,18/08/2020,6976356,"1,649.10 ",Allen Lane Ltd,18334,Resources Directorate,Agency Staff - Other,A301
http://opendatacommunities.org/id/london-borough-council/sutton,London Borough of Sutton,18/08/2020,6976358,"1,868.75 ",Allen Lane Ltd,18334,Resources Directorate,Agency Staff - Other,A301
http://opendatacommunities.org/id/london-borough-council/sutton,London Borough of Sutton,18/08/2020,6976359,"1,868.75 ",Allen Lane Ltd,18334,Resources Directorate,Agency Staff - Other,A301
http://opendatacommunities.org/id/london-borough-council/sutton,London Borough of Sutton,21/07/2020,6976508,"1,649.10 ",Allen Lane Ltd,18334,Resources Directorate,Agency Staff - Other,A301
http://opendatacommunities.org/id/london-borough-council/sutton,London Borough of Sutton,23/06/2020,6976521,"1,868.75 ",Allen Lane Ltd,18334,Resources Directorate,Agency Staff - Other,A301
http://opendatacommunities.org/id/london-borough-council/sutton,London Borough of Sutton,14/04/2020,6976522,"2,760.00 ",Allen Lane Ltd,18334,Resources Directorate,Agency Staff - Other,A301
http://opendatacommunities.org/id/london-borough-council/sutton,London Borough of Sutton,25/08/2020,6976728,"1,868.75 ",Allen Lane Ltd,18334,Resources Directorate,Agency Staff - Other,A301
http://opendatacommunities.org/id/london-borough-council/sutton,London Borough of Sutton,07/08/2020,40444468,"3,625.00 ",Alliance Care (Dale Homes) Ltd T/A Uplands Care Home,26835,Peoples Services Directorate,Nursing Care - Ext Provider,G311
http://opendatacommunities.org/id/london-borough-council/sutton,London Borough of Sutton,07/08/2020,40444629,"4,454.16 ",Allied Care (Mhs) Ltd,10145,Peoples Services Directorate,Residential Care - Ext Provider,G310
http://opendatacommunities.org/id/london-borough-council/sutton,London Borough of Sutton,01/08/2020,6975527,882.35 ,Allstar Business Solutions,24482,"Environment, Housing & Regeneration Directorate",Fuel Etc,E030
http://opendatacommunities.org/id/london-borough-council/sutton,London Borough of Sutton,31/07/2020,1296205,"2,668.05 ",Allswell Care Services Ltd,20761,Peoples Services Directorate,Contract Cleaning,D806
http://opendatacommunities.org/id/london-borough-council/sutton,London Borough of Sutton,06/08/2020,1296337,522.05 ,Allswell Care Services Ltd,20761,Peoples Services Directorate,Contract Cleaning,D806
http://opendatacommunities.org/id/london-borough-council/sutton,London Borough of Sutton,07/08/2020,40444281,"6,370.00 ",Allswell Care Services Ltd,20761,Peoples Services Directorate,Residential Care - Ext Provider,G310
http://opendatacommunities.org/id/london-borough-council/sutton,London Borough of Sutton,07/08/2020,40444324,"3,563.52 ",Allswell Care Services Ltd,20761,Peoples Services Directorate,Residential Care - Ext Provider,G310
http://opendatacommunities.org/id/london-borough-council/sutton,London Borough of Sutton,07/08/2020,40444630,"4,505.60 ",Allswell Care Services Ltd,20761,Peoples Services Directorate,Residential Care - Ext Provider,G310
http://opendatacommunities.org/id/london-borough-council/sutton,London Borough of Sutton,02/08/2020,40443299,480.87 ,Alpenbest Limited,27945,Peoples Services Directorate,Home Care,G334
http://opendatacommunities.org/id/london-borough-council/sutton,London Borough of Sutton,02/08/2020,40443299,856.53 ,Alpenbest Limited,27945,Peoples Services Directorate,Home Care,G334
http://opendatacommunities.org/id/london-borough-council/sutton,London Borough of Sutton,09/08/2020,40445348,480.87 ,Alpenbest Limited,27945,Peoples Services Directorate,Home Care,G334
http://opendatacommunities.org/id/london-borough-council/sutton,London Borough of Sutton,09/08/2020,40445348,856.53 ,Alpenbest Limited,27945,Peoples Services Directorate,Home Care,G334
http://opendatacommunities.org/id/london-borough-council/sutton,London Borough of Sutton,16/08/2020,40446767,480.87 ,Alpenbest Limited,27945,Peoples Services Directorate,Home Care,G334
http://opendatacommunities.org/id/london-borough-council/sutton,London Borough of Sutton,16/08/2020,40446767,856.53 ,Alpenbest Limited,27945,Peoples Services Directorate,Home Care,G334
http://opendatacommunities.org/id/london-borough-council/sutton,London Borough of Sutton,23/08/2020,40450132,480.87 ,Alpenbest Limited,27945,Peoples Services Directorate,Home Care,G334
http://opendatacommunities.org/id/london-borough-council/sutton,London Borough of Sutton,23/08/2020,40450132,856.53 ,Alpenbest Limited,27945,Peoples Services Directorate,Home Care,G334
http://opendatacommunities.org/id/london-borough-council/sutton,London Borough of Sutton,24/08/2020,6976633,"22,754.40 ",Ambient Support Limited,21702,Peoples Services Directorate,Provider Contract Payments,F470
http://opendatacommunities.org/id/london-borough-council/sutton,London Borough of Sutton,02/08/2020,40442795,697.80 ,Ambient Support Limited,21702,Peoples Services Directorate,Home Care,G334
http://opendatacommunities.org/id/london-borough-council/sutton,London Borough of Sutton,02/08/2020,40442824,542.75 ,Ambient Support Limited,21702,Peoples Services Directorate,Home Care,G334
http://opendatacommunities.org/id/london-borough-council/sutton,London Borough of Sutton,19/01/2020,40443679,542.75 ,Ambient Support Limited,21702,Peoples Services Directorate,Home Care,G334
http://opendatacommunities.org/id/london-borough-council/sutton,London Borough of Sutton,16/02/2020,40443680,542.75 ,Ambient Support Limited,21702,Peoples Services Directorate,Home Care,G334
http://opendatacommunities.org/id/london-borough-council/sutton,London Borough of Sutton,08/03/2020,40443683,542.75 ,Ambient Support Limited,21702,Peoples Services Directorate,Home Care,G334
http://opendatacommunities.org/id/london-borough-council/sutton,London Borough of Sutton,19/01/2020,40443686,580.25 ,Ambient Support Limited,21702,Peoples Services Directorate,Home Care,G334
http://opendatacommunities.org/id/london-borough-council/sutton,London Borough of Sutton,16/02/2020,40443687,558.22 ,Ambient Support Limited,21702,Peoples Services Directorate,Home Care,G334
http://opendatacommunities.org/id/london-borough-council/sutton,London Borough of Sutton,23/02/2020,40443688,484.77 ,Ambient Support Limited,21702,Peoples Services Directorate,Home Care,G334
http://opendatacommunities.org/id/london-borough-council/sutton,London Borough of Sutton,01/03/2020,40443689,567.18 ,Ambient Support Limited,21702,Peoples Services Directorate,Home Care,G334
http://opendatacommunities.org/id/london-borough-council/sutton,London Borough of Sutton,08/03/2020,40443690,567.18 ,Ambient Support Limited,21702,Peoples Services Directorate,Home Care,G334
http://opendatacommunities.org/id/london-borough-council/sutton,London Borough of Sutton,15/03/2020,40443691,484.77 ,Ambient Support Limited,21702,Peoples Services Directorate,Home Care,G334
http://opendatacommunities.org/id/london-borough-council/sutton,London Borough of Sutton,22/03/2020,40443692,567.18 ,Ambient Support Limited,21702,Peoples Services Directorate,Home Care,G334
http://opendatacommunities.org/id/london-borough-council/sutton,London Borough of Sutton,09/08/2020,40444745,697.80 ,Ambient Support Limited,21702,Peoples Services Directorate,Home Care,G334
http://opendatacommunities.org/id/london-borough-council/sutton,London Borough of Sutton,09/08/2020,40444805,542.75 ,Ambient Support Limited,21702,Peoples Services Directorate,Home Care,G334
http://opendatacommunities.org/id/london-borough-council/sutton,London Borough of Sutton,16/08/2020,40446164,697.80 ,Ambient Support Limited,21702,Peoples Services Directorate,Home Care,G334
http://opendatacommunities.org/id/london-borough-council/sutton,London Borough of Sutton,16/08/2020,40446242,542.75 ,Ambient Support Limited,21702,Peoples Services Directorate,Home Care,G334
http://opendatacommunities.org/id/london-borough-council/sutton,London Borough of Sutton,27/07/2020,40449907,836.00 ,Ambient Support Limited,21702,Peoples Services Directorate,Supported Living - Ext Provider,G306
http://opendatacommunities.org/id/london-borough-council/sutton,London Borough of Sutton,23/08/2020,40450282,542.75 ,Ambient Support Limited,21702,Peoples Services Directorate,Home Care,G334
http://opendatacommunities.org/id/london-borough-council/sutton,London Borough of Sutton,23/08/2020,40450396,697.80 ,Ambient Support Limited,21702,Peoples Services Directorate,Home Care,G334
http://opendatacommunities.org/id/london-borough-council/sutton,London Borough of Sutton,07/08/2020,40444560,"3,340.00 ",ANA Treatment Centres Ltd,10196,Peoples Services Directorate,Interim Placements - Ext Provider,G317
http://opendatacommunities.org/id/london-borough-council/sutton,London Borough of Sutton,01/07/2020,40444146,"3,361.33 ",Anchor Foster Care Services Ltd,10179,Peoples Services Directorate,Foster Parents,G326
http://opendatacommunities.org/id/london-borough-council/sutton,London Borough of Sutton,01/07/2020,40444166,"3,808.66 ",Anchor Foster Care Services Ltd,10179,Peoples Services Directorate,Foster Parents,G326
http://opendatacommunities.org/id/london-borough-council/sutton,London Borough of Sutton,07/08/2020,40444434,"2,662.40 ",Anchor Trust,17878,Peoples Services Directorate,Residential Care - Ext Provider,G310
http://opendatacommunities.org/id/london-borough-council/sutton,London Borough of Sutton,18/08/2020,40449320,"10,681.39 ",Anderida Adolescent Care Ltd,26195,Peoples Services Directorate,Residential Care-Children,G330
http://opendatacommunities.org/id/london-borough-council/sutton,London Borough of Sutton,18/08/2020,40449330,"28,041.58 ",Anderida Adolescent Care Ltd,26195,Peoples Services Directorate,Residential Care-Children,G330
http://opendatacommunities.org/id/london-borough-council/sutton,London Borough of Sutton,31/07/2020,6975462,950.00 ,Andy Stewart,26808,"Environment, Housing & Regeneration Directorate",Temporary Protection - Homeless Persons,H300
http://opendatacommunities.org/id/london-borough-council/sutton,London Borough of Sutton,31/07/2020,6975463,950.00 ,Andy Stewart,26808,"Environment, Housing & Regeneration Directorate",Temporary Protection - Homeless Persons,H300
http://opendatacommunities.org/id/london-borough-council/sutton,London Borough of Sutton,27/08/2020,6976887,950.00 ,Andy Stewart,26808,"Environment, Housing & Regeneration Directorate",Temporary Protection - Homeless Persons,H300
http://opendatacommunities.org/id/london-borough-council/sutton,London Borough of Sutton,07/08/2020,6976059,"1,960.00 ",Aon UK Limited,26323,Resources Directorate,Insurance Premiums (Other),F330
http://opendatacommunities.org/id/london-borough-council/sutton,London Borough of Sutton,31/07/2020,6975667,"7,848.45 ",Apetito Ltd,10206,Chief Executive's Directorate,Provisions - General,F150
http://opendatacommunities.org/id/london-borough-council/sutton,London Borough of Sutton,30/06/2020,6976806,"1,080.00 ",APL Properties,26226,"Environment, Housing & Regeneration Directorate",Bed and Breakfast Accommodation,G400
http://opendatacommunities.org/id/london-borough-council/sutton,London Borough of Sutton,15/07/2020,40444168,"3,100.00 ",Apple Fostering Ltd,35397,Peoples Services Directorate,Foster Parents,G326
http://opendatacommunities.org/id/london-borough-council/sutton,London Borough of Sutton,30/07/2020,6975364,"8,880.00 ",Arbtech Consulting Ltd,35513,"Environment, Housing & Regeneration Directorate",External Fees  - Other,Y130
http://opendatacommunities.org/id/london-borough-council/sutton,London Borough of Sutton,30/07/2020,6975365,"1,399.00 ",Arbtech Consulting Ltd,35513,"Environment, Housing & Regeneration Directorate",External Fees  - Other,Y130
http://opendatacommunities.org/id/london-borough-council/sutton,London Borough of Sutton,31/07/2020,6975643,"11,353.00 ",Architype Ltd,25419,Peoples Services Directorate,External Fees  - Architects,Y100
http://opendatacommunities.org/id/london-borough-council/sutton,London Borough of Sutton,18/08/2020,6976463,"11,951.48 ",Architype Ltd,25419,Peoples Services Directorate,External Fees  - Architects,Y100
http://opendatacommunities.org/id/london-borough-council/sutton,London Borough of Sutton,21/07/2020,40444186,"16,164.29 ",Area Camden Ltd,29908,Peoples Services Directorate,Residential Care-Children,G330
http://opendatacommunities.org/id/london-borough-council/sutton,London Borough of Sutton,24/04/2020,6976537,420.00 ,Arnold & Self,16110,"Environment, Housing & Regeneration Directorate",Tenants Removal Expenses,F326
http://opendatacommunities.org/id/london-borough-council/sutton,London Borough of Sutton,05/08/2020,6976095,"1,282.14 ",Arthur Rai Medical Services Ltd,35084,Chief Executive's Directorate,Agency Staff - Other,A301
http://opendatacommunities.org/id/london-borough-council/sutton,London Borough of Sutton,29/07/2020,6976096,"1,257.00 ",Arthur Rai Medical Services Ltd,35084,Chief Executive's Directorate,Agency Staff - Other,A301
http://opendatacommunities.org/id/london-borough-council/sutton,London Borough of Sutton,12/08/2020,6976351,"1,273.76 ",Arthur Rai Medical Services Ltd,35084,Chief Executive's Directorate,Agency Staff - Other,A301
http://opendatacommunities.org/id/london-borough-council/sutton,London Borough of Sutton,19/08/2020,6976695,"1,257.00 ",Arthur Rai Medical Services Ltd,35084,Chief Executive's Directorate,Agency Staff - Other,A301
http://opendatacommunities.org/id/london-borough-council/sutton,London Borough of Sutton,26/08/2020,6976895,"1,257.00 ",Arthur Rai Medical Services Ltd,35084,Chief Executive's Directorate,Agency Staff - Other,A301
http://opendatacommunities.org/id/london-borough-council/sutton,London Borough of Sutton,09/08/2020,6976045,"4,500.00 ",Arts Network Sutton,25704,Chief Executive's Directorate,Arts Programme,F306
http://opendatacommunities.org/id/london-borough-council/sutton,London Borough of Sutton,01/09/2020,6975987,509.00 ,Asdan,10260,Peoples Services Directorate,Fees - Exams,F285
http://opendatacommunities.org/id/london-borough-council/sutton,London Borough of Sutton,07/08/2020,40444343,"6,848.00 ",Ashcroft Care Services,22571,Peoples Services Directorate,Residential Care - Ext Provider,G310
http://opendatacommunities.org/id/london-borough-council/sutton,London Borough of Sutton,07/08/2020,40444360,"7,534.40 ",Ashcroft Care Services,22571,Peoples Services Directorate,Residential Care - Ext Provider,G310
http://opendatacommunities.org/id/london-borough-council/sutton,London Borough of Sutton,31/07/2020,1296206,"3,201.66 ",Ashlong House Ltd,23101,Peoples Services Directorate,Contract Cleaning,D806
http://opendatacommunities.org/id/london-borough-council/sutton,London Borough of Sutton,06/08/2020,1296338,662.46 ,Ashlong House Ltd,23101,Peoples Services Directorate,Contract Cleaning,D806
http://opendatacommunities.org/id/london-borough-council/sutton,London Borough of Sutton,01/08/2020,40449837,"1,845.60 ",Ashlong House Ltd,23101,Peoples Services Directorate,Supported Living - Ext Provider,G306
http://opendatacommunities.org/id/london-borough-council/sutton,London Borough of Sutton,01/08/2020,40449857,"1,264.80 ",Ashlong House Ltd,23101,Peoples Services Directorate,Supported Living - Ext Provider,G306
http://opendatacommunities.org/id/london-borough-council/sutton,London Borough of Sutton,07/08/2020,40444298,"5,492.48 ",Aspens Charities,30002,Peoples Services Directorate,Residential Care - Ext Provider,G310
http://opendatacommunities.org/id/london-borough-council/sutton,London Borough of Sutton,02/08/2020,40443319,560.00 ,Aspirations Care Ltd,25173,Peoples Services Directorate,Home Care,G334
http://opendatacommunities.org/id/london-borough-council/sutton,London Borough of Sutton,02/08/2020,40443319,"1,661.10 ",Aspirations Care Ltd,25173,Peoples Services Directorate,Home Care,G334
http://opendatacommunities.org/id/london-borough-council/sutton,London Borough of Sutton,09/08/2020,40445447,560.00 ,Aspirations Care Ltd,25173,Peoples Services Directorate,Home Care,G334
http://opendatacommunities.org/id/london-borough-council/sutton,London Borough of Sutton,09/08/2020,40445447,"1,661.10 ",Aspirations Care Ltd,25173,Peoples Services Directorate,Home Care,G334
http://opendatacommunities.org/id/london-borough-council/sutton,London Borough of Sutton,16/08/2020,40446705,560.00 ,Aspirations Care Ltd,25173,Peoples Services Directorate,Home Care,G334
http://opendatacommunities.org/id/london-borough-council/sutton,London Borough of Sutton,16/08/2020,40446705,"1,661.10 ",Aspirations Care Ltd,25173,Peoples Services Directorate,Home Care,G334
http://opendatacommunities.org/id/london-borough-council/sutton,London Borough of Sutton,23/08/2020,40450222,560.00 ,Aspirations Care Ltd,25173,Peoples Services Directorate,Home Care,G334
http://opendatacommunities.org/id/london-borough-council/sutton,London Borough of Sutton,23/08/2020,40450222,"1,661.10 ",Aspirations Care Ltd,25173,Peoples Services Directorate,Home Care,G334
http://opendatacommunities.org/id/london-borough-council/sutton,London Borough of Sutton,30/04/2018,6976294,960.00 ,Assetgrove Lettings Ltd,28820,Peoples Services Directorate,C.C.A Rent & Utilities,H211
http://opendatacommunities.org/id/london-borough-council/sutton,London Borough of Sutton,31/07/2020,6976847,"15,220.35 ",Assetgrove Lettings Ltd,28820,"Environment, Housing & Regeneration Directorate",Bed and Breakfast Accommodation,G400
http://opendatacommunities.org/id/london-borough-council/sutton,London Borough of Sutton,07/08/2020,6975980,690.00 ,ASSOCIATON OF ACCOUNTING TECHNICIANS,34474,Peoples Services Directorate,Fees - Exams,F285
http://opendatacommunities.org/id/london-borough-council/sutton,London Borough of Sutton,18/08/2020,6976330,"1,539.56 ",Atalian Servest Limited,23051,"Environment, Housing & Regeneration Directorate",Special,D535
http://opendatacommunities.org/id/london-borough-council/sutton,London Borough of Sutton,18/08/2020,6976595,"76,704.57 ",Atalian Servest Limited,23051,Resources Directorate,FM - Building Cleaning Contract - Servest,G611
http://opendatacommunities.org/id/london-borough-council/sutton,London Borough of Sutton,07/08/2020,40444279,"4,580.72 ",Autism & Aspergers Care Services,10327,Peoples Services Directorate,Residential Care - Ext Provider,G310
http://opendatacommunities.org/id/london-borough-council/sutton,London Borough of Sutton,11/08/2020,6976051,"5,000.00 ",Avg Distribution Ltd,99879,"Environment, Housing & Regeneration Directorate",Grants,F473
http://opendatacommunities.org/id/london-borough-council/sutton,London Borough of Sutton,05/08/2020,6975838,528.00 ,Axcis Education Recruitment,21583,Peoples Services Directorate,One to One Care,G335
http://opendatacommunities.org/id/london-borough-council/sutton,London Borough of Sutton,05/08/2020,6975840,528.00 ,Axcis Education Recruitment,21583,Peoples Services Directorate,One to One Care,G335
http://opendatacommunities.org/id/london-borough-council/sutton,London Borough of Sutton,05/08/2020,6975841,792.00 ,Axcis Education Recruitment,21583,Peoples Services Directorate,One to One Care,G335
http://opendatacommunities.org/id/london-borough-council/sutton,London Borough of Sutton,05/08/2020,6975842,"1,056.00 ",Axcis Education Recruitment,21583,Peoples Services Directorate,One to One Care,G335
http://opendatacommunities.org/id/london-borough-council/sutton,London Borough of Sutton,12/08/2020,6976176,528.00 ,Axcis Education Recruitment,21583,Peoples Services Directorate,One to One Care,G335
http://opendatacommunities.org/id/london-borough-council/sutton,London Borough of Sutton,05/08/2020,6976177,528.00 ,Axcis Education Recruitment,21583,Peoples Services Directorate,One to One Care,G335
http://opendatacommunities.org/id/london-borough-council/sutton,London Borough of Sutton,12/08/2020,6976178,528.00 ,Axcis Education Recruitment,21583,Peoples Services Directorate,One to One Care,G335
http://opendatacommunities.org/id/london-borough-council/sutton,London Borough of Sutton,05/08/2020,6976179,528.00 ,Axcis Education Recruitment,21583,Peoples Services Directorate,One to One Care,G335
http://opendatacommunities.org/id/london-borough-council/sutton,London Borough of Sutton,12/08/2020,6976182,687.50 ,Axcis Education Recruitment,21583,Peoples Services Directorate,One to One Care,G335
http://opendatacommunities.org/id/london-borough-council/sutton,London Borough of Sutton,05/08/2020,6976183,792.00 ,Axcis Education Recruitment,21583,Peoples Services Directorate,One to One Care,G335
http://opendatacommunities.org/id/london-borough-council/sutton,London Borough of Sutton,05/08/2020,6976187,792.00 ,Axcis Education Recruitment,21583,Peoples Services Directorate,One to One Care,G335
http://opendatacommunities.org/id/london-borough-council/sutton,London Borough of Sutton,12/08/2020,6976188,"1,320.00 ",Axcis Education Recruitment,21583,Peoples Services Directorate,One to One Care,G335
http://opendatacommunities.org/id/london-borough-council/sutton,London Borough of Sutton,12/08/2020,6976189,"1,056.00 ",Axcis Education Recruitment,21583,Peoples Services Directorate,One to One Care,G335
http://opendatacommunities.org/id/london-borough-council/sutton,London Borough of Sutton,12/08/2020,6976190,528.00 ,Axcis Education Recruitment,21583,Peoples Services Directorate,One to One Care,G335
http://opendatacommunities.org/id/london-borough-council/sutton,London Borough of Sutton,12/08/2020,6976193,528.00 ,Axcis Education Recruitment,21583,Peoples Services Directorate,One to One Care,G335
http://opendatacommunities.org/id/london-borough-council/sutton,London Borough of Sutton,12/08/2020,6976195,528.00 ,Axcis Education Recruitment,21583,Peoples Services Directorate,One to One Care,G335
http://opendatacommunities.org/id/london-borough-council/sutton,London Borough of Sutton,12/08/2020,6976196,"1,320.00 ",Axcis Education Recruitment,21583,Peoples Services Directorate,One to One Care,G335
http://opendatacommunities.org/id/london-borough-council/sutton,London Borough of Sutton,24/08/2020,1297151,700.00 ,B Mallen T/A The Adventure Pre-School,10072,Peoples Services Directorate,Non-Maintained Childrens' Nurseries - 2 Year Olds,G404
http://opendatacommunities.org/id/london-borough-council/sutton,London Borough of Sutton,25/08/2020,1297160,700.00 ,B Mallen T/A The Adventure Pre-School,10072,Peoples Services Directorate,Non-Maintained Childrens' Nurseries - 3 & 4 yr olds,G405
http://opendatacommunities.org/id/london-borough-council/sutton,London Borough of Sutton,17/08/2020,6976414,"5,000.00 ",Baby Sensory Sutton Limited,99879,"Environment, Housing & Regeneration Directorate",Grants,F473
http://opendatacommunities.org/id/london-borough-council/sutton,London Borough of Sutton,06/08/2020,6975794,"1,210.00 ",Balmont Ltd,97636,Resources Directorate,Building Works -Main Contractor,Y350
http://opendatacommunities.org/id/london-borough-council/sutton,London Borough of Sutton,25/08/2020,6976689,975.00 ,Balmont Ltd,97636,Peoples Services Directorate,Health and Safety Equipment,F005
http://opendatacommunities.org/id/london-borough-council/sutton,London Borough of Sutton,25/08/2020,6976690,"4,080.00 ",Balmont Ltd,97636,Peoples Services Directorate,Health and Safety Equipment,F005
http://opendatacommunities.org/id/london-borough-council/sutton,London Borough of Sutton,07/08/2020,6975856,"13,750.00 ",Baltimore Consulting Ltd,35386,Chief Executive's Directorate,Agency Staff - Other,A301
http://opendatacommunities.org/id/london-borough-council/sutton,London Borough of Sutton,31/07/2020,40449329,"3,607.47 ",Banya,10375,Peoples Services Directorate,Foster Parents,G326
http://opendatacommunities.org/id/london-borough-council/sutton,London Borough of Sutton,07/08/2020,40444416,"5,200.00 ",Barchester Healthcare Homes Ltd,34661,Peoples Services Directorate,Nursing Care - Ext Provider,G311
http://opendatacommunities.org/id/london-borough-council/sutton,London Borough of Sutton,30/04/2020,6976325,"5,270.58 ",Barnardo's,10370,Peoples Services Directorate,Agency Staff - Other,A301
http://opendatacommunities.org/id/london-borough-council/sutton,London Borough of Sutton,28/05/2020,6976326,"5,270.58 ",Barnardo's,10370,Peoples Services Directorate,Agency Staff - Other,A301
http://opendatacommunities.org/id/london-borough-council/sutton,London Borough of Sutton,20/08/2020,6976858,"2,511.00 ",Barnardo's,10370,Peoples Services Directorate,Play Groups,G322
http://opendatacommunities.org/id/london-borough-council/sutton,London Borough of Sutton,20/08/2020,6976859,"2,511.00 ",Barnardo's,10370,Peoples Services Directorate,Play Groups,G322
http://opendatacommunities.org/id/london-borough-council/sutton,London Borough of Sutton,20/08/2020,6976860,824.34 ,Barnardo's,10370,Peoples Services Directorate,Play Groups,G322
http://opendatacommunities.org/id/london-borough-council/sutton,London Borough of Sutton,13/08/2020,40445948,735.00 ,Barnardo's,10370,Peoples Services Directorate,Provider Contract Payments,F470
http://opendatacommunities.org/id/london-borough-council/sutton,London Borough of Sutton,13/08/2020,40445953,661.50 ,Barnardo's,10370,Peoples Services Directorate,Provider Contract Payments,F470
http://opendatacommunities.org/id/london-borough-council/sutton,London Borough of Sutton,13/08/2020,40445957,"1,166.00 ",Barnardo's,10370,Peoples Services Directorate,Provider Contract Payments,F470
http://opendatacommunities.org/id/london-borough-council/sutton,London Borough of Sutton,13/08/2020,40445959,539.00 ,Barnardo's,10370,Peoples Services Directorate,Provider Contract Payments,F470
http://opendatacommunities.org/id/london-borough-council/sutton,London Borough of Sutton,13/08/2020,40445960,"1,300.50 ",Barnardo's,10370,Peoples Services Directorate,Provider Contract Payments,F470
http://opendatacommunities.org/id/london-borough-council/sutton,London Borough of Sutton,13/08/2020,40445961,808.50 ,Barnardo's,10370,Peoples Services Directorate,Provider Contract Payments,F470
http://opendatacommunities.org/id/london-borough-council/sutton,London Borough of Sutton,13/08/2020,40445962,867.00 ,Barnardo's,10370,Peoples Services Directorate,Provider Contract Payments,F470
http://opendatacommunities.org/id/london-borough-council/sutton,London Borough of Sutton,13/08/2020,40445963,588.00 ,Barnardo's,10370,Peoples Services Directorate,Provider Contract Payments,F470
http://opendatacommunities.org/id/london-borough-council/sutton,London Borough of Sutton,18/08/2020,40449337,"2,153.72 ",Barnardo's,10370,Peoples Services Directorate,Residential Care-Children,G330
http://opendatacommunities.org/id/london-borough-council/sutton,London Borough of Sutton,18/08/2020,40449338,"20,716.72 ",Barnardo's,10370,Peoples Services Directorate,Residential Care-Children,G330
http://opendatacommunities.org/id/london-borough-council/sutton,London Borough of Sutton,18/08/2020,40449339,"31,792.98 ",Barnardo's,10370,Peoples Services Directorate,Residential Care-Children,G330
http://opendatacommunities.org/id/london-borough-council/sutton,London Borough of Sutton,29/06/2020,6976454,"2,500.00 ",BDC Brickwork and Property Developments,99815,"Environment, Housing & Regeneration Directorate",Grants -Made,Y610
http://opendatacommunities.org/id/london-borough-council/sutton,London Borough of Sutton,06/08/2020,6976549,"8,058.83 ",Beddington Infants School,10445,Peoples Services Directorate,Building Works -Main Contractor,Y350
http://opendatacommunities.org/id/london-borough-council/sutton,London Borough of Sutton,10/08/2020,6975905,"9,513.00 ",Beeches Tree Care,10451,"Environment, Housing & Regeneration Directorate",Trees - SCH,D875
http://opendatacommunities.org/id/london-borough-council/sutton,London Borough of Sutton,18/08/2020,6976396,"11,384.00 ",Beeches Tree Care,10451,"Environment, Housing & Regeneration Directorate",Trees,G401
http://opendatacommunities.org/id/london-borough-council/sutton,London Borough of Sutton,18/08/2020,6976397,"13,350.50 ",Beeches Tree Care,10451,"Environment, Housing & Regeneration Directorate",Highway Trees - Maintenance,D560
http://opendatacommunities.org/id/london-borough-council/sutton,London Borough of Sutton,14/08/2020,6976175,"1,024.83 ",Bellville-Homes Ltd,26490,"Environment, Housing & Regeneration Directorate",Temporary Protection - Homeless Persons,H300
http://opendatacommunities.org/id/london-borough-council/sutton,London Borough of Sutton,24/08/2020,1297152,700.00 ,Belmont Village Playgroup,17807,Peoples Services Directorate,Non-Maintained Childrens' Nurseries - 2 Year Olds,G404
http://opendatacommunities.org/id/london-borough-council/sutton,London Borough of Sutton,14/05/2020,6971358,"1,400.00 ",Benhill & Belmont GP Centre,15665,Chief Executive's Directorate,Provider Contract Payments,F470
http://opendatacommunities.org/id/london-borough-council/sutton,London Borough of Sutton,31/07/2020,6976888,"1,370.00 ",Benhill & Belmont GP Centre,15665,Chief Executive's Directorate,Provider Contract Payments,F470
http://opendatacommunities.org/id/london-borough-council/sutton,London Borough of Sutton,14/08/2020,1296906,"3,430.00 ",Best at Home Domiciliary Care Services Ltd,30159,Peoples Services Directorate,Contract Cleaning,D806
http://opendatacommunities.org/id/london-borough-council/sutton,London Borough of Sutton,02/08/2020,40443384,456.00 ,Best at Home Domiciliary Care Services Ltd,30159,Peoples Services Directorate,Home Care,G334
http://opendatacommunities.org/id/london-borough-council/sutton,London Borough of Sutton,02/08/2020,40443402,656.00 ,Best at Home Domiciliary Care Services Ltd,30159,Peoples Services Directorate,Home Care,G334
http://opendatacommunities.org/id/london-borough-council/sutton,London Borough of Sutton,02/08/2020,40443406,800.00 ,Best at Home Domiciliary Care Services Ltd,30159,Peoples Services Directorate,Home Care,G334
http://opendatacommunities.org/id/london-borough-council/sutton,London Borough of Sutton,02/08/2020,40443409,772.00 ,Best at Home Domiciliary Care Services Ltd,30159,Peoples Services Directorate,Home Care,G334
http://opendatacommunities.org/id/london-borough-council/sutton,London Borough of Sutton,02/08/2020,40443460,446.50 ,Best at Home Domiciliary Care Services Ltd,30159,Peoples Services Directorate,Home Care,G334
http://opendatacommunities.org/id/london-borough-council/sutton,London Borough of Sutton,02/08/2020,40443473,912.00 ,Best at Home Domiciliary Care Services Ltd,30159,Peoples Services Directorate,Home Care,G334
http://opendatacommunities.org/id/london-borough-council/sutton,London Borough of Sutton,02/08/2020,40443485,488.50 ,Best at Home Domiciliary Care Services Ltd,30159,Peoples Services Directorate,Home Care,G334
http://opendatacommunities.org/id/london-borough-council/sutton,London Borough of Sutton,09/08/2020,40445309,456.00 ,Best at Home Domiciliary Care Services Ltd,30159,Peoples Services Directorate,Home Care,G334
http://opendatacommunities.org/id/london-borough-council/sutton,London Borough of Sutton,09/08/2020,40445327,656.00 ,Best at Home Domiciliary Care Services Ltd,30159,Peoples Services Directorate,Home Care,G334
http://opendatacommunities.org/id/london-borough-council/sutton,London Borough of Sutton,09/08/2020,40445337,670.00 ,Best at Home Domiciliary Care Services Ltd,30159,Peoples Services Directorate,Home Care,G334
http://opendatacommunities.org/id/london-borough-council/sutton,London Borough of Sutton,09/08/2020,40445349,800.00 ,Best at Home Domiciliary Care Services Ltd,30159,Peoples Services Directorate,Home Care,G334
http://opendatacommunities.org/id/london-borough-council/sutton,London Borough of Sutton,09/08/2020,40445352,772.00 ,Best at Home Domiciliary Care Services Ltd,30159,Peoples Services Directorate,Home Care,G334
http://opendatacommunities.org/id/london-borough-council/sutton,London Borough of Sutton,09/08/2020,40445444,446.50 ,Best at Home Domiciliary Care Services Ltd,30159,Peoples Services Directorate,Home Care,G334
http://opendatacommunities.org/id/london-borough-council/sutton,London Borough of Sutton,09/08/2020,40445489,912.00 ,Best at Home Domiciliary Care Services Ltd,30159,Peoples Services Directorate,Home Care,G334
http://opendatacommunities.org/id/london-borough-council/sutton,London Borough of Sutton,09/08/2020,40445516,488.50 ,Best at Home Domiciliary Care Services Ltd,30159,Peoples Services Directorate,Home Care,G334
http://opendatacommunities.org/id/london-borough-council/sutton,London Borough of Sutton,12/08/2020,40446701,"5,508.00 ",Best at Home Domiciliary Care Services Ltd,30159,Peoples Services Directorate,Home Care,G334
http://opendatacommunities.org/id/london-borough-council/sutton,London Borough of Sutton,16/08/2020,40446702,446.50 ,Best at Home Domiciliary Care Services Ltd,30159,Peoples Services Directorate,Home Care,G334
http://opendatacommunities.org/id/london-borough-council/sutton,London Borough of Sutton,16/08/2020,40446716,912.00 ,Best at Home Domiciliary Care Services Ltd,30159,Peoples Services Directorate,Home Care,G334
http://opendatacommunities.org/id/london-borough-council/sutton,London Borough of Sutton,16/08/2020,40446729,488.50 ,Best at Home Domiciliary Care Services Ltd,30159,Peoples Services Directorate,Home Care,G334
http://opendatacommunities.org/id/london-borough-council/sutton,London Borough of Sutton,16/08/2020,40446745,456.00 ,Best at Home Domiciliary Care Services Ltd,30159,Peoples Services Directorate,Home Care,G334
http://opendatacommunities.org/id/london-borough-council/sutton,London Borough of Sutton,16/08/2020,40446763,656.00 ,Best at Home Domiciliary Care Services Ltd,30159,Peoples Services Directorate,Home Care,G334
http://opendatacommunities.org/id/london-borough-council/sutton,London Borough of Sutton,16/08/2020,40446768,800.00 ,Best at Home Domiciliary Care Services Ltd,30159,Peoples Services Directorate,Home Care,G334
http://opendatacommunities.org/id/london-borough-council/sutton,London Borough of Sutton,16/08/2020,40446771,772.00 ,Best at Home Domiciliary Care Services Ltd,30159,Peoples Services Directorate,Home Care,G334
http://opendatacommunities.org/id/london-borough-council/sutton,London Borough of Sutton,16/08/2020,40446792,670.00 ,Best at Home Domiciliary Care Services Ltd,30159,Peoples Services Directorate,Home Care,G334
http://opendatacommunities.org/id/london-borough-council/sutton,London Borough of Sutton,23/08/2020,40450035,446.50 ,Best at Home Domiciliary Care Services Ltd,30159,Peoples Services Directorate,Home Care,G334
http://opendatacommunities.org/id/london-borough-council/sutton,London Borough of Sutton,23/08/2020,40450052,912.00 ,Best at Home Domiciliary Care Services Ltd,30159,Peoples Services Directorate,Home Care,G334
http://opendatacommunities.org/id/london-borough-council/sutton,London Borough of Sutton,23/08/2020,40450064,488.50 ,Best at Home Domiciliary Care Services Ltd,30159,Peoples Services Directorate,Home Care,G334
http://opendatacommunities.org/id/london-borough-council/sutton,London Borough of Sutton,23/08/2020,40450104,456.00 ,Best at Home Domiciliary Care Services Ltd,30159,Peoples Services Directorate,Home Care,G334
http://opendatacommunities.org/id/london-borough-council/sutton,London Borough of Sutton,23/08/2020,40450122,656.00 ,Best at Home Domiciliary Care Services Ltd,30159,Peoples Services Directorate,Home Care,G334
http://opendatacommunities.org/id/london-borough-council/sutton,London Borough of Sutton,23/08/2020,40450133,800.00 ,Best at Home Domiciliary Care Services Ltd,30159,Peoples Services Directorate,Home Care,G334
http://opendatacommunities.org/id/london-borough-council/sutton,London Borough of Sutton,23/08/2020,40450136,772.00 ,Best at Home Domiciliary Care Services Ltd,30159,Peoples Services Directorate,Home Care,G334
http://opendatacommunities.org/id/london-borough-council/sutton,London Borough of Sutton,23/08/2020,40450160,670.00 ,Best at Home Domiciliary Care Services Ltd,30159,Peoples Services Directorate,Home Care,G334
http://opendatacommunities.org/id/london-borough-council/sutton,London Borough of Sutton,30/06/2020,6975942,"2,175.00 ",Bestcourt UK Ltd,10441,"Environment, Housing & Regeneration Directorate",Bed and Breakfast Accommodation,G400
http://opendatacommunities.org/id/london-borough-council/sutton,London Borough of Sutton,31/07/2020,6976529,"4,985.00 ",Bestcourt UK Ltd,10441,"Environment, Housing & Regeneration Directorate",Bed and Breakfast Accommodation,G400
http://opendatacommunities.org/id/london-borough-council/sutton,London Borough of Sutton,30/06/2020,6976198,604.50 ,Bevan Brittan LLP,28285,"Environment, Housing & Regeneration Directorate",External Legal Fees (Corporate Legal Approved),F277
http://opendatacommunities.org/id/london-borough-council/sutton,London Borough of Sutton,06/08/2020,6975927,687.53 ,BFS Group T/A Bidfood,14589,Chief Executive's Directorate,Refreshments,F155
http://opendatacommunities.org/id/london-borough-council/sutton,London Borough of Sutton,01/03/2020,40444141,715.62 ,Blue Sky Fostering Ltd,26171,Peoples Services Directorate,Foster Parents,G326
http://opendatacommunities.org/id/london-borough-council/sutton,London Borough of Sutton,01/03/2020,40444219,"2,504.67 ",Blue Sky Fostering Ltd,26171,Peoples Services Directorate,Foster Parents,G326
http://opendatacommunities.org/id/london-borough-council/sutton,London Borough of Sutton,01/03/2020,40444259,715.62 ,Blue Sky Fostering Ltd,26171,Peoples Services Directorate,Foster Parents,G326
http://opendatacommunities.org/id/london-borough-council/sutton,London Borough of Sutton,01/03/2020,40444269,"2,504.67 ",Blue Sky Fostering Ltd,26171,Peoples Services Directorate,Foster Parents,G326
http://opendatacommunities.org/id/london-borough-council/sutton,London Borough of Sutton,11/08/2020,6976041,"5,000.00 ",BRAN CAFFE LTD,99879,"Environment, Housing & Regeneration Directorate",Grants,F473
http://opendatacommunities.org/id/london-borough-council/sutton,London Borough of Sutton,02/07/2020,6976561,"18,976.63 ",Breyer Group Plc,97044,"Environment, Housing & Regeneration Directorate",Building Works -Main Contractor,Y350
http://opendatacommunities.org/id/london-borough-council/sutton,London Borough of Sutton,09/07/2020,6976562,"160,084.33 ",Breyer Group Plc,97044,"Environment, Housing & Regeneration Directorate",Building Works -Main Contractor,Y350
http://opendatacommunities.org/id/london-borough-council/sutton,London Borough of Sutton,31/07/2020,1296210,"18,676.35 ",Bridge House Care Centre,10620,Peoples Services Directorate,Contract Cleaning,D806
http://opendatacommunities.org/id/london-borough-council/sutton,London Borough of Sutton,06/08/2020,1296342,"3,864.35 ",Bridge House Care Centre,10620,Peoples Services Directorate,Contract Cleaning,D806
http://opendatacommunities.org/id/london-borough-council/sutton,London Borough of Sutton,07/08/2020,40444296,"3,346.44 ",Bridge House Care Centre,10620,Peoples Services Directorate,Nursing Care - Ext Provider,G311
http://opendatacommunities.org/id/london-borough-council/sutton,London Borough of Sutton,07/08/2020,40444297,"31,086.25 ",Bridge House Care Centre,10620,Peoples Services Directorate,Nursing Care - Ext Provider,G311
http://opendatacommunities.org/id/london-borough-council/sutton,London Borough of Sutton,07/08/2020,40444323,"2,908.16 ",Bridge House Care Centre,10620,Peoples Services Directorate,Nursing Care - Ext Provider,G311
http://opendatacommunities.org/id/london-borough-council/sutton,London Borough of Sutton,07/08/2020,40444392,"3,555.32 ",Bridge House Care Centre,10620,Peoples Services Directorate,Nursing Care - Ext Provider,G311
http://opendatacommunities.org/id/london-borough-council/sutton,London Borough of Sutton,07/08/2020,40444451,"3,575.68 ",Bridge House Care Centre,10620,Peoples Services Directorate,Nursing Care - Ext Provider,G311
http://opendatacommunities.org/id/london-borough-council/sutton,London Borough of Sutton,07/08/2020,40444452,"3,555.32 ",Bridge House Care Centre,10620,Peoples Services Directorate,Nursing Care - Ext Provider,G311
http://opendatacommunities.org/id/london-borough-council/sutton,London Borough of Sutton,07/08/2020,40444487,"2,173.88 ",Bridge House Care Centre,10620,Peoples Services Directorate,Nursing Care - Ext Provider,G311
http://opendatacommunities.org/id/london-borough-council/sutton,London Borough of Sutton,07/08/2020,40444504,"3,586.28 ",Bridge House Care Centre,10620,Peoples Services Directorate,Nursing Care - Ext Provider,G311
http://opendatacommunities.org/id/london-borough-council/sutton,London Borough of Sutton,07/08/2020,40444505,"3,472.64 ",Bridge House Care Centre,10620,Peoples Services Directorate,Nursing Care - Ext Provider,G311
http://opendatacommunities.org/id/london-borough-council/sutton,London Borough of Sutton,07/08/2020,40444506,"3,586.28 ",Bridge House Care Centre,10620,Peoples Services Directorate,Nursing Care - Ext Provider,G311
http://opendatacommunities.org/id/london-borough-council/sutton,London Borough of Sutton,07/08/2020,40444580,"2,075.08 ",Bridge House Care Centre,10620,Peoples Services Directorate,Nursing Care - Ext Provider,G311
http://opendatacommunities.org/id/london-borough-council/sutton,London Borough of Sutton,07/08/2020,40444646,"8,900.21 ",Bridge House Care Centre,10620,Peoples Services Directorate,Nursing Care - Ext Provider,G311
http://opendatacommunities.org/id/london-borough-council/sutton,London Borough of Sutton,07/08/2020,40444647,"3,586.28 ",Bridge House Care Centre,10620,Peoples Services Directorate,Nursing Care - Ext Provider,G311
http://opendatacommunities.org/id/london-borough-council/sutton,London Borough of Sutton,07/08/2020,40444648,"3,502.24 ",Bridge House Care Centre,10620,Peoples Services Directorate,Nursing Care - Ext Provider,G311
http://opendatacommunities.org/id/london-borough-council/sutton,London Borough of Sutton,06/08/2020,40444144,"1,474.32 ",Brighter Futures Foster Care Ltd,27648,Peoples Services Directorate,Foster Parents,G326
http://opendatacommunities.org/id/london-borough-council/sutton,London Borough of Sutton,01/07/2020,40444183,"3,365.71 ",Brighter Futures Foster Care Ltd,27648,Peoples Services Directorate,Foster Parents,G326
http://opendatacommunities.org/id/london-borough-council/sutton,London Borough of Sutton,01/07/2020,40444200,"2,860.82 ",Brighter Futures Foster Care Ltd,27648,Peoples Services Directorate,Foster Parents,G326
http://opendatacommunities.org/id/london-borough-council/sutton,London Borough of Sutton,31/07/2020,40444245,"2,334.34 ",Brighter Futures Foster Care Ltd,27648,Peoples Services Directorate,Foster Parents,G326
http://opendatacommunities.org/id/london-borough-council/sutton,London Borough of Sutton,01/07/2020,40444246,"2,790.00 ",Brighter Futures Foster Care Ltd,27648,Peoples Services Directorate,Foster Parents,G326
http://opendatacommunities.org/id/london-borough-council/sutton,London Borough of Sutton,05/08/2020,6975741,962.83 ,British Gas,10641,Peoples Services Directorate,Electricity - General,D620
http://opendatacommunities.org/id/london-borough-council/sutton,London Borough of Sutton,07/08/2020,40444344,"2,497.88 ",British Home & Hospital For Incurables,10589,Peoples Services Directorate,Nursing Care - Ext Provider,G311
http://opendatacommunities.org/id/london-borough-council/sutton,London Borough of Sutton,07/08/2020,40444617,"2,775.44 ",British Home & Hospital For Incurables,10589,Peoples Services Directorate,Nursing Care - Ext Provider,G311
http://opendatacommunities.org/id/london-borough-council/sutton,London Borough of Sutton,13/02/2019,6975661,"1,675.00 ",British Telecommunications Plc,10574,Resources Directorate,Telephones - Rentals,F370
http://opendatacommunities.org/id/london-borough-council/sutton,London Borough of Sutton,13/08/2019,6975673,"1,645.00 ",British Telecommunications Plc,10574,Resources Directorate,Telephones - Rentals,F370
http://opendatacommunities.org/id/london-borough-council/sutton,London Borough of Sutton,13/05/2019,6975674,"1,585.00 ",British Telecommunications Plc,10574,Resources Directorate,Telephones - Rentals,F370
http://opendatacommunities.org/id/london-borough-council/sutton,London Borough of Sutton,13/11/2019,6975675,"1,675.00 ",British Telecommunications Plc,10574,Resources Directorate,Telephones - Rentals,F370
http://opendatacommunities.org/id/london-borough-council/sutton,London Borough of Sutton,31/07/2020,1296211,"13,340.25 ",Broadlands Nursing Home,10586,Peoples Services Directorate,Contract Cleaning,D806
http://opendatacommunities.org/id/london-borough-council/sutton,London Borough of Sutton,06/08/2020,1296343,"2,760.25 ",Broadlands Nursing Home,10586,Peoples Services Directorate,Contract Cleaning,D806
http://opendatacommunities.org/id/london-borough-council/sutton,London Borough of Sutton,07/08/2020,40444336,"3,752.64 ",Broadlands Nursing Home,10586,Peoples Services Directorate,Nursing Care - Ext Provider,G311
http://opendatacommunities.org/id/london-borough-council/sutton,London Borough of Sutton,07/08/2020,40444509,"3,364.00 ",Broadlands Nursing Home,10586,Peoples Services Directorate,Nursing Care - Ext Provider,G311
http://opendatacommunities.org/id/london-borough-council/sutton,London Borough of Sutton,07/08/2020,40444510,"3,586.28 ",Broadlands Nursing Home,10586,Peoples Services Directorate,Nursing Care - Ext Provider,G311
http://opendatacommunities.org/id/london-borough-council/sutton,London Borough of Sutton,07/08/2020,40444595,"3,543.04 ",Broadlands Nursing Home,10586,Peoples Services Directorate,Nursing Care - Ext Provider,G311
http://opendatacommunities.org/id/london-borough-council/sutton,London Borough of Sutton,07/08/2020,40444596,"3,543.04 ",Broadlands Nursing Home,10586,Peoples Services Directorate,Nursing Care - Ext Provider,G311
http://opendatacommunities.org/id/london-borough-council/sutton,London Borough of Sutton,07/08/2020,6975858,"1,520.00 ",Burch Drainage Ltd,35498,"Environment, Housing & Regeneration Directorate","Surveys, Trial Holes Etc",Y200
http://opendatacommunities.org/id/london-borough-council/sutton,London Borough of Sutton,24/08/2020,1297154,"1,400.00 ",Busy Bees Day Nurseries Ltd. - Carshalton Beeches,24082,Peoples Services Directorate,Non-Maintained Childrens' Nurseries - 2 Year Olds,G404
http://opendatacommunities.org/id/london-borough-council/sutton,London Borough of Sutton,25/08/2020,1297164,"2,100.00 ",Busy Bees Day Nurseries Ltd. - Carshalton Beeches,24082,Peoples Services Directorate,Non-Maintained Childrens' Nurseries - 3 & 4 yr olds,G405
http://opendatacommunities.org/id/london-borough-council/sutton,London Borough of Sutton,07/08/2020,40444352,"7,824.28 ",Butterfly's Care Homes Ltd,28860,Peoples Services Directorate,Residential Care - Ext Provider,G310
http://opendatacommunities.org/id/london-borough-council/sutton,London Borough of Sutton,01/08/2020,40444125,"3,019.93 ",By The Bridge Ltd,25655,Peoples Services Directorate,Foster Parents,G326
http://opendatacommunities.org/id/london-borough-council/sutton,London Borough of Sutton,01/08/2020,40444139,"3,019.93 ",By The Bridge Ltd,25655,Peoples Services Directorate,Foster Parents,G326
http://opendatacommunities.org/id/london-borough-council/sutton,London Borough of Sutton,01/08/2020,40444222,"4,711.38 ",By The Bridge Ltd,25655,Peoples Services Directorate,Foster Parents,G326
http://opendatacommunities.org/id/london-borough-council/sutton,London Borough of Sutton,01/08/2020,40444241,"5,936.77 ",By The Bridge Ltd,25655,Peoples Services Directorate,Foster Parents,G326
http://opendatacommunities.org/id/london-borough-council/sutton,London Borough of Sutton,01/08/2020,40444258,"3,518.01 ",By The Bridge Ltd,25655,Peoples Services Directorate,Foster Parents,G326
http://opendatacommunities.org/id/london-borough-council/sutton,London Borough of Sutton,24/06/2020,40444198,"15,500.00 ",Calcot Services for Children Ltd,34806,Peoples Services Directorate,Residential Care-Children,G330
http://opendatacommunities.org/id/london-borough-council/sutton,London Borough of Sutton,14/08/2020,1296991,"17,653.44 ",Cambian Asperger Syndrome Services Ltd,12082,Peoples Services Directorate,Independent Schools,G325
http://opendatacommunities.org/id/london-borough-council/sutton,London Borough of Sutton,14/08/2020,1296992,"6,500.00 ",Cambian Asperger Syndrome Services Ltd,12082,Peoples Services Directorate,Independent Schools,G325
http://opendatacommunities.org/id/london-borough-council/sutton,London Borough of Sutton,14/08/2020,1296993,"22,898.03 ",Cambian Asperger Syndrome Services Ltd,12082,Peoples Services Directorate,Residential Care-Children,G330
http://opendatacommunities.org/id/london-borough-council/sutton,London Borough of Sutton,07/08/2020,40444659,"1,448.69 ",Cambian Asperger Syndrome Services Ltd,12082,Peoples Services Directorate,Interim Placements - Ext Provider,G317
http://opendatacommunities.org/id/london-borough-council/sutton,London Borough of Sutton,13/08/2020,6976247,456.86 ,Canon (UK) Ltd,13275,Resources Directorate,Printing - General,F215
http://opendatacommunities.org/id/london-borough-council/sutton,London Borough of Sutton,07/08/2020,40444355,"3,913.56 ",Canterbury Oast Trust,10755,Peoples Services Directorate,Residential Care - Ext Provider,G310
http://opendatacommunities.org/id/london-borough-council/sutton,London Borough of Sutton,28/07/2020,6975639,"23,334.32 ",Capita Business Services Ltd,10780,Peoples Services Directorate,IT Licences,F385
http://opendatacommunities.org/id/london-borough-council/sutton,London Borough of Sutton,06/08/2020,6975825,"4,293.00 ",Capital Traffic Management Ltd,24034,"Environment, Housing & Regeneration Directorate","Surveys, Trial Holes Etc",Y200
http://opendatacommunities.org/id/london-borough-council/sutton,London Borough of Sutton,30/07/2020,40444124,"5,739.34 ",Capstone Foster Care (South East) Ltd,16360,Peoples Services Directorate,Foster Parents,G326
http://opendatacommunities.org/id/london-borough-council/sutton,London Borough of Sutton,30/07/2020,40444266,"3,432.32 ",Capstone Foster Care (South East) Ltd,16360,Peoples Services Directorate,Foster Parents,G326
http://opendatacommunities.org/id/london-borough-council/sutton,London Borough of Sutton,02/07/2020,40444151,"19,884.33 ",Care 4 Children Residential Services Ltd,29992,Peoples Services Directorate,Residential Care-Children,G330
http://opendatacommunities.org/id/london-borough-council/sutton,London Borough of Sutton,25/06/2020,40443592,"7,557.14 ",Care Advocates Ltd,34664,Peoples Services Directorate,Supported Living - Ext Provider,G306
http://opendatacommunities.org/id/london-borough-council/sutton,London Borough of Sutton,27/07/2020,40443593,"10,185.71 ",Care Advocates Ltd,34664,Peoples Services Directorate,Supported Living - Ext Provider,G306
http://opendatacommunities.org/id/london-borough-council/sutton,London Borough of Sutton,11/08/2020,6976074,"10,000.00 ",Care Connect 24 LTD,99879,"Environment, Housing & Regeneration Directorate",Grants,F473
http://opendatacommunities.org/id/london-borough-council/sutton,London Borough of Sutton,31/07/2020,1296221,"4,268.88 ",Care Direct Uk Ltd  (David House),27080,Peoples Services Directorate,Contract Cleaning,D806
http://opendatacommunities.org/id/london-borough-council/sutton,London Borough of Sutton,06/08/2020,1296353,883.28 ,Care Direct Uk Ltd  (David House),27080,Peoples Services Directorate,Contract Cleaning,D806
http://opendatacommunities.org/id/london-borough-council/sutton,London Borough of Sutton,07/08/2020,40444618,"3,631.80 ",Care Direct Uk Ltd  (David House),27080,Peoples Services Directorate,Residential Care - Ext Provider,G310
http://opendatacommunities.org/id/london-borough-council/sutton,London Borough of Sutton,14/08/2020,1296913,"3,290.00 ",Care More Ltd,33872,Peoples Services Directorate,Contract Cleaning,D806
http://opendatacommunities.org/id/london-borough-council/sutton,London Borough of Sutton,02/08/2020,40443391,790.00 ,Care More Ltd,33872,Peoples Services Directorate,Home Care,G334
http://opendatacommunities.org/id/london-borough-council/sutton,London Borough of Sutton,02/08/2020,40443464,546.00 ,Care More Ltd,33872,Peoples Services Directorate,Home Care,G334
http://opendatacommunities.org/id/london-borough-council/sutton,London Borough of Sutton,02/08/2020,40443468,672.00 ,Care More Ltd,33872,Peoples Services Directorate,Home Care,G334
http://opendatacommunities.org/id/london-borough-council/sutton,London Borough of Sutton,02/08/2020,40443474,630.00 ,Care More Ltd,33872,Peoples Services Directorate,Home Care,G334
http://opendatacommunities.org/id/london-borough-council/sutton,London Borough of Sutton,02/08/2020,40443475,427.00 ,Care More Ltd,33872,Peoples Services Directorate,Home Care,G334
http://opendatacommunities.org/id/london-borough-council/sutton,London Borough of Sutton,02/08/2020,40443480,678.00 ,Care More Ltd,33872,Peoples Services Directorate,Home Care,G334
http://opendatacommunities.org/id/london-borough-council/sutton,London Borough of Sutton,02/08/2020,40443482,854.00 ,Care More Ltd,33872,Peoples Services Directorate,Home Care,G334
http://opendatacommunities.org/id/london-borough-council/sutton,London Borough of Sutton,02/08/2020,40443492,714.00 ,Care More Ltd,33872,Peoples Services Directorate,Home Care,G334
http://opendatacommunities.org/id/london-borough-council/sutton,London Borough of Sutton,02/08/2020,40443496,475.00 ,Care More Ltd,33872,Peoples Services Directorate,Home Care,G334
http://opendatacommunities.org/id/london-borough-council/sutton,London Borough of Sutton,09/08/2020,40445290,714.00 ,Care More Ltd,33872,Peoples Services Directorate,Home Care,G334
http://opendatacommunities.org/id/london-borough-council/sutton,London Borough of Sutton,09/08/2020,40445294,475.00 ,Care More Ltd,33872,Peoples Services Directorate,Home Care,G334
http://opendatacommunities.org/id/london-borough-council/sutton,London Borough of Sutton,09/08/2020,40445316,790.00 ,Care More Ltd,33872,Peoples Services Directorate,Home Care,G334
http://opendatacommunities.org/id/london-borough-council/sutton,London Borough of Sutton,09/08/2020,40445466,546.00 ,Care More Ltd,33872,Peoples Services Directorate,Home Care,G334
http://opendatacommunities.org/id/london-borough-council/sutton,London Borough of Sutton,09/08/2020,40445470,672.00 ,Care More Ltd,33872,Peoples Services Directorate,Home Care,G334
http://opendatacommunities.org/id/london-borough-council/sutton,London Borough of Sutton,09/08/2020,40445490,630.00 ,Care More Ltd,33872,Peoples Services Directorate,Home Care,G334
http://opendatacommunities.org/id/london-borough-council/sutton,London Borough of Sutton,09/08/2020,40445492,427.00 ,Care More Ltd,33872,Peoples Services Directorate,Home Care,G334
http://opendatacommunities.org/id/london-borough-council/sutton,London Borough of Sutton,09/08/2020,40445511,678.00 ,Care More Ltd,33872,Peoples Services Directorate,Home Care,G334
http://opendatacommunities.org/id/london-borough-council/sutton,London Borough of Sutton,09/08/2020,40445513,854.00 ,Care More Ltd,33872,Peoples Services Directorate,Home Care,G334
http://opendatacommunities.org/id/london-borough-council/sutton,London Borough of Sutton,16/08/2020,40446707,546.00 ,Care More Ltd,33872,Peoples Services Directorate,Home Care,G334
http://opendatacommunities.org/id/london-borough-council/sutton,London Borough of Sutton,16/08/2020,40446711,672.00 ,Care More Ltd,33872,Peoples Services Directorate,Home Care,G334
http://opendatacommunities.org/id/london-borough-council/sutton,London Borough of Sutton,16/08/2020,40446717,630.00 ,Care More Ltd,33872,Peoples Services Directorate,Home Care,G334
http://opendatacommunities.org/id/london-borough-council/sutton,London Borough of Sutton,16/08/2020,40446724,678.00 ,Care More Ltd,33872,Peoples Services Directorate,Home Care,G334
http://opendatacommunities.org/id/london-borough-council/sutton,London Borough of Sutton,16/08/2020,40446726,854.00 ,Care More Ltd,33872,Peoples Services Directorate,Home Care,G334
http://opendatacommunities.org/id/london-borough-council/sutton,London Borough of Sutton,16/08/2020,40446740,475.00 ,Care More Ltd,33872,Peoples Services Directorate,Home Care,G334
http://opendatacommunities.org/id/london-borough-council/sutton,London Borough of Sutton,16/08/2020,40446752,790.00 ,Care More Ltd,33872,Peoples Services Directorate,Home Care,G334
http://opendatacommunities.org/id/london-borough-council/sutton,London Borough of Sutton,23/08/2020,40450041,546.00 ,Care More Ltd,33872,Peoples Services Directorate,Home Care,G334
http://opendatacommunities.org/id/london-borough-council/sutton,London Borough of Sutton,23/08/2020,40450045,672.00 ,Care More Ltd,33872,Peoples Services Directorate,Home Care,G334
http://opendatacommunities.org/id/london-borough-council/sutton,London Borough of Sutton,23/08/2020,40450053,630.00 ,Care More Ltd,33872,Peoples Services Directorate,Home Care,G334
http://opendatacommunities.org/id/london-borough-council/sutton,London Borough of Sutton,23/08/2020,40450059,678.00 ,Care More Ltd,33872,Peoples Services Directorate,Home Care,G334
http://opendatacommunities.org/id/london-borough-council/sutton,London Borough of Sutton,23/08/2020,40450061,854.00 ,Care More Ltd,33872,Peoples Services Directorate,Home Care,G334
http://opendatacommunities.org/id/london-borough-council/sutton,London Borough of Sutton,23/08/2020,40450087,612.00 ,Care More Ltd,33872,Peoples Services Directorate,Home Care,G334
http://opendatacommunities.org/id/london-borough-council/sutton,London Borough of Sutton,23/08/2020,40450091,475.00 ,Care More Ltd,33872,Peoples Services Directorate,Home Care,G334
http://opendatacommunities.org/id/london-borough-council/sutton,London Borough of Sutton,23/08/2020,40450111,790.00 ,Care More Ltd,33872,Peoples Services Directorate,Home Care,G334
http://opendatacommunities.org/id/london-borough-council/sutton,London Borough of Sutton,15/01/2020,6976329,"32,898.00 ",Care Quality Commission,22526,Peoples Services Directorate,Fees - Other,F299
http://opendatacommunities.org/id/london-borough-council/sutton,London Borough of Sutton,07/08/2020,40444444,"3,555.32 ",Care UK Homecare Ltd,10853,Peoples Services Directorate,Nursing Care - Ext Provider,G311
http://opendatacommunities.org/id/london-borough-council/sutton,London Borough of Sutton,07/08/2020,40444497,"3,586.28 ",Care UK Homecare Ltd,10853,Peoples Services Directorate,Nursing Care - Ext Provider,G311
http://opendatacommunities.org/id/london-borough-council/sutton,London Borough of Sutton,07/08/2020,40444544,"4,600.00 ",Care UK Homecare Ltd,10853,Peoples Services Directorate,Residential Care - Ext Provider,G310
http://opendatacommunities.org/id/london-borough-council/sutton,London Borough of Sutton,01/08/2020,40449862,"4,732.00 ",Care Unlimited Domcare Ltd,28906,Peoples Services Directorate,Supported Living - Ext Provider,G306
http://opendatacommunities.org/id/london-borough-council/sutton,London Borough of Sutton,01/08/2020,40449863,"4,060.00 ",Care Unlimited Domcare Ltd,28906,Peoples Services Directorate,Supported Living - Ext Provider,G306
http://opendatacommunities.org/id/london-borough-council/sutton,London Borough of Sutton,01/08/2020,40449864,"4,060.00 ",Care Unlimited Domcare Ltd,28906,Peoples Services Directorate,Supported Living - Ext Provider,G306
http://opendatacommunities.org/id/london-borough-council/sutton,London Borough of Sutton,01/08/2020,40449865,"4,060.00 ",Care Unlimited Domcare Ltd,28906,Peoples Services Directorate,Supported Living - Ext Provider,G306
http://opendatacommunities.org/id/london-borough-council/sutton,London Borough of Sutton,01/08/2020,40449866,"4,060.00 ",Care Unlimited Domcare Ltd,28906,Peoples Services Directorate,Supported Living - Ext Provider,G306
http://opendatacommunities.org/id/london-borough-council/sutton,London Borough of Sutton,31/07/2020,1296228,"17,075.52 ",Care Unlimited Group Ltd,10774,Peoples Services Directorate,Contract Cleaning,D806
http://opendatacommunities.org/id/london-borough-council/sutton,London Borough of Sutton,06/08/2020,1296360,"3,533.12 ",Care Unlimited Group Ltd,10774,Peoples Services Directorate,Contract Cleaning,D806
http://opendatacommunities.org/id/london-borough-council/sutton,London Borough of Sutton,14/08/2020,1296898,"1,890.00 ",Caremark (Sutton),25541,Peoples Services Directorate,Contract Cleaning,D806
http://opendatacommunities.org/id/london-borough-council/sutton,London Borough of Sutton,11/08/2020,6976156,500.00 ,Caremark (Sutton),25541,Peoples Services Directorate,One to One Care,G335
http://opendatacommunities.org/id/london-borough-council/sutton,London Borough of Sutton,11/08/2020,6976160,636.25 ,Caremark (Sutton),25541,Peoples Services Directorate,Home Care,G334
http://opendatacommunities.org/id/london-borough-council/sutton,London Borough of Sutton,11/08/2020,6976161,600.00 ,Caremark (Sutton),25541,Peoples Services Directorate,Home Care,G334
http://opendatacommunities.org/id/london-borough-council/sutton,London Borough of Sutton,11/08/2020,6976162,500.00 ,Caremark (Sutton),25541,Peoples Services Directorate,Home Care,G334
http://opendatacommunities.org/id/london-borough-council/sutton,London Borough of Sutton,02/08/2020,40442775,445.00 ,Caremark (Sutton),25541,Peoples Services Directorate,Home Care,G334
http://opendatacommunities.org/id/london-borough-council/sutton,London Borough of Sutton,02/08/2020,40442819,442.50 ,Caremark (Sutton),25541,Peoples Services Directorate,Home Care,G334
http://opendatacommunities.org/id/london-borough-council/sutton,London Borough of Sutton,02/08/2020,40442841,826.00 ,Caremark (Sutton),25541,Peoples Services Directorate,Home Care,G334
http://opendatacommunities.org/id/london-borough-council/sutton,London Borough of Sutton,02/08/2020,40442842,"1,017.85 ",Caremark (Sutton),25541,Peoples Services Directorate,Home Care,G334
http://opendatacommunities.org/id/london-borough-council/sutton,London Borough of Sutton,02/08/2020,40442843,767.05 ,Caremark (Sutton),25541,Peoples Services Directorate,Home Care,G334
http://opendatacommunities.org/id/london-borough-council/sutton,London Borough of Sutton,02/08/2020,40442844,767.05 ,Caremark (Sutton),25541,Peoples Services Directorate,Home Care,G334
http://opendatacommunities.org/id/london-borough-council/sutton,London Borough of Sutton,02/08/2020,40442847,"1,831.50 ",Caremark (Sutton),25541,Peoples Services Directorate,Home Care,G334
http://opendatacommunities.org/id/london-borough-council/sutton,London Borough of Sutton,02/08/2020,40442853,973.50 ,Caremark (Sutton),25541,Peoples Services Directorate,Home Care,G334
http://opendatacommunities.org/id/london-borough-council/sutton,London Borough of Sutton,09/08/2020,40444722,973.50 ,Caremark (Sutton),25541,Peoples Services Directorate,Home Care,G334
http://opendatacommunities.org/id/london-borough-council/sutton,London Borough of Sutton,09/08/2020,40444725,445.00 ,Caremark (Sutton),25541,Peoples Services Directorate,Home Care,G334
http://opendatacommunities.org/id/london-borough-council/sutton,London Borough of Sutton,09/08/2020,40444799,442.50 ,Caremark (Sutton),25541,Peoples Services Directorate,Home Care,G334
http://opendatacommunities.org/id/london-borough-council/sutton,London Borough of Sutton,09/08/2020,40444831,"1,017.85 ",Caremark (Sutton),25541,Peoples Services Directorate,Home Care,G334
http://opendatacommunities.org/id/london-borough-council/sutton,London Borough of Sutton,09/08/2020,40444832,767.05 ,Caremark (Sutton),25541,Peoples Services Directorate,Home Care,G334
http://opendatacommunities.org/id/london-borough-council/sutton,London Borough of Sutton,09/08/2020,40444833,767.05 ,Caremark (Sutton),25541,Peoples Services Directorate,Home Care,G334
http://opendatacommunities.org/id/london-borough-council/sutton,London Borough of Sutton,09/08/2020,40444846,"1,831.50 ",Caremark (Sutton),25541,Peoples Services Directorate,Home Care,G334
http://opendatacommunities.org/id/london-borough-council/sutton,London Borough of Sutton,16/08/2020,40446122,"1,017.85 ",Caremark (Sutton),25541,Peoples Services Directorate,Home Care,G334
http://opendatacommunities.org/id/london-borough-council/sutton,London Borough of Sutton,16/08/2020,40446123,767.05 ,Caremark (Sutton),25541,Peoples Services Directorate,Home Care,G334
http://opendatacommunities.org/id/london-borough-council/sutton,London Borough of Sutton,16/08/2020,40446124,767.05 ,Caremark (Sutton),25541,Peoples Services Directorate,Home Care,G334
http://opendatacommunities.org/id/london-borough-council/sutton,London Borough of Sutton,16/08/2020,40446127,"1,831.50 ",Caremark (Sutton),25541,Peoples Services Directorate,Home Care,G334
http://opendatacommunities.org/id/london-borough-council/sutton,London Borough of Sutton,16/08/2020,40446134,973.50 ,Caremark (Sutton),25541,Peoples Services Directorate,Home Care,G334
http://opendatacommunities.org/id/london-borough-council/sutton,London Borough of Sutton,16/08/2020,40446136,445.00 ,Caremark (Sutton),25541,Peoples Services Directorate,Home Care,G334
http://opendatacommunities.org/id/london-borough-council/sutton,London Borough of Sutton,16/08/2020,40446237,442.50 ,Caremark (Sutton),25541,Peoples Services Directorate,Home Care,G334
http://opendatacommunities.org/id/london-borough-council/sutton,London Borough of Sutton,23/08/2020,40450277,442.50 ,Caremark (Sutton),25541,Peoples Services Directorate,Home Care,G334
http://opendatacommunities.org/id/london-borough-council/sutton,London Borough of Sutton,23/08/2020,40450301,"1,017.85 ",Caremark (Sutton),25541,Peoples Services Directorate,Home Care,G334
http://opendatacommunities.org/id/london-borough-council/sutton,London Borough of Sutton,23/08/2020,40450302,767.05 ,Caremark (Sutton),25541,Peoples Services Directorate,Home Care,G334
http://opendatacommunities.org/id/london-borough-council/sutton,London Borough of Sutton,23/08/2020,40450303,767.05 ,Caremark (Sutton),25541,Peoples Services Directorate,Home Care,G334
http://opendatacommunities.org/id/london-borough-council/sutton,London Borough of Sutton,23/08/2020,40450316,"1,831.50 ",Caremark (Sutton),25541,Peoples Services Directorate,Home Care,G334
http://opendatacommunities.org/id/london-borough-council/sutton,London Borough of Sutton,23/08/2020,40450326,973.50 ,Caremark (Sutton),25541,Peoples Services Directorate,Home Care,G334
http://opendatacommunities.org/id/london-borough-council/sutton,London Borough of Sutton,23/08/2020,40450328,445.00 ,Caremark (Sutton),25541,Peoples Services Directorate,Home Care,G334
http://opendatacommunities.org/id/london-borough-council/sutton,London Borough of Sutton,04/08/2020,6975802,"2,502.50 ",Careoline Carers Services Ltd,23798,Peoples Services Directorate,Respite Care,G333
http://opendatacommunities.org/id/london-borough-council/sutton,London Borough of Sutton,11/08/2020,6976089,"2,502.50 ",Careoline Carers Services Ltd,23798,Peoples Services Directorate,Respite Care,G333
http://opendatacommunities.org/id/london-borough-council/sutton,London Borough of Sutton,18/08/2020,6976405,"2,502.50 ",Careoline Carers Services Ltd,23798,Peoples Services Directorate,Respite Care,G333
http://opendatacommunities.org/id/london-borough-council/sutton,London Borough of Sutton,18/08/2020,6976613,"1,205.13 ",Careoline Carers Services Ltd,23798,Peoples Services Directorate,Hired Peoples Transport (Children),E072
http://opendatacommunities.org/id/london-borough-council/sutton,London Borough of Sutton,11/08/2020,6976022,"10,000.00 ",Caretec (Building Preservation) Ltd,99879,"Environment, Housing & Regeneration Directorate",Grants,F473
http://opendatacommunities.org/id/london-borough-council/sutton,London Borough of Sutton,01/08/2020,40442651,"2,092.50 ",Caretech Community Services Ltd,10791,Peoples Services Directorate,One to One Care,G335
http://opendatacommunities.org/id/london-borough-council/sutton,London Borough of Sutton,07/08/2020,40444492,"5,676.16 ",Caretech Community Services Ltd,10791,Peoples Services Directorate,Residential Care - Ext Provider,G310
http://opendatacommunities.org/id/london-borough-council/sutton,London Borough of Sutton,07/08/2020,40444585,"5,531.60 ",Caretech Community Services Ltd,10791,Peoples Services Directorate,Residential Care - Ext Provider,G310
http://opendatacommunities.org/id/london-borough-council/sutton,London Borough of Sutton,07/08/2020,40444631,"5,534.00 ",Caretech Community Services Ltd,10791,Peoples Services Directorate,Residential Care - Ext Provider,G310
http://opendatacommunities.org/id/london-borough-council/sutton,London Borough of Sutton,07/08/2020,40444632,"5,534.00 ",Caretech Community Services Ltd,10791,Peoples Services Directorate,Residential Care - Ext Provider,G310
http://opendatacommunities.org/id/london-borough-council/sutton,London Borough of Sutton,31/07/2020,40449322,"4,926.83 ",Caridon Young Living Ltd,35469,Peoples Services Directorate,Approved Lodgings,H323
http://opendatacommunities.org/id/london-borough-council/sutton,London Borough of Sutton,30/07/2020,40443323,825.50 ,Carlene House,10763,Peoples Services Directorate,Supported Living - Ext Provider,G306
http://opendatacommunities.org/id/london-borough-council/sutton,London Borough of Sutton,30/07/2020,40443324,"1,240.00 ",Carlene House,10763,Peoples Services Directorate,Supported Living - Ext Provider,G306
http://opendatacommunities.org/id/london-borough-council/sutton,London Borough of Sutton,30/07/2020,40443325,525.00 ,Carlene House,10763,Peoples Services Directorate,Supported Living - Ext Provider,G306
http://opendatacommunities.org/id/london-borough-council/sutton,London Borough of Sutton,30/07/2020,40443588,"2,996.95 ",Carlene House,10763,Peoples Services Directorate,Supported Living - Ext Provider,G306
http://opendatacommunities.org/id/london-borough-council/sutton,London Borough of Sutton,30/07/2020,40443589,"4,212.20 ",Carlene House,10763,Peoples Services Directorate,Supported Living - Ext Provider,G306
http://opendatacommunities.org/id/london-borough-council/sutton,London Borough of Sutton,30/07/2020,40443594,"3,160.70 ",Carlene House,10763,Peoples Services Directorate,Supported Living - Ext Provider,G306
http://opendatacommunities.org/id/london-borough-council/sutton,London Borough of Sutton,30/07/2020,40443595,"4,031.95 ",Carlene House,10763,Peoples Services Directorate,Supported Living - Ext Provider,G306
http://opendatacommunities.org/id/london-borough-council/sutton,London Borough of Sutton,07/08/2020,40444275,"2,688.28 ",Carlene House,10763,Peoples Services Directorate,Residential Care - Ext Provider,G310
http://opendatacommunities.org/id/london-borough-council/sutton,London Borough of Sutton,07/08/2020,40444374,"4,440.00 ",Carlene House,10763,Peoples Services Directorate,Residential Care - Ext Provider,G310
http://opendatacommunities.org/id/london-borough-council/sutton,London Borough of Sutton,07/08/2020,40444375,"2,806.40 ",Carlene House,10763,Peoples Services Directorate,Residential Care - Ext Provider,G310
http://opendatacommunities.org/id/london-borough-council/sutton,London Borough of Sutton,07/08/2020,40444376,"2,693.72 ",Carlene House,10763,Peoples Services Directorate,Residential Care - Ext Provider,G310
http://opendatacommunities.org/id/london-borough-council/sutton,London Borough of Sutton,07/08/2020,40444377,"2,718.40 ",Carlene House,10763,Peoples Services Directorate,Residential Care - Ext Provider,G310
http://opendatacommunities.org/id/london-borough-council/sutton,London Borough of Sutton,07/08/2020,40444486,"2,688.28 ",Carlene House,10763,Peoples Services Directorate,Residential Care - Ext Provider,G310
http://opendatacommunities.org/id/london-borough-council/sutton,London Borough of Sutton,07/08/2020,40444626,"2,747.08 ",Carlene House,10763,Peoples Services Directorate,Residential Care - Ext Provider,G310
http://opendatacommunities.org/id/london-borough-council/sutton,London Borough of Sutton,27/07/2020,6975276,699.00 ,Cascaid Ltd,10778,Peoples Services Directorate,Provisions - General,F150
http://opendatacommunities.org/id/london-borough-council/sutton,London Borough of Sutton,11/08/2020,6976026,"10,000.00 ",Caterham Surgical Supplies Limited,99879,"Environment, Housing & Regeneration Directorate",Grants,F473
http://opendatacommunities.org/id/london-borough-council/sutton,London Borough of Sutton,12/08/2020,6976100,909.85 ,Caysh Enterprise Cic,28016,Peoples Services Directorate,Approved Lodgings,H323
http://opendatacommunities.org/id/london-borough-council/sutton,London Borough of Sutton,03/08/2020,6975567,"30,833.33 ",Caysh Housing Project,23133,Peoples Services Directorate,Approved Lodgings,H323
http://opendatacommunities.org/id/london-borough-council/sutton,London Borough of Sutton,03/08/2020,6975572,"1,452.35 ",Caysh Housing Project,23133,Peoples Services Directorate,Approved Lodgings,H323
http://opendatacommunities.org/id/london-borough-council/sutton,London Borough of Sutton,03/08/2020,6975573,431.79 ,Caysh Housing Project,23133,Peoples Services Directorate,Approved Lodgings,H323
http://opendatacommunities.org/id/london-borough-council/sutton,London Borough of Sutton,03/08/2020,6975574,"1,329.59 ",Caysh Housing Project,23133,Peoples Services Directorate,Approved Lodgings,H323
http://opendatacommunities.org/id/london-borough-council/sutton,London Borough of Sutton,03/08/2020,6975575,431.79 ,Caysh Housing Project,23133,Peoples Services Directorate,Approved Lodgings,H323
http://opendatacommunities.org/id/london-borough-council/sutton,London Borough of Sutton,03/08/2020,6975576,"2,087.23 ",Caysh Housing Project,23133,Peoples Services Directorate,Approved Lodgings,H323
http://opendatacommunities.org/id/london-borough-council/sutton,London Borough of Sutton,03/08/2020,6975582,431.79 ,Caysh Housing Project,23133,Peoples Services Directorate,Approved Lodgings,H323
http://opendatacommunities.org/id/london-borough-council/sutton,London Borough of Sutton,03/08/2020,6975583,"1,230.39 ",Caysh Housing Project,23133,Peoples Services Directorate,Approved Lodgings,H323
http://opendatacommunities.org/id/london-borough-council/sutton,London Borough of Sutton,08/07/2020,6975473,"14,000.00 ",CC2i Limited,35497,Peoples Services Directorate,Miscellaneous Expenses,F620
http://opendatacommunities.org/id/london-borough-council/sutton,London Borough of Sutton,20/08/2020,6976474,"10,000.00 ",Cedarwood property investments Ltd,99879,"Environment, Housing & Regeneration Directorate",Grants,F473
http://opendatacommunities.org/id/london-borough-council/sutton,London Borough of Sutton,10/08/2020,6975958,"1,561.00 ",Centro Residental Sales & Lettings LTD,99898,"Environment, Housing & Regeneration Directorate",Depositors,X460
http://opendatacommunities.org/id/london-borough-council/sutton,London Borough of Sutton,01/07/2020,40444184,"5,679.51 ",Channels & Choices Theraputic Fostering Ltd,25665,Peoples Services Directorate,Foster Parents,G326
http://opendatacommunities.org/id/london-borough-council/sutton,London Borough of Sutton,01/07/2020,40444185,"5,679.51 ",Channels & Choices Theraputic Fostering Ltd,25665,Peoples Services Directorate,Foster Parents,G326
http://opendatacommunities.org/id/london-borough-council/sutton,London Borough of Sutton,07/08/2020,40444532,"3,586.28 ",Charlton Park Care Home T/A Four Seasons (No 7) Ltd.,30290,Peoples Services Directorate,Nursing Care - Ext Provider,G311
http://opendatacommunities.org/id/london-borough-council/sutton,London Borough of Sutton,01/07/2020,40444177,"18,283.80 ",Chartwell Care Services Ltd,35398,Peoples Services Directorate,Residential Care-Children,G330
http://opendatacommunities.org/id/london-borough-council/sutton,London Borough of Sutton,25/08/2020,1297165,"2,240.00 ",Cheam Baptist Church Pre-School,10924,Peoples Services Directorate,Non-Maintained Childrens' Nurseries - 3 & 4 yr olds,G405
http://opendatacommunities.org/id/london-borough-council/sutton,London Borough of Sutton,17/08/2020,6976245,"1,000.00 ",Cheam Croquet and Bowls Club,99891,"Environment, Housing & Regeneration Directorate",Assistance to Voluntary Organisations,F471
http://opendatacommunities.org/id/london-borough-council/sutton,London Borough of Sutton,11/08/2020,6976091,780.00 ,Cheam Family Practice,10918,Chief Executive's Directorate,Provider Contract Payments,F470
http://opendatacommunities.org/id/london-borough-council/sutton,London Borough of Sutton,29/07/2020,1296659,450.00 ,Cheam High School (Academy),23996,Peoples Services Directorate,Top-up Funding,G064
http://opendatacommunities.org/id/london-borough-council/sutton,London Borough of Sutton,19/08/2020,6976455,"4,155.21 ",Cheam Park Farm Primary School (LEO Academy Trust),23882,Peoples Services Directorate,Fees - Consultants (Ad Hoc),F283
http://opendatacommunities.org/id/london-borough-council/sutton,London Borough of Sutton,20/08/2020,6976528,487.81 ,Cheam Park Farm Primary School (LEO Academy Trust),23882,Peoples Services Directorate,Fees - Consultants (Ad Hoc),F283
http://opendatacommunities.org/id/london-borough-council/sutton,London Borough of Sutton,31/07/2020,1296218,"22,945.23 ",Chegworth Nursing Home Bayswift Ltd,10908,Peoples Services Directorate,Contract Cleaning,D806
http://opendatacommunities.org/id/london-borough-council/sutton,London Borough of Sutton,06/08/2020,1296350,"4,747.63 ",Chegworth Nursing Home Bayswift Ltd,10908,Peoples Services Directorate,Contract Cleaning,D806
http://opendatacommunities.org/id/london-borough-council/sutton,London Borough of Sutton,07/08/2020,40444299,"34,812.69 ",Chegworth Nursing Home Bayswift Ltd,10908,Peoples Services Directorate,Nursing Care - Ext Provider,G311
http://opendatacommunities.org/id/london-borough-council/sutton,London Borough of Sutton,07/08/2020,40444394,"3,800.00 ",Chegworth Nursing Home Bayswift Ltd,10908,Peoples Services Directorate,Nursing Care - Ext Provider,G311
http://opendatacommunities.org/id/london-borough-council/sutton,London Borough of Sutton,07/08/2020,40444441,"2,441.33 ",Chegworth Nursing Home Bayswift Ltd,10908,Peoples Services Directorate,Nursing Care - Short Term Placements,G328
http://opendatacommunities.org/id/london-borough-council/sutton,London Borough of Sutton,07/08/2020,40444442,"2,800.00 ",Chegworth Nursing Home Bayswift Ltd,10908,Peoples Services Directorate,Nursing Care - Short Term Placements,G328
http://opendatacommunities.org/id/london-borough-council/sutton,London Borough of Sutton,07/08/2020,40444455,"3,746.52 ",Chegworth Nursing Home Bayswift Ltd,10908,Peoples Services Directorate,Nursing Care - Ext Provider,G311
http://opendatacommunities.org/id/london-borough-council/sutton,London Borough of Sutton,07/08/2020,40444456,"3,555.32 ",Chegworth Nursing Home Bayswift Ltd,10908,Peoples Services Directorate,Nursing Care - Ext Provider,G311
http://opendatacommunities.org/id/london-borough-council/sutton,London Borough of Sutton,07/08/2020,40444512,"3,555.32 ",Chegworth Nursing Home Bayswift Ltd,10908,Peoples Services Directorate,Nursing Care - Ext Provider,G311
http://opendatacommunities.org/id/london-borough-council/sutton,London Borough of Sutton,07/08/2020,40444557,"3,555.32 ",Chegworth Nursing Home Bayswift Ltd,10908,Peoples Services Directorate,Nursing Care - Ext Provider,G311
http://opendatacommunities.org/id/london-borough-council/sutton,London Borough of Sutton,07/08/2020,40444598,"3,555.32 ",Chegworth Nursing Home Bayswift Ltd,10908,Peoples Services Directorate,Nursing Care - Ext Provider,G311
http://opendatacommunities.org/id/london-borough-council/sutton,London Borough of Sutton,07/08/2020,40444636,"4,800.00 ",Chegworth Nursing Home Bayswift Ltd,10908,Peoples Services Directorate,Nursing Care - Short Term Placements,G328
http://opendatacommunities.org/id/london-borough-council/sutton,London Borough of Sutton,31/07/2020,6975767,"6,339.40 ",Chelsea and Westminster NHS ft,28891,Chief Executive's Directorate,Provider Contract Payments,F470
http://opendatacommunities.org/id/london-borough-council/sutton,London Borough of Sutton,01/05/2020,6975805,"6,339.40 ",Chelsea and Westminster NHS ft,28891,Chief Executive's Directorate,Provider Contract Payments,F470
http://opendatacommunities.org/id/london-borough-council/sutton,London Borough of Sutton,31/05/2020,6975913,"6,339.40 ",Chelsea and Westminster NHS ft,28891,Chief Executive's Directorate,Provider Contract Payments,F470
http://opendatacommunities.org/id/london-borough-council/sutton,London Borough of Sutton,12/08/2020,6976110,"(1,841.88)",Chelsea and Westminster NHS ft,28891,Chief Executive's Directorate,Provider Contract Payments,F470
http://opendatacommunities.org/id/london-borough-council/sutton,London Borough of Sutton,14/08/2020,6976201,"13,725.00 ",Chelsea Studios Ltd,32128,"Environment, Housing & Regeneration Directorate",Temporary Protection - Homeless Persons,H300
http://opendatacommunities.org/id/london-borough-council/sutton,London Borough of Sutton,02/08/2020,40442832,441.00 ,Chenash Homecare Specialists And Care Agency,25667,Peoples Services Directorate,Home Care,G334
http://opendatacommunities.org/id/london-borough-council/sutton,London Borough of Sutton,09/08/2020,40444816,441.00 ,Chenash Homecare Specialists And Care Agency,25667,Peoples Services Directorate,Home Care,G334
http://opendatacommunities.org/id/london-borough-council/sutton,London Borough of Sutton,16/08/2020,40446113,441.00 ,Chenash Homecare Specialists And Care Agency,25667,Peoples Services Directorate,Home Care,G334
http://opendatacommunities.org/id/london-borough-council/sutton,London Borough of Sutton,23/08/2020,40450292,441.00 ,Chenash Homecare Specialists And Care Agency,25667,Peoples Services Directorate,Home Care,G334
http://opendatacommunities.org/id/london-borough-council/sutton,London Borough of Sutton,07/08/2020,40444282,"3,360.00 ",Cherry Lodge,10934,Peoples Services Directorate,Residential Care - Ext Provider,G310
http://opendatacommunities.org/id/london-borough-council/sutton,London Borough of Sutton,07/08/2020,40444607,"2,790.40 ",Cherry Lodge,10934,Peoples Services Directorate,Residential Care - Ext Provider,G310
http://opendatacommunities.org/id/london-borough-council/sutton,London Borough of Sutton,31/07/2020,1296209,"32,016.60 ",CHHG Ltd T/A Belmont House,29991,Peoples Services Directorate,Contract Cleaning,D806
http://opendatacommunities.org/id/london-borough-council/sutton,London Borough of Sutton,06/08/2020,1296341,"6,624.61 ",CHHG Ltd T/A Belmont House,29991,Peoples Services Directorate,Contract Cleaning,D806
http://opendatacommunities.org/id/london-borough-council/sutton,London Borough of Sutton,07/08/2020,40444530,"4,800.00 ",CHHG Ltd T/A Belmont House,29991,Peoples Services Directorate,Nursing Care - Ext Provider,G311
http://opendatacommunities.org/id/london-borough-council/sutton,London Borough of Sutton,07/08/2020,40444435,"6,356.00 ",CHHG Ltd t/a Cranmer Court,22562,Peoples Services Directorate,Nursing Care - Ext Provider,G311
http://opendatacommunities.org/id/london-borough-council/sutton,London Borough of Sutton,01/07/2020,40444132,"3,385.20 ",Children of Colour,16870,Peoples Services Directorate,Foster Parents,G326
http://opendatacommunities.org/id/london-borough-council/sutton,London Borough of Sutton,01/07/2020,40444150,"3,472.00 ",Children of Colour,16870,Peoples Services Directorate,Foster Parents,G326
http://opendatacommunities.org/id/london-borough-council/sutton,London Borough of Sutton,20/07/2020,40444228,"16,272.52 ",Children's Trust,10927,Peoples Services Directorate,Residential Care-Children,G330
http://opendatacommunities.org/id/london-borough-council/sutton,London Borough of Sutton,31/07/2020,1296231,"4,268.88 ",Choice Care Group (Surrey) Ltd,22029,Peoples Services Directorate,Contract Cleaning,D806
http://opendatacommunities.org/id/london-borough-council/sutton,London Borough of Sutton,06/08/2020,1296363,883.28 ,Choice Care Group (Surrey) Ltd,22029,Peoples Services Directorate,Contract Cleaning,D806
http://opendatacommunities.org/id/london-borough-council/sutton,London Borough of Sutton,07/08/2020,40444437,"7,511.00 ",Choice Care Group (Surrey) Ltd,22029,Peoples Services Directorate,Residential Care - Ext Provider,G310
http://opendatacommunities.org/id/london-borough-council/sutton,London Borough of Sutton,07/08/2020,40444438,"7,526.32 ",Choice Care Group (Surrey) Ltd,22029,Peoples Services Directorate,Residential Care - Ext Provider,G310
http://opendatacommunities.org/id/london-borough-council/sutton,London Borough of Sutton,07/08/2020,40444546,"7,240.00 ",Choice Care Group (Surrey) Ltd,22029,Peoples Services Directorate,Residential Care - Ext Provider,G310
http://opendatacommunities.org/id/london-borough-council/sutton,London Borough of Sutton,07/08/2020,40444587,"7,878.28 ",Choice Care Group (Surrey) Ltd,22029,Peoples Services Directorate,Residential Care - Ext Provider,G310
http://opendatacommunities.org/id/london-borough-council/sutton,London Borough of Sutton,31/07/2020,1296243,"2,668.05 ",Choice Support,12929,Peoples Services Directorate,Contract Cleaning,D806
http://opendatacommunities.org/id/london-borough-council/sutton,London Borough of Sutton,03/08/2020,1296276,960.00 ,Choice Support,12929,Peoples Services Directorate,Supported Living - Ext Provider,G306
http://opendatacommunities.org/id/london-borough-council/sutton,London Borough of Sutton,03/08/2020,1296277,720.00 ,Choice Support,12929,Peoples Services Directorate,Supported Living - Ext Provider,G306
http://opendatacommunities.org/id/london-borough-council/sutton,London Borough of Sutton,03/08/2020,1296278,960.00 ,Choice Support,12929,Peoples Services Directorate,Supported Living - Ext Provider,G306
http://opendatacommunities.org/id/london-borough-council/sutton,London Borough of Sutton,03/08/2020,1296279,960.00 ,Choice Support,12929,Peoples Services Directorate,Supported Living - Ext Provider,G306
http://opendatacommunities.org/id/london-borough-council/sutton,London Borough of Sutton,05/08/2020,1296329,"5,000.00 ",Choice Support,12929,Peoples Services Directorate,Supported Living - Ext Provider,G306
http://opendatacommunities.org/id/london-borough-council/sutton,London Borough of Sutton,06/08/2020,1296375,552.05 ,Choice Support,12929,Peoples Services Directorate,Contract Cleaning,D806
http://opendatacommunities.org/id/london-borough-council/sutton,London Borough of Sutton,11/08/2020,1296590,560.00 ,Choice Support,12929,Peoples Services Directorate,Supported Living - Ext Provider,G306
http://opendatacommunities.org/id/london-borough-council/sutton,London Borough of Sutton,11/08/2020,1296591,420.00 ,Choice Support,12929,Peoples Services Directorate,Supported Living - Ext Provider,G306
http://opendatacommunities.org/id/london-borough-council/sutton,London Borough of Sutton,11/08/2020,1296592,560.00 ,Choice Support,12929,Peoples Services Directorate,Supported Living - Ext Provider,G306
http://opendatacommunities.org/id/london-borough-council/sutton,London Borough of Sutton,11/08/2020,1296593,560.00 ,Choice Support,12929,Peoples Services Directorate,Supported Living - Ext Provider,G306
http://opendatacommunities.org/id/london-borough-council/sutton,London Borough of Sutton,07/08/2020,40444440,"5,509.00 ",Choice Support,12929,Peoples Services Directorate,Residential Care - Ext Provider,G310
http://opendatacommunities.org/id/london-borough-council/sutton,London Borough of Sutton,20/08/2020,40449022,"2,420.13 ",Choice Support,12929,Peoples Services Directorate,Supported Living - Ext Provider,G306
http://opendatacommunities.org/id/london-borough-council/sutton,London Borough of Sutton,20/08/2020,40449022,"1,688.53 ",Choice Support,12929,Peoples Services Directorate,Supported Living - Ext Provider,G306
http://opendatacommunities.org/id/london-borough-council/sutton,London Borough of Sutton,20/08/2020,40449024,"2,946.24 ",Choice Support,12929,Peoples Services Directorate,Supported Living - Ext Provider,G306
http://opendatacommunities.org/id/london-borough-council/sutton,London Borough of Sutton,20/08/2020,40449024,"1,192.53 ",Choice Support,12929,Peoples Services Directorate,Supported Living - Ext Provider,G306
http://opendatacommunities.org/id/london-borough-council/sutton,London Borough of Sutton,20/08/2020,40449025,"2,665.65 ",Choice Support,12929,Peoples Services Directorate,Supported Living - Ext Provider,G306
http://opendatacommunities.org/id/london-borough-council/sutton,London Borough of Sutton,20/08/2020,40449025,"1,697.83 ",Choice Support,12929,Peoples Services Directorate,Supported Living - Ext Provider,G306
http://opendatacommunities.org/id/london-borough-council/sutton,London Borough of Sutton,20/08/2020,40449026,"2,490.27 ",Choice Support,12929,Peoples Services Directorate,Supported Living - Ext Provider,G306
http://opendatacommunities.org/id/london-borough-council/sutton,London Borough of Sutton,20/08/2020,40449026,"1,697.83 ",Choice Support,12929,Peoples Services Directorate,Supported Living - Ext Provider,G306
http://opendatacommunities.org/id/london-borough-council/sutton,London Borough of Sutton,20/08/2020,40449027,"5,190.99 ",Choice Support,12929,Peoples Services Directorate,Supported Living - Ext Provider,G306
http://opendatacommunities.org/id/london-borough-council/sutton,London Borough of Sutton,20/08/2020,40449027,"1,697.83 ",Choice Support,12929,Peoples Services Directorate,Supported Living - Ext Provider,G306
http://opendatacommunities.org/id/london-borough-council/sutton,London Borough of Sutton,20/08/2020,40449028,"3,675.09 ",Choice Support,12929,Peoples Services Directorate,Supported Living - Ext Provider,G306
http://opendatacommunities.org/id/london-borough-council/sutton,London Borough of Sutton,20/08/2020,40449028,574.87 ,Choice Support,12929,Peoples Services Directorate,Supported Living - Ext Provider,G306
http://opendatacommunities.org/id/london-borough-council/sutton,London Borough of Sutton,20/08/2020,40449033,"2,490.27 ",Choice Support,12929,Peoples Services Directorate,Supported Living - Ext Provider,G306
http://opendatacommunities.org/id/london-borough-council/sutton,London Borough of Sutton,20/08/2020,40449033,"1,697.83 ",Choice Support,12929,Peoples Services Directorate,Supported Living - Ext Provider,G306
http://opendatacommunities.org/id/london-borough-council/sutton,London Borough of Sutton,20/08/2020,40449034,"2,735.79 ",Choice Support,12929,Peoples Services Directorate,Supported Living - Ext Provider,G306
http://opendatacommunities.org/id/london-borough-council/sutton,London Borough of Sutton,20/08/2020,40449034,"1,697.83 ",Choice Support,12929,Peoples Services Directorate,Supported Living - Ext Provider,G306
http://opendatacommunities.org/id/london-borough-council/sutton,London Borough of Sutton,20/08/2020,40449035,"2,349.98 ",Choice Support,12929,Peoples Services Directorate,Supported Living - Ext Provider,G306
http://opendatacommunities.org/id/london-borough-council/sutton,London Borough of Sutton,20/08/2020,40449035,484.53 ,Choice Support,12929,Peoples Services Directorate,Supported Living - Ext Provider,G306
http://opendatacommunities.org/id/london-borough-council/sutton,London Borough of Sutton,20/08/2020,40449035,"1,651.99 ",Choice Support,12929,Peoples Services Directorate,Supported Living - Ext Provider,G306
http://opendatacommunities.org/id/london-borough-council/sutton,London Borough of Sutton,20/08/2020,40449036,"2,285.45 ",Choice Support,12929,Peoples Services Directorate,Supported Living - Ext Provider,G306
http://opendatacommunities.org/id/london-borough-council/sutton,London Borough of Sutton,20/08/2020,40449036,484.53 ,Choice Support,12929,Peoples Services Directorate,Supported Living - Ext Provider,G306
http://opendatacommunities.org/id/london-borough-council/sutton,London Borough of Sutton,20/08/2020,40449036,"1,616.92 ",Choice Support,12929,Peoples Services Directorate,Supported Living - Ext Provider,G306
http://opendatacommunities.org/id/london-borough-council/sutton,London Borough of Sutton,20/08/2020,40449037,"5,165.04 ",Choice Support,12929,Peoples Services Directorate,Supported Living - Ext Provider,G306
http://opendatacommunities.org/id/london-borough-council/sutton,London Borough of Sutton,20/08/2020,40449037,446.13 ,Choice Support,12929,Peoples Services Directorate,Supported Living - Ext Provider,G306
http://opendatacommunities.org/id/london-borough-council/sutton,London Borough of Sutton,20/08/2020,40449038,"6,281.75 ",Choice Support,12929,Peoples Services Directorate,Supported Living - Ext Provider,G306
http://opendatacommunities.org/id/london-borough-council/sutton,London Borough of Sutton,20/08/2020,40449038,949.93 ,Choice Support,12929,Peoples Services Directorate,Supported Living - Ext Provider,G306
http://opendatacommunities.org/id/london-borough-council/sutton,London Borough of Sutton,20/08/2020,40449044,"1,999.23 ",Choice Support,12929,Peoples Services Directorate,Supported Living - Ext Provider,G306
http://opendatacommunities.org/id/london-borough-council/sutton,London Borough of Sutton,20/08/2020,40449044,"1,052.23 ",Choice Support,12929,Peoples Services Directorate,Supported Living - Ext Provider,G306
http://opendatacommunities.org/id/london-borough-council/sutton,London Borough of Sutton,20/08/2020,40449045,"4,068.62 ",Choice Support,12929,Peoples Services Directorate,Supported Living - Ext Provider,G306
http://opendatacommunities.org/id/london-borough-council/sutton,London Borough of Sutton,20/08/2020,40449045,"1,688.53 ",Choice Support,12929,Peoples Services Directorate,Supported Living - Ext Provider,G306
http://opendatacommunities.org/id/london-borough-council/sutton,London Borough of Sutton,20/08/2020,40449046,"4,068.62 ",Choice Support,12929,Peoples Services Directorate,Supported Living - Ext Provider,G306
http://opendatacommunities.org/id/london-borough-council/sutton,London Borough of Sutton,20/08/2020,40449046,872.47 ,Choice Support,12929,Peoples Services Directorate,Supported Living - Ext Provider,G306
http://opendatacommunities.org/id/london-borough-council/sutton,London Borough of Sutton,20/08/2020,40449048,"3,928.32 ",Choice Support,12929,Peoples Services Directorate,Supported Living - Ext Provider,G306
http://opendatacommunities.org/id/london-borough-council/sutton,London Borough of Sutton,20/08/2020,40449048,"1,688.53 ",Choice Support,12929,Peoples Services Directorate,Supported Living - Ext Provider,G306
http://opendatacommunities.org/id/london-borough-council/sutton,London Borough of Sutton,20/08/2020,40449049,"3,156.69 ",Choice Support,12929,Peoples Services Directorate,Supported Living - Ext Provider,G306
http://opendatacommunities.org/id/london-borough-council/sutton,London Borough of Sutton,20/08/2020,40449049,"1,697.83 ",Choice Support,12929,Peoples Services Directorate,Supported Living - Ext Provider,G306
http://opendatacommunities.org/id/london-borough-council/sutton,London Borough of Sutton,20/08/2020,40449050,"3,402.21 ",Choice Support,12929,Peoples Services Directorate,Supported Living - Ext Provider,G306
http://opendatacommunities.org/id/london-borough-council/sutton,London Borough of Sutton,20/08/2020,40449050,"1,688.53 ",Choice Support,12929,Peoples Services Directorate,Supported Living - Ext Provider,G306
http://opendatacommunities.org/id/london-borough-council/sutton,London Borough of Sutton,20/08/2020,40449057,"1,402.97 ",Choice Support,12929,Peoples Services Directorate,Supported Living - Ext Provider,G306
http://opendatacommunities.org/id/london-borough-council/sutton,London Borough of Sutton,20/08/2020,40449057,"2,400.46 ",Choice Support,12929,Peoples Services Directorate,Supported Living - Ext Provider,G306
http://opendatacommunities.org/id/london-borough-council/sutton,London Borough of Sutton,20/08/2020,40449057,484.53 ,Choice Support,12929,Peoples Services Directorate,Supported Living - Ext Provider,G306
http://opendatacommunities.org/id/london-borough-council/sutton,London Borough of Sutton,20/08/2020,40449058,"2,951.42 ",Choice Support,12929,Peoples Services Directorate,Supported Living - Ext Provider,G306
http://opendatacommunities.org/id/london-borough-council/sutton,London Borough of Sutton,20/08/2020,40449058,"1,688.53 ",Choice Support,12929,Peoples Services Directorate,Supported Living - Ext Provider,G306
http://opendatacommunities.org/id/london-borough-council/sutton,London Borough of Sutton,20/08/2020,40449059,"2,791.90 ",Choice Support,12929,Peoples Services Directorate,Supported Living - Ext Provider,G306
http://opendatacommunities.org/id/london-borough-council/sutton,London Borough of Sutton,20/08/2020,40449059,"1,431.05 ",Choice Support,12929,Peoples Services Directorate,Supported Living - Ext Provider,G306
http://opendatacommunities.org/id/london-borough-council/sutton,London Borough of Sutton,20/08/2020,40449059,872.47 ,Choice Support,12929,Peoples Services Directorate,Supported Living - Ext Provider,G306
http://opendatacommunities.org/id/london-borough-council/sutton,London Borough of Sutton,20/08/2020,40449060,"2,112.43 ",Choice Support,12929,Peoples Services Directorate,Supported Living - Ext Provider,G306
http://opendatacommunities.org/id/london-borough-council/sutton,London Borough of Sutton,20/08/2020,40449060,484.53 ,Choice Support,12929,Peoples Services Directorate,Supported Living - Ext Provider,G306
http://opendatacommunities.org/id/london-borough-council/sutton,London Borough of Sutton,20/08/2020,40449060,"1,881.43 ",Choice Support,12929,Peoples Services Directorate,Supported Living - Ext Provider,G306
http://opendatacommunities.org/id/london-borough-council/sutton,London Borough of Sutton,20/08/2020,40449061,"2,665.65 ",Choice Support,12929,Peoples Services Directorate,Supported Living - Ext Provider,G306
http://opendatacommunities.org/id/london-borough-council/sutton,London Borough of Sutton,20/08/2020,40449061,"1,697.83 ",Choice Support,12929,Peoples Services Directorate,Supported Living - Ext Provider,G306
http://opendatacommunities.org/id/london-borough-council/sutton,London Borough of Sutton,20/08/2020,40449067,"2,314.90 ",Choice Support,12929,Peoples Services Directorate,Supported Living - Ext Provider,G306
http://opendatacommunities.org/id/london-borough-council/sutton,London Borough of Sutton,20/08/2020,40449067,484.53 ,Choice Support,12929,Peoples Services Directorate,Supported Living - Ext Provider,G306
http://opendatacommunities.org/id/london-borough-council/sutton,London Borough of Sutton,20/08/2020,40449067,"1,626.04 ",Choice Support,12929,Peoples Services Directorate,Supported Living - Ext Provider,G306
http://opendatacommunities.org/id/london-borough-council/sutton,London Borough of Sutton,20/08/2020,40449068,"3,156.69 ",Choice Support,12929,Peoples Services Directorate,Supported Living - Ext Provider,G306
http://opendatacommunities.org/id/london-borough-council/sutton,London Borough of Sutton,20/08/2020,40449068,"1,697.83 ",Choice Support,12929,Peoples Services Directorate,Supported Living - Ext Provider,G306
http://opendatacommunities.org/id/london-borough-council/sutton,London Borough of Sutton,20/08/2020,40449069,"2,069.38 ",Choice Support,12929,Peoples Services Directorate,Supported Living - Ext Provider,G306
http://opendatacommunities.org/id/london-borough-council/sutton,London Borough of Sutton,20/08/2020,40449069,"1,599.38 ",Choice Support,12929,Peoples Services Directorate,Supported Living - Ext Provider,G306
http://opendatacommunities.org/id/london-borough-council/sutton,London Borough of Sutton,20/08/2020,40449069,484.53 ,Choice Support,12929,Peoples Services Directorate,Supported Living - Ext Provider,G306
http://opendatacommunities.org/id/london-borough-council/sutton,London Borough of Sutton,31/07/2020,40450840,"1,589.60 ",Choice Support,12929,Peoples Services Directorate,Supported Living - Ext Provider,G306
http://opendatacommunities.org/id/london-borough-council/sutton,London Borough of Sutton,31/07/2020,40450840,633.82 ,Choice Support,12929,Peoples Services Directorate,Supported Living - Ext Provider,G306
http://opendatacommunities.org/id/london-borough-council/sutton,London Borough of Sutton,31/07/2020,40450840,"1,923.71 ",Choice Support,12929,Peoples Services Directorate,Supported Living - Ext Provider,G306
http://opendatacommunities.org/id/london-borough-council/sutton,London Borough of Sutton,31/07/2020,40450841,633.82 ,Choice Support,12929,Peoples Services Directorate,Supported Living - Ext Provider,G306
http://opendatacommunities.org/id/london-borough-council/sutton,London Borough of Sutton,31/07/2020,40450841,"6,097.16 ",Choice Support,12929,Peoples Services Directorate,Supported Living - Ext Provider,G306
http://opendatacommunities.org/id/london-borough-council/sutton,London Borough of Sutton,31/07/2020,40450842,"2,250.11 ",Choice Support,12929,Peoples Services Directorate,Supported Living - Ext Provider,G306
http://opendatacommunities.org/id/london-borough-council/sutton,London Borough of Sutton,31/07/2020,40450842,633.82 ,Choice Support,12929,Peoples Services Directorate,Supported Living - Ext Provider,G306
http://opendatacommunities.org/id/london-borough-council/sutton,London Borough of Sutton,31/07/2020,40450842,"1,451.68 ",Choice Support,12929,Peoples Services Directorate,Supported Living - Ext Provider,G306
http://opendatacommunities.org/id/london-borough-council/sutton,London Borough of Sutton,31/07/2020,40450843,"1,633.16 ",Choice Support,12929,Peoples Services Directorate,Supported Living - Ext Provider,G306
http://opendatacommunities.org/id/london-borough-council/sutton,London Borough of Sutton,31/07/2020,40450843,633.82 ,Choice Support,12929,Peoples Services Directorate,Supported Living - Ext Provider,G306
http://opendatacommunities.org/id/london-borough-council/sutton,London Borough of Sutton,31/07/2020,40450843,"1,705.93 ",Choice Support,12929,Peoples Services Directorate,Supported Living - Ext Provider,G306
http://opendatacommunities.org/id/london-borough-council/sutton,London Borough of Sutton,31/07/2020,40450844,887.35 ,Choice Support,12929,Peoples Services Directorate,Supported Living - Ext Provider,G306
http://opendatacommunities.org/id/london-borough-council/sutton,London Borough of Sutton,31/07/2020,40450844,"5,600.02 ",Choice Support,12929,Peoples Services Directorate,Supported Living - Ext Provider,G306
http://opendatacommunities.org/id/london-borough-council/sutton,London Borough of Sutton,31/07/2020,40450845,887.35 ,Choice Support,12929,Peoples Services Directorate,Supported Living - Ext Provider,G306
http://opendatacommunities.org/id/london-borough-council/sutton,London Borough of Sutton,31/07/2020,40450845,"5,621.72 ",Choice Support,12929,Peoples Services Directorate,Supported Living - Ext Provider,G306
http://opendatacommunities.org/id/london-borough-council/sutton,London Borough of Sutton,30/06/2020,40450846,"2,622.86 ",Choice Support,12929,Peoples Services Directorate,Supported Living - Ext Provider,G306
http://opendatacommunities.org/id/london-borough-council/sutton,London Borough of Sutton,30/06/2020,40450846,613.37 ,Choice Support,12929,Peoples Services Directorate,Supported Living - Ext Provider,G306
http://opendatacommunities.org/id/london-borough-council/sutton,London Borough of Sutton,30/06/2020,40450846,"1,510.33 ",Choice Support,12929,Peoples Services Directorate,Supported Living - Ext Provider,G306
http://opendatacommunities.org/id/london-borough-council/sutton,London Borough of Sutton,31/07/2020,40450847,887.35 ,Choice Support,12929,Peoples Services Directorate,Supported Living - Ext Provider,G306
http://opendatacommunities.org/id/london-borough-council/sutton,London Borough of Sutton,31/07/2020,40450848,887.35 ,Choice Support,12929,Peoples Services Directorate,Supported Living - Ext Provider,G306
http://opendatacommunities.org/id/london-borough-council/sutton,London Borough of Sutton,31/07/2020,40450848,"4,801.46 ",Choice Support,12929,Peoples Services Directorate,Supported Living - Ext Provider,G306
http://opendatacommunities.org/id/london-borough-council/sutton,London Borough of Sutton,31/07/2020,40450849,887.35 ,Choice Support,12929,Peoples Services Directorate,Supported Living - Ext Provider,G306
http://opendatacommunities.org/id/london-borough-council/sutton,London Borough of Sutton,31/07/2020,40450849,"5,237.01 ",Choice Support,12929,Peoples Services Directorate,Supported Living - Ext Provider,G306
http://opendatacommunities.org/id/london-borough-council/sutton,London Borough of Sutton,31/07/2020,40450850,"2,710.28 ",Choice Support,12929,Peoples Services Directorate,Supported Living - Ext Provider,G306
http://opendatacommunities.org/id/london-borough-council/sutton,London Borough of Sutton,31/07/2020,40450850,633.82 ,Choice Support,12929,Peoples Services Directorate,Supported Living - Ext Provider,G306
http://opendatacommunities.org/id/london-borough-council/sutton,London Borough of Sutton,31/07/2020,40450850,"1,560.67 ",Choice Support,12929,Peoples Services Directorate,Supported Living - Ext Provider,G306
http://opendatacommunities.org/id/london-borough-council/sutton,London Borough of Sutton,31/07/2020,40450851,"3,448.49 ",Choice Support,12929,Peoples Services Directorate,Supported Living - Ext Provider,G306
http://opendatacommunities.org/id/london-borough-council/sutton,London Borough of Sutton,31/07/2020,40450851,633.82 ,Choice Support,12929,Peoples Services Directorate,Supported Living - Ext Provider,G306
http://opendatacommunities.org/id/london-borough-council/sutton,London Borough of Sutton,31/07/2020,40450851,"3,019.74 ",Choice Support,12929,Peoples Services Directorate,Supported Living - Ext Provider,G306
http://opendatacommunities.org/id/london-borough-council/sutton,London Borough of Sutton,31/07/2020,40450852,887.35 ,Choice Support,12929,Peoples Services Directorate,Supported Living - Ext Provider,G306
http://opendatacommunities.org/id/london-borough-council/sutton,London Borough of Sutton,31/07/2020,40450852,"6,637.90 ",Choice Support,12929,Peoples Services Directorate,Supported Living - Ext Provider,G306
http://opendatacommunities.org/id/london-borough-council/sutton,London Borough of Sutton,24/08/2020,6976660,"1,355.76 ",CHOICES ESTATE AGENTS - LETTINGS,99898,"Environment, Housing & Regeneration Directorate",Depositors,X460
http://opendatacommunities.org/id/london-borough-council/sutton,London Borough of Sutton,24/08/2020,6976660,"1,175.00 ",CHOICES ESTATE AGENTS - LETTINGS,99898,"Environment, Housing & Regeneration Directorate",Depositors,X460
http://opendatacommunities.org/id/london-borough-council/sutton,London Borough of Sutton,28/06/2020,6975975,768.00 ,Christine Ryan,32360,"Environment, Housing & Regeneration Directorate",Temporary Protection - Homeless Persons,H300
http://opendatacommunities.org/id/london-borough-council/sutton,London Borough of Sutton,17/08/2020,6976270,"5,000.00 ",Christopher Lovett,99879,"Environment, Housing & Regeneration Directorate",Grants,F473
http://opendatacommunities.org/id/london-borough-council/sutton,London Borough of Sutton,08/08/2020,6976291,997.10 ,Christopher Millar,34823,"Environment, Housing & Regeneration Directorate",Temporary Protection - Homeless Persons,H300
http://opendatacommunities.org/id/london-borough-council/sutton,London Borough of Sutton,18/08/2020,6976368,"5,162.47 ",Chroma Vision Limited,20351,Resources Directorate,Building Works -Main Contractor,Y350
http://opendatacommunities.org/id/london-borough-council/sutton,London Borough of Sutton,18/08/2020,6976382,630.00 ,Chroma Vision Limited,20351,"Environment, Housing & Regeneration Directorate",IT Equipment - Repair and Maintenance,F382
http://opendatacommunities.org/id/london-borough-council/sutton,London Borough of Sutton,26/08/2020,6976841,"2,802.90 ",Chroma Vision Limited,20351,Resources Directorate,Contingency Fund,F600
http://opendatacommunities.org/id/london-borough-council/sutton,London Borough of Sutton,17/08/2020,6976293,"1,933.00 ",CIFAS,24260,Resources Directorate,Fees - Other,F299
http://opendatacommunities.org/id/london-borough-council/sutton,London Borough of Sutton,24/08/2020,6976691,"1,645.00 ",CIPFA Business Limited,12335,Resources Directorate,Subscriptions - General,F450
http://opendatacommunities.org/id/london-borough-council/sutton,London Borough of Sutton,07/08/2020,6975892,"5,323.23 ",City of London Corporation,22388,"Environment, Housing & Regeneration Directorate",Asbestos CA Disposal,G173
http://opendatacommunities.org/id/london-borough-council/sutton,London Borough of Sutton,10/08/2020,6975979,"16,957.00 ",City of London Corporation,22388,Chief Executive's Directorate,Provider Contract Payments,F470
http://opendatacommunities.org/id/london-borough-council/sutton,London Borough of Sutton,10/08/2020,6976058,"4,372.45 ",City of London Corporation,22388,Chief Executive's Directorate,Provider Contract Payments,F470
http://opendatacommunities.org/id/london-borough-council/sutton,London Borough of Sutton,11/08/2020,6976069,"4,332.90 ",City of London Corporation,22388,Chief Executive's Directorate,Provider Contract Payments,F470
http://opendatacommunities.org/id/london-borough-council/sutton,London Borough of Sutton,11/08/2020,6976071,"7,481.94 ",City of London Corporation,22388,Chief Executive's Directorate,Provider Contract Payments,F470
http://opendatacommunities.org/id/london-borough-council/sutton,London Borough of Sutton,11/08/2020,6976072,"6,676.50 ",City of London Corporation,22388,Chief Executive's Directorate,Provider Contract Payments,F470
http://opendatacommunities.org/id/london-borough-council/sutton,London Borough of Sutton,10/08/2020,6975941,"5,500.00 ",City Of Westminster,10968,Peoples Services Directorate,Approved Lodgings,H323
http://opendatacommunities.org/id/london-borough-council/sutton,London Borough of Sutton,25/08/2020,6976710,"369,592.00 ",City of Westminster,99827,"Environment, Housing & Regeneration Directorate",Agency Services,G431
http://opendatacommunities.org/id/london-borough-council/sutton,London Borough of Sutton,31/07/2020,6975668,"2,660.29 ",City Sprint UK (Excel) Ltd,26267,Chief Executive's Directorate,Hired Vehicles,E070
http://opendatacommunities.org/id/london-borough-council/sutton,London Borough of Sutton,01/06/2020,6973220,"8,686.00 ",Cityglen Ltd T/A Hytyme ltd,24115,"Environment, Housing & Regeneration Directorate",Bed and Breakfast Accommodation,G400
http://opendatacommunities.org/id/london-borough-council/sutton,London Borough of Sutton,01/07/2020,6975809,"3,273.00 ",Cityglen Ltd T/A Hytyme ltd,24115,"Environment, Housing & Regeneration Directorate",Bed and Breakfast Accommodation,G400
http://opendatacommunities.org/id/london-borough-council/sutton,London Borough of Sutton,10/08/2020,6975926,"1,290.00 ",Civica UK Ltd,10978,Resources Directorate,Fees - Computer Software,F384
http://opendatacommunities.org/id/london-borough-council/sutton,London Borough of Sutton,07/08/2020,40444393,"4,374.00 ",Claremont Care Svs Ltd,18724,Peoples Services Directorate,Nursing Care - Ext Provider,G311
http://opendatacommunities.org/id/london-borough-council/sutton,London Borough of Sutton,07/08/2020,40444555,"5,200.00 ",Claremont Care Svs Ltd,18724,Peoples Services Directorate,Nursing Care - Ext Provider,G311
http://opendatacommunities.org/id/london-borough-council/sutton,London Borough of Sutton,07/08/2020,40444597,"3,515.04 ",Claremont Care Svs Ltd,18724,Peoples Services Directorate,Nursing Care - Ext Provider,G311
http://opendatacommunities.org/id/london-borough-council/sutton,London Borough of Sutton,13/08/2020,1296888,689.58 ,Clarion Housing Association Ltd,32192,Peoples Services Directorate,Education Allowance,H321
http://opendatacommunities.org/id/london-borough-council/sutton,London Borough of Sutton,11/07/2020,6975349,950.00 ,Cleaner Greener Safer Happier Ltd,29981,"Environment, Housing & Regeneration Directorate",Fees - Consultants (Ad Hoc),F283
http://opendatacommunities.org/id/london-borough-council/sutton,London Borough of Sutton,30/07/2020,6975350,"9,300.00 ",Cleaner Greener Safer Happier Ltd,29981,"Environment, Housing & Regeneration Directorate",Fees - Consultants (Ad Hoc),F283
http://opendatacommunities.org/id/london-borough-council/sutton,London Borough of Sutton,27/07/2020,40446912,"6,333.60 ",Clear Thinking Care Limited,35437,Peoples Services Directorate,Supported Living - Ext Provider,G306
http://opendatacommunities.org/id/london-borough-council/sutton,London Borough of Sutton,10/08/2020,40446913,"6,333.60 ",Clear Thinking Care Limited,35437,Peoples Services Directorate,Supported Living - Ext Provider,G306
http://opendatacommunities.org/id/london-borough-council/sutton,London Borough of Sutton,20/07/2020,40446914,"6,333.60 ",Clear Thinking Care Limited,35437,Peoples Services Directorate,Supported Living - Ext Provider,G306
http://opendatacommunities.org/id/london-borough-council/sutton,London Borough of Sutton,13/07/2020,40446915,"6,333.60 ",Clear Thinking Care Limited,35437,Peoples Services Directorate,Supported Living - Ext Provider,G306
http://opendatacommunities.org/id/london-borough-council/sutton,London Borough of Sutton,06/07/2020,40446916,"6,333.60 ",Clear Thinking Care Limited,35437,Peoples Services Directorate,Supported Living - Ext Provider,G306
http://opendatacommunities.org/id/london-borough-council/sutton,London Borough of Sutton,03/08/2020,40446917,"6,333.60 ",Clear Thinking Care Limited,35437,Peoples Services Directorate,Supported Living - Ext Provider,G306
http://opendatacommunities.org/id/london-borough-council/sutton,London Borough of Sutton,17/08/2020,6976246,"1,000.00 ",Clockhouse Community Association,99891,"Environment, Housing & Regeneration Directorate",Assistance to Voluntary Organisations,F471
http://opendatacommunities.org/id/london-borough-council/sutton,London Borough of Sutton,14/08/2020,1296912,"1,680.00 ",Clovecare Ltd,33431,Peoples Services Directorate,Contract Cleaning,D806
http://opendatacommunities.org/id/london-borough-council/sutton,London Borough of Sutton,02/08/2020,40442777,469.00 ,Clovecare Ltd,33431,Peoples Services Directorate,Home Care,G334
http://opendatacommunities.org/id/london-borough-council/sutton,London Borough of Sutton,02/08/2020,40442779,416.50 ,Clovecare Ltd,33431,Peoples Services Directorate,Home Care,G334
http://opendatacommunities.org/id/london-borough-council/sutton,London Borough of Sutton,02/08/2020,40442781,419.00 ,Clovecare Ltd,33431,Peoples Services Directorate,Home Care,G334
http://opendatacommunities.org/id/london-borough-council/sutton,London Borough of Sutton,02/08/2020,40442846,460.25 ,Clovecare Ltd,33431,Peoples Services Directorate,Home Care,G334
http://opendatacommunities.org/id/london-borough-council/sutton,London Borough of Sutton,09/08/2020,40445089,469.00 ,Clovecare Ltd,33431,Peoples Services Directorate,Home Care,G334
http://opendatacommunities.org/id/london-borough-council/sutton,London Borough of Sutton,09/08/2020,40445119,416.50 ,Clovecare Ltd,33431,Peoples Services Directorate,Home Care,G334
http://opendatacommunities.org/id/london-borough-council/sutton,London Borough of Sutton,09/08/2020,40445122,419.00 ,Clovecare Ltd,33431,Peoples Services Directorate,Home Care,G334
http://opendatacommunities.org/id/london-borough-council/sutton,London Borough of Sutton,09/08/2020,40445255,813.75 ,Clovecare Ltd,33431,Peoples Services Directorate,Home Care,G334
http://opendatacommunities.org/id/london-borough-council/sutton,London Borough of Sutton,09/08/2020,40445263,460.25 ,Clovecare Ltd,33431,Peoples Services Directorate,Home Care,G334
http://opendatacommunities.org/id/london-borough-council/sutton,London Borough of Sutton,16/08/2020,40446119,813.75 ,Clovecare Ltd,33431,Peoples Services Directorate,Home Care,G334
http://opendatacommunities.org/id/london-borough-council/sutton,London Borough of Sutton,16/08/2020,40446126,460.25 ,Clovecare Ltd,33431,Peoples Services Directorate,Home Care,G334
http://opendatacommunities.org/id/london-borough-council/sutton,London Borough of Sutton,16/08/2020,40446138,469.00 ,Clovecare Ltd,33431,Peoples Services Directorate,Home Care,G334
http://opendatacommunities.org/id/london-borough-council/sutton,London Borough of Sutton,16/08/2020,40446140,416.50 ,Clovecare Ltd,33431,Peoples Services Directorate,Home Care,G334
http://opendatacommunities.org/id/london-borough-council/sutton,London Borough of Sutton,16/08/2020,40446142,419.00 ,Clovecare Ltd,33431,Peoples Services Directorate,Home Care,G334
http://opendatacommunities.org/id/london-borough-council/sutton,London Borough of Sutton,23/08/2020,40450298,813.75 ,Clovecare Ltd,33431,Peoples Services Directorate,Home Care,G334
http://opendatacommunities.org/id/london-borough-council/sutton,London Borough of Sutton,23/08/2020,40450315,460.25 ,Clovecare Ltd,33431,Peoples Services Directorate,Home Care,G334
http://opendatacommunities.org/id/london-borough-council/sutton,London Borough of Sutton,23/08/2020,40450342,469.00 ,Clovecare Ltd,33431,Peoples Services Directorate,Home Care,G334
http://opendatacommunities.org/id/london-borough-council/sutton,London Borough of Sutton,23/08/2020,40450354,416.50 ,Clovecare Ltd,33431,Peoples Services Directorate,Home Care,G334
http://opendatacommunities.org/id/london-borough-council/sutton,London Borough of Sutton,23/08/2020,40450356,419.00 ,Clovecare Ltd,33431,Peoples Services Directorate,Home Care,G334
http://opendatacommunities.org/id/london-borough-council/sutton,London Borough of Sutton,07/08/2020,40444639,"2,600.00 ",Cloyda Limited,20402,Peoples Services Directorate,Residential Care - Ext Provider,G310
http://opendatacommunities.org/id/london-borough-council/sutton,London Borough of Sutton,31/07/2020,1296212,"3,735.27 ",Cmg Homes Ltd,11026,Peoples Services Directorate,Contract Cleaning,D806
http://opendatacommunities.org/id/london-borough-council/sutton,London Borough of Sutton,31/07/2020,1296213,"2,668.05 ",Cmg Homes Ltd,11026,Peoples Services Directorate,Contract Cleaning,D806
http://opendatacommunities.org/id/london-borough-council/sutton,London Borough of Sutton,31/07/2020,1296214,"4,268.88 ",Cmg Homes Ltd,11026,Peoples Services Directorate,Contract Cleaning,D806
http://opendatacommunities.org/id/london-borough-council/sutton,London Borough of Sutton,31/07/2020,1296215,"3,201.66 ",Cmg Homes Ltd,11026,Peoples Services Directorate,Contract Cleaning,D806
http://opendatacommunities.org/id/london-borough-council/sutton,London Borough of Sutton,31/07/2020,1296216,"3,201.66 ",Cmg Homes Ltd,11026,Peoples Services Directorate,Contract Cleaning,D806
http://opendatacommunities.org/id/london-borough-council/sutton,London Borough of Sutton,31/07/2020,1296217,"3,735.27 ",Cmg Homes Ltd,11026,Peoples Services Directorate,Contract Cleaning,D806
http://opendatacommunities.org/id/london-borough-council/sutton,London Borough of Sutton,03/08/2020,1296275,600.00 ,Cmg Homes Ltd,11026,Peoples Services Directorate,Supported Living - Ext Provider,G306
http://opendatacommunities.org/id/london-borough-council/sutton,London Borough of Sutton,06/08/2020,1296344,772.87 ,Cmg Homes Ltd,11026,Peoples Services Directorate,Contract Cleaning,D806
http://opendatacommunities.org/id/london-borough-council/sutton,London Borough of Sutton,06/08/2020,1296345,552.05 ,Cmg Homes Ltd,11026,Peoples Services Directorate,Contract Cleaning,D806
http://opendatacommunities.org/id/london-borough-council/sutton,London Borough of Sutton,06/08/2020,1296346,883.28 ,Cmg Homes Ltd,11026,Peoples Services Directorate,Contract Cleaning,D806
http://opendatacommunities.org/id/london-borough-council/sutton,London Borough of Sutton,06/08/2020,1296347,662.46 ,Cmg Homes Ltd,11026,Peoples Services Directorate,Contract Cleaning,D806
http://opendatacommunities.org/id/london-borough-council/sutton,London Borough of Sutton,06/08/2020,1296348,662.46 ,Cmg Homes Ltd,11026,Peoples Services Directorate,Contract Cleaning,D806
http://opendatacommunities.org/id/london-borough-council/sutton,London Borough of Sutton,06/08/2020,1296349,772.87 ,Cmg Homes Ltd,11026,Peoples Services Directorate,Contract Cleaning,D806
http://opendatacommunities.org/id/london-borough-council/sutton,London Borough of Sutton,07/08/2020,40444463,"7,036.00 ",Cmg Homes Ltd,11026,Peoples Services Directorate,Residential Care - Ext Provider,G310
http://opendatacommunities.org/id/london-borough-council/sutton,London Borough of Sutton,07/08/2020,40444586,"5,416.92 ",Cmg Homes Ltd,11026,Peoples Services Directorate,Residential Care - Ext Provider,G310
http://opendatacommunities.org/id/london-borough-council/sutton,London Borough of Sutton,20/08/2020,40449029,"3,162.00 ",Cmg Homes Ltd,11026,Peoples Services Directorate,Supported Living - Ext Provider,G306
http://opendatacommunities.org/id/london-borough-council/sutton,London Borough of Sutton,20/08/2020,40449039,"3,662.43 ",Cmg Homes Ltd,11026,Peoples Services Directorate,Supported Living - Ext Provider,G306
http://opendatacommunities.org/id/london-borough-council/sutton,London Borough of Sutton,20/08/2020,40449040,"3,675.71 ",Cmg Homes Ltd,11026,Peoples Services Directorate,Supported Living - Ext Provider,G306
http://opendatacommunities.org/id/london-borough-council/sutton,London Borough of Sutton,20/08/2020,40449051,"4,592.43 ",Cmg Homes Ltd,11026,Peoples Services Directorate,Supported Living - Ext Provider,G306
http://opendatacommunities.org/id/london-borough-council/sutton,London Borough of Sutton,11/08/2020,6976016,"10,000.00 ",Coe Designs,99879,"Environment, Housing & Regeneration Directorate",Grants,F473
http://opendatacommunities.org/id/london-borough-council/sutton,London Borough of Sutton,07/08/2020,40444571,"7,568.70 ",Cognithan Ltd,29938,Peoples Services Directorate,Interim Placements - Ext Provider,G317
http://opendatacommunities.org/id/london-borough-council/sutton,London Borough of Sutton,01/08/2020,40450854,"1,806.99 ",Cognithan Ltd,29938,Peoples Services Directorate,Supported Living - Ext Provider,G306
http://opendatacommunities.org/id/london-borough-council/sutton,London Borough of Sutton,04/08/2020,6975658,"167,900.00 ",Cognus Ltd,26829,Peoples Services Directorate,Contractual Consultant Fees,G430
http://opendatacommunities.org/id/london-borough-council/sutton,London Borough of Sutton,04/08/2020,6975658,"198,600.00 ",Cognus Ltd,26829,Peoples Services Directorate,Contractual Consultant Fees,G430
http://opendatacommunities.org/id/london-borough-council/sutton,London Borough of Sutton,31/07/2020,6976353,"832,195.00 ",Cognus Ltd,26829,Peoples Services Directorate,Special Educational Needs,G331
http://opendatacommunities.org/id/london-borough-council/sutton,London Borough of Sutton,07/08/2020,40444357,"1,295.08 ",Coleg Elidyr Camphill Communities,28764,Peoples Services Directorate,Interim Placements - Ext Provider,G317
http://opendatacommunities.org/id/london-borough-council/sutton,London Borough of Sutton,29/07/2020,6975694,"39,396.00 ",Community Action Sutton,14439,Resources Directorate,Assistance to Voluntary Organisations,F471
http://opendatacommunities.org/id/london-borough-council/sutton,London Borough of Sutton,24/08/2020,6976618,"71,500.00 ",Community Action Sutton,14439,Resources Directorate,Assistance to Voluntary Organisations,F471
http://opendatacommunities.org/id/london-borough-council/sutton,London Borough of Sutton,24/08/2020,6976619,"49,328.00 ",Community Action Sutton,14439,Resources Directorate,Assistance to Voluntary Organisations,F471
http://opendatacommunities.org/id/london-borough-council/sutton,London Borough of Sutton,02/08/2020,40443152,577.50 ,Community Home Care Provider,11097,Peoples Services Directorate,Home Care,G334
http://opendatacommunities.org/id/london-borough-council/sutton,London Borough of Sutton,02/08/2020,40443225,918.75 ,Community Home Care Provider,11097,Peoples Services Directorate,Home Care,G334
http://opendatacommunities.org/id/london-borough-council/sutton,London Borough of Sutton,02/08/2020,40443235,437.50 ,Community Home Care Provider,11097,Peoples Services Directorate,Home Care,G334
http://opendatacommunities.org/id/london-borough-council/sutton,London Borough of Sutton,02/08/2020,40443251,551.25 ,Community Home Care Provider,11097,Peoples Services Directorate,Home Care,G334
http://opendatacommunities.org/id/london-borough-council/sutton,London Borough of Sutton,02/08/2020,40443252,542.50 ,Community Home Care Provider,11097,Peoples Services Directorate,Home Care,G334
http://opendatacommunities.org/id/london-borough-council/sutton,London Borough of Sutton,09/08/2020,40444723,551.25 ,Community Home Care Provider,11097,Peoples Services Directorate,Home Care,G334
http://opendatacommunities.org/id/london-borough-council/sutton,London Borough of Sutton,09/08/2020,40444724,542.50 ,Community Home Care Provider,11097,Peoples Services Directorate,Home Care,G334
http://opendatacommunities.org/id/london-borough-council/sutton,London Borough of Sutton,09/08/2020,40444739,577.50 ,Community Home Care Provider,11097,Peoples Services Directorate,Home Care,G334
http://opendatacommunities.org/id/london-borough-council/sutton,London Borough of Sutton,09/08/2020,40444809,918.75 ,Community Home Care Provider,11097,Peoples Services Directorate,Home Care,G334
http://opendatacommunities.org/id/london-borough-council/sutton,London Borough of Sutton,09/08/2020,40444830,612.50 ,Community Home Care Provider,11097,Peoples Services Directorate,Home Care,G334
http://opendatacommunities.org/id/london-borough-council/sutton,London Borough of Sutton,16/08/2020,40446545,918.75 ,Community Home Care Provider,11097,Peoples Services Directorate,Home Care,G334
http://opendatacommunities.org/id/london-borough-council/sutton,London Borough of Sutton,16/08/2020,40446555,612.50 ,Community Home Care Provider,11097,Peoples Services Directorate,Home Care,G334
http://opendatacommunities.org/id/london-borough-council/sutton,London Borough of Sutton,16/08/2020,40446571,551.25 ,Community Home Care Provider,11097,Peoples Services Directorate,Home Care,G334
http://opendatacommunities.org/id/london-borough-council/sutton,London Borough of Sutton,16/08/2020,40446572,542.50 ,Community Home Care Provider,11097,Peoples Services Directorate,Home Care,G334
http://opendatacommunities.org/id/london-borough-council/sutton,London Borough of Sutton,16/08/2020,40446581,577.50 ,Community Home Care Provider,11097,Peoples Services Directorate,Home Care,G334
http://opendatacommunities.org/id/london-borough-council/sutton,London Borough of Sutton,23/08/2020,40450668,918.75 ,Community Home Care Provider,11097,Peoples Services Directorate,Home Care,G334
http://opendatacommunities.org/id/london-borough-council/sutton,London Borough of Sutton,23/08/2020,40450692,612.50 ,Community Home Care Provider,11097,Peoples Services Directorate,Home Care,G334
http://opendatacommunities.org/id/london-borough-council/sutton,London Borough of Sutton,23/08/2020,40450715,551.25 ,Community Home Care Provider,11097,Peoples Services Directorate,Home Care,G334
http://opendatacommunities.org/id/london-borough-council/sutton,London Borough of Sutton,23/08/2020,40450716,542.50 ,Community Home Care Provider,11097,Peoples Services Directorate,Home Care,G334
http://opendatacommunities.org/id/london-borough-council/sutton,London Borough of Sutton,23/08/2020,40450737,577.50 ,Community Home Care Provider,11097,Peoples Services Directorate,Home Care,G334
http://opendatacommunities.org/id/london-borough-council/sutton,London Borough of Sutton,31/07/2020,1296668,"3,542.99 ",Compass Children's Homes Ltd,26810,Peoples Services Directorate,Independent Schools,G325
http://opendatacommunities.org/id/london-borough-council/sutton,London Borough of Sutton,01/07/2020,40444199,"20,991.34 ",Compass Children's Homes Ltd,26810,Peoples Services Directorate,Residential Care-Children,G330
http://opendatacommunities.org/id/london-borough-council/sutton,London Borough of Sutton,01/07/2020,40444163,"3,250.35 ",Compass Fostering Eastern Ltd,32193,Peoples Services Directorate,Foster Parents,G326
http://opendatacommunities.org/id/london-borough-council/sutton,London Borough of Sutton,01/07/2020,40444181,"3,480.11 ",Compass Fostering Eastern Ltd,32193,Peoples Services Directorate,Foster Parents,G326
http://opendatacommunities.org/id/london-borough-council/sutton,London Borough of Sutton,01/07/2020,40444182,"4,495.00 ",Compass Fostering Eastern Ltd,32193,Peoples Services Directorate,Foster Parents,G326
http://opendatacommunities.org/id/london-borough-council/sutton,London Borough of Sutton,01/07/2020,40444225,"3,454.02 ",Compass Fostering London Ltd,25848,Peoples Services Directorate,Foster Parents,G326
http://opendatacommunities.org/id/london-borough-council/sutton,London Borough of Sutton,01/07/2020,40444179,"4,054.49 ",Compass Fostering South Ltd,27957,Peoples Services Directorate,Foster Parents,G326
http://opendatacommunities.org/id/london-borough-council/sutton,London Borough of Sutton,01/07/2020,40444145,"3,454.02 ",Compass Fostering West Ltd,34686,Peoples Services Directorate,Foster Parents,G326
http://opendatacommunities.org/id/london-borough-council/sutton,London Borough of Sutton,31/07/2020,1296260,"4,802.49 ",Consensus Support Services Limited,35530,Peoples Services Directorate,Contract Cleaning,D806
http://opendatacommunities.org/id/london-borough-council/sutton,London Borough of Sutton,31/07/2020,1296266,"4,268.88 ",Consensus Support Services Limited,35530,Peoples Services Directorate,Contract Cleaning,D806
http://opendatacommunities.org/id/london-borough-council/sutton,London Borough of Sutton,06/08/2020,1296392,993.69 ,Consensus Support Services Limited,35530,Peoples Services Directorate,Contract Cleaning,D806
http://opendatacommunities.org/id/london-borough-council/sutton,London Borough of Sutton,06/08/2020,1296398,883.28 ,Consensus Support Services Limited,35530,Peoples Services Directorate,Contract Cleaning,D806
http://opendatacommunities.org/id/london-borough-council/sutton,London Borough of Sutton,31/07/2020,6975465,"6,175.00 ",Cornerstone Property Assets Limited,35046,Resources Directorate,Fees - Consultants (Ad Hoc),F283
http://opendatacommunities.org/id/london-borough-council/sutton,London Borough of Sutton,29/07/2020,6975309,"3,000.00 ",Cowdry Estates,99898,"Environment, Housing & Regeneration Directorate",Depositors,X460
http://opendatacommunities.org/id/london-borough-council/sutton,London Borough of Sutton,01/08/2020,6975556,"151,231.67 ",Cranstoun,11184,Chief Executive's Directorate,Provider Contract Payments,F470
http://opendatacommunities.org/id/london-borough-council/sutton,London Borough of Sutton,15/07/2020,6975628,483.17 ,Crest Manor Ltd,25469,Peoples Services Directorate,Approved Lodgings,H323
http://opendatacommunities.org/id/london-borough-council/sutton,London Borough of Sutton,31/07/2020,1296259,"21,344.40 ",CRNH Ltd T/A St Judes Nursing Home,14297,Peoples Services Directorate,Contract Cleaning,D806
http://opendatacommunities.org/id/london-borough-council/sutton,London Borough of Sutton,06/08/2020,1296391,"4,416.40 ",CRNH Ltd T/A St Judes Nursing Home,14297,Peoples Services Directorate,Contract Cleaning,D806
http://opendatacommunities.org/id/london-borough-council/sutton,London Borough of Sutton,07/08/2020,40444342,"4,070.40 ",CRNH Ltd T/A St Judes Nursing Home,14297,Peoples Services Directorate,Nursing Care - Ext Provider,G311
http://opendatacommunities.org/id/london-borough-council/sutton,London Borough of Sutton,07/08/2020,40444373,"3,556.00 ",CRNH Ltd T/A St Judes Nursing Home,14297,Peoples Services Directorate,Nursing Care - Ext Provider,G311
http://opendatacommunities.org/id/london-borough-council/sutton,London Borough of Sutton,07/08/2020,40444399,"3,586.28 ",CRNH Ltd T/A St Judes Nursing Home,14297,Peoples Services Directorate,Nursing Care - Ext Provider,G311
http://opendatacommunities.org/id/london-borough-council/sutton,London Borough of Sutton,07/08/2020,40444458,"3,502.08 ",CRNH Ltd T/A St Judes Nursing Home,14297,Peoples Services Directorate,Nursing Care - Ext Provider,G311
http://opendatacommunities.org/id/london-borough-council/sutton,London Borough of Sutton,07/08/2020,40444459,"3,555.32 ",CRNH Ltd T/A St Judes Nursing Home,14297,Peoples Services Directorate,Nursing Care - Ext Provider,G311
http://opendatacommunities.org/id/london-borough-council/sutton,London Borough of Sutton,07/08/2020,40444460,"3,612.00 ",CRNH Ltd T/A St Judes Nursing Home,14297,Peoples Services Directorate,Nursing Care - Ext Provider,G311
http://opendatacommunities.org/id/london-borough-council/sutton,London Borough of Sutton,07/08/2020,40444518,"2,908.16 ",CRNH Ltd T/A St Judes Nursing Home,14297,Peoples Services Directorate,Nursing Care - Ext Provider,G311
http://opendatacommunities.org/id/london-borough-council/sutton,London Borough of Sutton,07/08/2020,40444561,"22,043.59 ",CRNH Ltd T/A St Judes Nursing Home,14297,Peoples Services Directorate,Nursing Care - Ext Provider,G311
http://opendatacommunities.org/id/london-borough-council/sutton,London Borough of Sutton,07/08/2020,40444577,"3,612.00 ",CRNH Ltd T/A St Judes Nursing Home,14297,Peoples Services Directorate,Nursing Care - Ext Provider,G311
http://opendatacommunities.org/id/london-borough-council/sutton,London Borough of Sutton,07/08/2020,40444602,"3,872.00 ",CRNH Ltd T/A St Judes Nursing Home,14297,Peoples Services Directorate,Nursing Care - Ext Provider,G311
http://opendatacommunities.org/id/london-borough-council/sutton,London Borough of Sutton,31/07/2020,1296220,"21,344.40 ",Cross Care Services Ltd,12165,Peoples Services Directorate,Contract Cleaning,D806
http://opendatacommunities.org/id/london-borough-council/sutton,London Borough of Sutton,06/08/2020,1296352,"4,416.40 ",Cross Care Services Ltd,12165,Peoples Services Directorate,Contract Cleaning,D806
http://opendatacommunities.org/id/london-borough-council/sutton,London Borough of Sutton,07/08/2020,40444287,"6,125.72 ",Cross Care Services Ltd,12165,Peoples Services Directorate,Nursing Care - 3rd party top up payment,G360
http://opendatacommunities.org/id/london-borough-council/sutton,London Borough of Sutton,07/08/2020,40444288,"2,840.00 ",Cross Care Services Ltd,12165,Peoples Services Directorate,Nursing Care - Short Term Placements,G328
http://opendatacommunities.org/id/london-borough-council/sutton,London Borough of Sutton,07/08/2020,40444389,"1,806.00 ",Cross Care Services Ltd,12165,Peoples Services Directorate,Respite Care,G333
http://opendatacommunities.org/id/london-borough-council/sutton,London Borough of Sutton,07/08/2020,40444495,"3,171.44 ",Cross Care Services Ltd,12165,Peoples Services Directorate,Nursing Care - Ext Provider,G311
http://opendatacommunities.org/id/london-borough-council/sutton,London Borough of Sutton,07/08/2020,40444496,"3,612.00 ",Cross Care Services Ltd,12165,Peoples Services Directorate,Nursing Care - Ext Provider,G311
http://opendatacommunities.org/id/london-borough-council/sutton,London Borough of Sutton,07/08/2020,40444589,"1,161.00 ",Cross Care Services Ltd,12165,Peoples Services Directorate,Respite Care,G333
http://opendatacommunities.org/id/london-borough-council/sutton,London Borough of Sutton,07/08/2020,40444619,"3,502.08 ",Cross Care Services Ltd,12165,Peoples Services Directorate,Nursing Care - Ext Provider,G311
http://opendatacommunities.org/id/london-borough-council/sutton,London Borough of Sutton,07/08/2020,40444578,"2,634.68 ",Crossways Community,11187,Peoples Services Directorate,Residential Care - Ext Provider,G310
http://opendatacommunities.org/id/london-borough-council/sutton,London Borough of Sutton,07/08/2020,40444612,"4,168.24 ",Crossways Community,11187,Peoples Services Directorate,Residential Care - Ext Provider,G310
http://opendatacommunities.org/id/london-borough-council/sutton,London Borough of Sutton,26/06/2020,6974592,"18,278.48 ",Croydon Council,11227,"Environment, Housing & Regeneration Directorate",Gate Fee Tonnage,G105
http://opendatacommunities.org/id/london-borough-council/sutton,London Borough of Sutton,09/07/2020,6974978,"579,797.85 ",Croydon Council,11227,"Environment, Housing & Regeneration Directorate",Veolia - Contract Payment,G255
http://opendatacommunities.org/id/london-borough-council/sutton,London Borough of Sutton,09/07/2020,6974980,"229,716.93 ",Croydon Council,11227,"Environment, Housing & Regeneration Directorate",Gate Fee Tonnage,G105
http://opendatacommunities.org/id/london-borough-council/sutton,London Borough of Sutton,30/07/2020,6975705,"4,256.74 ",Croydon Council,11227,"Environment, Housing & Regeneration Directorate",Idverde - Contract Payment,G250
http://opendatacommunities.org/id/london-borough-council/sutton,London Borough of Sutton,30/07/2020,6975706,"3,511.65 ",Croydon Council,11227,"Environment, Housing & Regeneration Directorate",Idverde - Contract Payment,G250
http://opendatacommunities.org/id/london-borough-council/sutton,London Borough of Sutton,30/07/2020,6975707,"3,682.72 ",Croydon Council,11227,"Environment, Housing & Regeneration Directorate",Idverde - Contract Payment,G250
http://opendatacommunities.org/id/london-borough-council/sutton,London Borough of Sutton,30/07/2020,6975710,"125,796.16 ",Croydon Council,11227,"Environment, Housing & Regeneration Directorate",Idverde - Contract Payment,G250
http://opendatacommunities.org/id/london-borough-council/sutton,London Borough of Sutton,30/07/2020,6975711,"127,390.78 ",Croydon Council,11227,"Environment, Housing & Regeneration Directorate",Idverde - Contract Payment,G250
http://opendatacommunities.org/id/london-borough-council/sutton,London Borough of Sutton,30/07/2020,6975712,"185,109.78 ",Croydon Council,11227,"Environment, Housing & Regeneration Directorate",Idverde - Contract Payment,G250
http://opendatacommunities.org/id/london-borough-council/sutton,London Borough of Sutton,05/08/2020,6975846,"34,055.69 ",Croydon Council,11227,"Environment, Housing & Regeneration Directorate",Idverde - Contract Payment,G250
http://opendatacommunities.org/id/london-borough-council/sutton,London Borough of Sutton,07/08/2020,6976385,"18,000.00 ",Croydon Council,11227,Peoples Services Directorate,Other Services,F340
http://opendatacommunities.org/id/london-borough-council/sutton,London Borough of Sutton,30/07/2020,6975403,800.00 ,Croydon Estates,99898,"Environment, Housing & Regeneration Directorate",Depositors,X460
http://opendatacommunities.org/id/london-borough-council/sutton,London Borough of Sutton,30/07/2020,6975403,800.00 ,Croydon Estates,99898,"Environment, Housing & Regeneration Directorate",Depositors,X460
http://opendatacommunities.org/id/london-borough-council/sutton,London Borough of Sutton,11/06/2020,6972970,"15,025.61 ",Croydon Health Service NHST,26283,Chief Executive's Directorate,Provider Contract Payments,F470
http://opendatacommunities.org/id/london-borough-council/sutton,London Borough of Sutton,11/08/2020,6976020,"5,000.00 ",Crystalline Business Solutions limited,99879,"Environment, Housing & Regeneration Directorate",Grants,F473
http://opendatacommunities.org/id/london-borough-council/sutton,London Borough of Sutton,01/08/2020,6976472,713.72 ,CSL Dualcom Ltd,28014,Resources Directorate,FM - Planned Maintenance Contract - Mitie,G613
http://opendatacommunities.org/id/london-borough-council/sutton,London Borough of Sutton,07/08/2020,40444383,"7,200.00 ",CSS Ltd t/a Grove Care,19184,Peoples Services Directorate,Residential Care - Ext Provider,G310
http://opendatacommunities.org/id/london-borough-council/sutton,London Borough of Sutton,31/07/2020,1296219,"2,668.05 ",Curado Limited,35475,Peoples Services Directorate,Contract Cleaning,D806
http://opendatacommunities.org/id/london-borough-council/sutton,London Borough of Sutton,31/07/2020,1296239,"2,134.44 ",Curado Limited,35475,Peoples Services Directorate,Contract Cleaning,D806
http://opendatacommunities.org/id/london-borough-council/sutton,London Borough of Sutton,06/08/2020,1296351,552.05 ,Curado Limited,35475,Peoples Services Directorate,Contract Cleaning,D806
http://opendatacommunities.org/id/london-borough-council/sutton,London Borough of Sutton,06/08/2020,1296371,441.64 ,Curado Limited,35475,Peoples Services Directorate,Contract Cleaning,D806
http://opendatacommunities.org/id/london-borough-council/sutton,London Borough of Sutton,19/08/2020,6976419,"5,000.00 ",Custom Carpentry & construction Ltd,99879,"Environment, Housing & Regeneration Directorate",Grants,F473
http://opendatacommunities.org/id/london-borough-council/sutton,London Borough of Sutton,03/08/2020,6975808,746.00 ,D Karapinar,26474,"Environment, Housing & Regeneration Directorate",Temporary Protection - Homeless Persons,H300
http://opendatacommunities.org/id/london-borough-council/sutton,London Borough of Sutton,11/08/2019,6976317,457.06 ,Dariba Design LTD,99815,"Environment, Housing & Regeneration Directorate",Grants -Made,Y610
http://opendatacommunities.org/id/london-borough-council/sutton,London Borough of Sutton,10/08/2020,6976772,936.16 ,Dariba Design Ltd,99815,"Environment, Housing & Regeneration Directorate",Grants -Made,Y610
http://opendatacommunities.org/id/london-borough-council/sutton,London Borough of Sutton,19/08/2020,6976808,960.00 ,Dariba Design LTD,99815,"Environment, Housing & Regeneration Directorate",Grants -Made,Y610
http://opendatacommunities.org/id/london-borough-council/sutton,London Borough of Sutton,04/08/2020,6976511,"1,096.00 ",David Mcconnell,99898,"Environment, Housing & Regeneration Directorate",Depositors,X460
http://opendatacommunities.org/id/london-borough-council/sutton,London Borough of Sutton,04/08/2020,6976511,990.00 ,David Mcconnell,99898,"Environment, Housing & Regeneration Directorate",Depositors,X460
http://opendatacommunities.org/id/london-borough-council/sutton,London Borough of Sutton,17/08/2020,6976347,"1,209.00 ",David V.  Randall,29122,"Environment, Housing & Regeneration Directorate",Temporary Protection - Homeless Persons,H300
http://opendatacommunities.org/id/london-borough-council/sutton,London Borough of Sutton,14/08/2020,1296902,"3,710.00 ",Day and Nite Services,26773,Peoples Services Directorate,Contract Cleaning,D806
http://opendatacommunities.org/id/london-borough-council/sutton,London Borough of Sutton,02/08/2020,40443065,424.00 ,Day and Nite Services,26773,Peoples Services Directorate,Home Care,G334
http://opendatacommunities.org/id/london-borough-council/sutton,London Borough of Sutton,02/08/2020,40443067,672.00 ,Day and Nite Services,26773,Peoples Services Directorate,Home Care,G334
http://opendatacommunities.org/id/london-borough-council/sutton,London Borough of Sutton,02/08/2020,40443095,560.00 ,Day and Nite Services,26773,Peoples Services Directorate,Home Care,G334
http://opendatacommunities.org/id/london-borough-council/sutton,London Borough of Sutton,02/08/2020,40443114,420.00 ,Day and Nite Services,26773,Peoples Services Directorate,Home Care,G334
http://opendatacommunities.org/id/london-borough-council/sutton,London Borough of Sutton,09/08/2020,40445080,560.00 ,Day and Nite Services,26773,Peoples Services Directorate,Home Care,G334
http://opendatacommunities.org/id/london-borough-council/sutton,London Borough of Sutton,09/08/2020,40445113,420.00 ,Day and Nite Services,26773,Peoples Services Directorate,Home Care,G334
http://opendatacommunities.org/id/london-borough-council/sutton,London Borough of Sutton,09/08/2020,40445223,424.00 ,Day and Nite Services,26773,Peoples Services Directorate,Home Care,G334
http://opendatacommunities.org/id/london-borough-council/sutton,London Borough of Sutton,09/08/2020,40445236,672.00 ,Day and Nite Services,26773,Peoples Services Directorate,Home Care,G334
http://opendatacommunities.org/id/london-borough-council/sutton,London Borough of Sutton,16/08/2020,40446582,424.00 ,Day and Nite Services,26773,Peoples Services Directorate,Home Care,G334
http://opendatacommunities.org/id/london-borough-council/sutton,London Borough of Sutton,16/08/2020,40446593,672.00 ,Day and Nite Services,26773,Peoples Services Directorate,Home Care,G334
http://opendatacommunities.org/id/london-borough-council/sutton,London Borough of Sutton,16/08/2020,40446611,560.00 ,Day and Nite Services,26773,Peoples Services Directorate,Home Care,G334
http://opendatacommunities.org/id/london-borough-council/sutton,London Borough of Sutton,16/08/2020,40446623,420.00 ,Day and Nite Services,26773,Peoples Services Directorate,Home Care,G334
http://opendatacommunities.org/id/london-borough-council/sutton,London Borough of Sutton,23/08/2020,40450698,424.00 ,Day and Nite Services,26773,Peoples Services Directorate,Home Care,G334
http://opendatacommunities.org/id/london-borough-council/sutton,London Borough of Sutton,23/08/2020,40450709,672.00 ,Day and Nite Services,26773,Peoples Services Directorate,Home Care,G334
http://opendatacommunities.org/id/london-borough-council/sutton,London Borough of Sutton,23/08/2020,40450745,560.00 ,Day and Nite Services,26773,Peoples Services Directorate,Home Care,G334
http://opendatacommunities.org/id/london-borough-council/sutton,London Borough of Sutton,23/08/2020,40450774,420.00 ,Day and Nite Services,26773,Peoples Services Directorate,Home Care,G334
http://opendatacommunities.org/id/london-borough-council/sutton,London Borough of Sutton,13/08/2020,6976174,"10,000.00 ",DB Services,99879,"Environment, Housing & Regeneration Directorate",Grants,F473
http://opendatacommunities.org/id/london-borough-council/sutton,London Borough of Sutton,13/05/2020,6976627,558.60 ,Denhan Property Services,28353,"Environment, Housing & Regeneration Directorate",Bed and Breakfast Accommodation,G400
http://opendatacommunities.org/id/london-borough-council/sutton,London Borough of Sutton,10/06/2020,6976830,"1,023.00 ",Denhan Property Services,28353,"Environment, Housing & Regeneration Directorate",Bed and Breakfast Accommodation,G400
http://opendatacommunities.org/id/london-borough-council/sutton,London Borough of Sutton,10/06/2020,6976831,"1,984.00 ",Denhan Property Services,28353,"Environment, Housing & Regeneration Directorate",Bed and Breakfast Accommodation,G400
http://opendatacommunities.org/id/london-borough-council/sutton,London Borough of Sutton,10/06/2020,6976832,"1,681.75 ",Denhan Property Services,28353,"Environment, Housing & Regeneration Directorate",Bed and Breakfast Accommodation,G400
http://opendatacommunities.org/id/london-borough-council/sutton,London Borough of Sutton,07/08/2020,40444414,"2,918.00 ",Denville Hall 2012,35324,Peoples Services Directorate,Residential Care - Ext Provider,G310
http://opendatacommunities.org/id/london-borough-council/sutton,London Borough of Sutton,06/12/2020,6972758,"8,190.00 ",Digital Catapult Services Ltd,32157,"Environment, Housing & Regeneration Directorate",Other Services,F340
http://opendatacommunities.org/id/london-borough-council/sutton,London Borough of Sutton,03/08/2020,1296280,480.00 ,Direct Care And Support Services,23268,Peoples Services Directorate,Supported Living - Ext Provider,G306
http://opendatacommunities.org/id/london-borough-council/sutton,London Borough of Sutton,05/06/2020,5018790,"(4,470.88)",Direct Care And Support Services,23268,Peoples Services Directorate,Supported Living - Ext Provider,G306
http://opendatacommunities.org/id/london-borough-council/sutton,London Borough of Sutton,20/07/2020,5018791,"(5,428.00)",Direct Care And Support Services,23268,Peoples Services Directorate,Supported Living - Ext Provider,G306
http://opendatacommunities.org/id/london-borough-council/sutton,London Borough of Sutton,05/06/2020,5018793,"(4,470.88)",Direct Care And Support Services,23268,Peoples Services Directorate,Supported Living - Ext Provider,G306
http://opendatacommunities.org/id/london-borough-council/sutton,London Borough of Sutton,13/08/2020,5018794,"4,265.44 ",Direct Care And Support Services,23268,Peoples Services Directorate,Supported Living - Ext Provider,G306
http://opendatacommunities.org/id/london-borough-council/sutton,London Borough of Sutton,13/08/2020,5018795,"(4,106.88)",Direct Care And Support Services,23268,Peoples Services Directorate,Supported Living - Ext Provider,G306
http://opendatacommunities.org/id/london-borough-council/sutton,London Borough of Sutton,13/08/2020,5018796,"(4,470.88)",Direct Care And Support Services,23268,Peoples Services Directorate,Supported Living - Ext Provider,G306
http://opendatacommunities.org/id/london-borough-council/sutton,London Borough of Sutton,02/08/2020,40443272,802.54 ,Direct Care And Support Services,23268,Peoples Services Directorate,Home Care,G334
http://opendatacommunities.org/id/london-borough-council/sutton,London Borough of Sutton,09/08/2020,40445505,802.54 ,Direct Care And Support Services,23268,Peoples Services Directorate,Home Care,G334
http://opendatacommunities.org/id/london-borough-council/sutton,London Borough of Sutton,05/06/2020,40445927,"4,470.88 ",Direct Care And Support Services,23268,Peoples Services Directorate,Supported Living - Ext Provider,G306
http://opendatacommunities.org/id/london-borough-council/sutton,London Borough of Sutton,20/07/2020,40445928,"5,428.00 ",Direct Care And Support Services,23268,Peoples Services Directorate,Supported Living - Ext Provider,G306
http://opendatacommunities.org/id/london-borough-council/sutton,London Borough of Sutton,05/06/2020,40445930,"4,470.88 ",Direct Care And Support Services,23268,Peoples Services Directorate,Supported Living - Ext Provider,G306
http://opendatacommunities.org/id/london-borough-council/sutton,London Borough of Sutton,13/08/2020,40445933,"4,470.88 ",Direct Care And Support Services,23268,Peoples Services Directorate,Supported Living - Ext Provider,G306
http://opendatacommunities.org/id/london-borough-council/sutton,London Borough of Sutton,13/08/2020,40445934,"4,106.88 ",Direct Care And Support Services,23268,Peoples Services Directorate,Supported Living - Ext Provider,G306
http://opendatacommunities.org/id/london-borough-council/sutton,London Borough of Sutton,05/06/2020,40445937,"4,470.88 ",Direct Care And Support Services,23268,Peoples Services Directorate,Supported Living - Ext Provider,G306
http://opendatacommunities.org/id/london-borough-council/sutton,London Borough of Sutton,30/06/2020,40445938,"5,428.00 ",Direct Care And Support Services,23268,Peoples Services Directorate,Supported Living - Ext Provider,G306
http://opendatacommunities.org/id/london-borough-council/sutton,London Borough of Sutton,05/06/2020,40445939,"4,470.88 ",Direct Care And Support Services,23268,Peoples Services Directorate,Supported Living - Ext Provider,G306
http://opendatacommunities.org/id/london-borough-council/sutton,London Borough of Sutton,20/07/2020,40445940,"5,428.00 ",Direct Care And Support Services,23268,Peoples Services Directorate,Supported Living - Ext Provider,G306
http://opendatacommunities.org/id/london-borough-council/sutton,London Borough of Sutton,13/08/2020,40445941,"4,458.78 ",Direct Care And Support Services,23268,Peoples Services Directorate,Supported Living - Ext Provider,G306
http://opendatacommunities.org/id/london-borough-council/sutton,London Borough of Sutton,05/06/2020,40445942,"4,470.88 ",Direct Care And Support Services,23268,Peoples Services Directorate,Supported Living - Ext Provider,G306
http://opendatacommunities.org/id/london-borough-council/sutton,London Borough of Sutton,13/08/2020,40445944,"4,106.88 ",Direct Care And Support Services,23268,Peoples Services Directorate,Supported Living - Ext Provider,G306
http://opendatacommunities.org/id/london-borough-council/sutton,London Borough of Sutton,13/08/2020,40445945,"4,470.88 ",Direct Care And Support Services,23268,Peoples Services Directorate,Supported Living - Ext Provider,G306
http://opendatacommunities.org/id/london-borough-council/sutton,London Borough of Sutton,13/08/2020,40445946,"4,106.88 ",Direct Care And Support Services,23268,Peoples Services Directorate,Supported Living - Ext Provider,G306
http://opendatacommunities.org/id/london-borough-council/sutton,London Borough of Sutton,16/08/2020,40446837,802.54 ,Direct Care And Support Services,23268,Peoples Services Directorate,Home Care,G334
http://opendatacommunities.org/id/london-borough-council/sutton,London Borough of Sutton,28/08/2019,40446908,"4,106.88 ",Direct Care And Support Services,23268,Peoples Services Directorate,Supported Living - Ext Provider,G306
http://opendatacommunities.org/id/london-borough-council/sutton,London Borough of Sutton,14/08/2020,40446918,"4,470.88 ",Direct Care And Support Services,23268,Peoples Services Directorate,Supported Living - Ext Provider,G306
http://opendatacommunities.org/id/london-borough-council/sutton,London Borough of Sutton,23/08/2020,40450240,802.54 ,Direct Care And Support Services,23268,Peoples Services Directorate,Home Care,G334
http://opendatacommunities.org/id/london-borough-council/sutton,London Borough of Sutton,01/08/2020,40450905,"7,669.20 ",Direct Care And Support Services,23268,Peoples Services Directorate,Supported Living - Ext Provider,G306
http://opendatacommunities.org/id/london-borough-council/sutton,London Borough of Sutton,01/08/2020,40450906,"2,232.44 ",Direct Care And Support Services,23268,Peoples Services Directorate,Supported Living - Ext Provider,G306
http://opendatacommunities.org/id/london-borough-council/sutton,London Borough of Sutton,01/08/2020,40450907,"1,570.80 ",Direct Care And Support Services,23268,Peoples Services Directorate,Supported Living - Ext Provider,G306
http://opendatacommunities.org/id/london-borough-council/sutton,London Borough of Sutton,01/08/2020,40450908,"2,204.16 ",Direct Care And Support Services,23268,Peoples Services Directorate,Supported Living - Ext Provider,G306
http://opendatacommunities.org/id/london-borough-council/sutton,London Borough of Sutton,01/08/2020,40450909,"3,496.00 ",Direct Care And Support Services,23268,Peoples Services Directorate,Supported Living - Ext Provider,G306
http://opendatacommunities.org/id/london-borough-council/sutton,London Borough of Sutton,01/08/2020,40450910,"2,256.24 ",Direct Care And Support Services,23268,Peoples Services Directorate,Supported Living - Ext Provider,G306
http://opendatacommunities.org/id/london-borough-council/sutton,London Borough of Sutton,01/08/2020,40450911,"5,514.48 ",Direct Care And Support Services,23268,Peoples Services Directorate,Supported Living - Ext Provider,G306
http://opendatacommunities.org/id/london-borough-council/sutton,London Borough of Sutton,01/08/2020,40450912,"4,062.24 ",Direct Care And Support Services,23268,Peoples Services Directorate,Supported Living - Ext Provider,G306
http://opendatacommunities.org/id/london-borough-council/sutton,London Borough of Sutton,01/08/2020,40450913,"2,450.00 ",Direct Care And Support Services,23268,Peoples Services Directorate,Supported Living - Ext Provider,G306
http://opendatacommunities.org/id/london-borough-council/sutton,London Borough of Sutton,01/08/2020,40450914,"1,299.48 ",Direct Care And Support Services,23268,Peoples Services Directorate,Supported Living - Ext Provider,G306
http://opendatacommunities.org/id/london-borough-council/sutton,London Borough of Sutton,01/08/2020,40450915,"2,128.28 ",Direct Care And Support Services,23268,Peoples Services Directorate,Supported Living - Ext Provider,G306
http://opendatacommunities.org/id/london-borough-council/sutton,London Borough of Sutton,01/08/2020,40450916,"2,116.80 ",Direct Care And Support Services,23268,Peoples Services Directorate,Supported Living - Ext Provider,G306
http://opendatacommunities.org/id/london-borough-council/sutton,London Borough of Sutton,01/08/2020,40450917,"3,132.80 ",Direct Care And Support Services,23268,Peoples Services Directorate,Supported Living - Ext Provider,G306
http://opendatacommunities.org/id/london-borough-council/sutton,London Borough of Sutton,11/08/2020,6976035,"5,000.00 ",Dolphin Day Nursery,99879,"Environment, Housing & Regeneration Directorate",Grants,F473
http://opendatacommunities.org/id/london-borough-council/sutton,London Borough of Sutton,05/08/2020,1296670,480.00 ,Dorchester Primary School,11376,Peoples Services Directorate,Top-up Funding,G064
http://opendatacommunities.org/id/london-borough-council/sutton,London Borough of Sutton,05/08/2020,6975736,"1,000.00 ",Dr Bilikisu A Alatishe,27008,"Environment, Housing & Regeneration Directorate",Temporary Protection - Homeless Persons,H300
http://opendatacommunities.org/id/london-borough-council/sutton,London Borough of Sutton,09/08/2020,6975894,"2,722.90 ",Dr Gbenga Sunday Asigo,26990,Peoples Services Directorate,Fees - Other,F299
http://opendatacommunities.org/id/london-borough-council/sutton,London Borough of Sutton,13/08/2020,6976173,"5,000.00 ",Drinko Ltd,99879,"Environment, Housing & Regeneration Directorate",Grants,F473
http://opendatacommunities.org/id/london-borough-council/sutton,London Borough of Sutton,05/08/2020,6975780,418.95 ,DSI Billing Services Ltd,17962,Resources Directorate,Postages - General,F350
http://opendatacommunities.org/id/london-borough-council/sutton,London Borough of Sutton,05/08/2020,6975780,418.95 ,DSI Billing Services Ltd,17962,Resources Directorate,Postages - General,F350
http://opendatacommunities.org/id/london-borough-council/sutton,London Borough of Sutton,19/08/2020,6976567,676.13 ,DSI Billing Services Ltd,17962,Resources Directorate,Postages - General,F350
http://opendatacommunities.org/id/london-borough-council/sutton,London Borough of Sutton,19/08/2020,6976567,676.13 ,DSI Billing Services Ltd,17962,Resources Directorate,Postages - General,F350
http://opendatacommunities.org/id/london-borough-council/sutton,London Borough of Sutton,15/06/2020,6974563,"3,712.50 ",Dunfield & Mead Ltd,28055,Peoples Services Directorate,Approved Lodgings,H323
http://opendatacommunities.org/id/london-borough-council/sutton,London Borough of Sutton,01/07/2020,6975379,"1,472.14 ",Dunfield & Mead Ltd,28055,Peoples Services Directorate,Approved Lodgings,H323
http://opendatacommunities.org/id/london-borough-council/sutton,London Borough of Sutton,01/07/2020,6975380,"3,417.85 ",Dunfield & Mead Ltd,28055,Peoples Services Directorate,Living Allowance,H322
http://opendatacommunities.org/id/london-borough-council/sutton,London Borough of Sutton,01/07/2020,6975381,"3,653.57 ",Dunfield & Mead Ltd,28055,Peoples Services Directorate,Approved Lodgings,H323
http://opendatacommunities.org/id/london-borough-council/sutton,London Borough of Sutton,01/07/2020,6975382,"1,387.85 ",Dunfield & Mead Ltd,28055,Peoples Services Directorate,Approved Lodgings,H323
http://opendatacommunities.org/id/london-borough-council/sutton,London Borough of Sutton,01/07/2020,6975383,"1,660.71 ",Dunfield & Mead Ltd,28055,Peoples Services Directorate,Approved Lodgings,H323
http://opendatacommunities.org/id/london-borough-council/sutton,London Borough of Sutton,01/07/2020,6975384,896.42 ,Dunfield & Mead Ltd,28055,Peoples Services Directorate,Approved Lodgings,H323
http://opendatacommunities.org/id/london-borough-council/sutton,London Borough of Sutton,01/07/2020,6975385,"3,653.57 ",Dunfield & Mead Ltd,28055,Peoples Services Directorate,Approved Lodgings,H323
http://opendatacommunities.org/id/london-borough-council/sutton,London Borough of Sutton,01/07/2020,6975386,"3,930.35 ",Dunfield & Mead Ltd,28055,Peoples Services Directorate,Living Allowance,H322
http://opendatacommunities.org/id/london-borough-council/sutton,London Borough of Sutton,01/07/2020,6975421,"3,930.35 ",Dunfield & Mead Ltd,28055,Peoples Services Directorate,Living Allowance,H322
http://opendatacommunities.org/id/london-borough-council/sutton,London Borough of Sutton,01/07/2020,6975423,"1,771.42 ",Dunfield & Mead Ltd,28055,Peoples Services Directorate,Approved Lodgings,H323
http://opendatacommunities.org/id/london-borough-council/sutton,London Borough of Sutton,01/07/2020,6975734,"1,314.28 ",Dunfield & Mead Ltd,28055,Peoples Services Directorate,Approved Lodgings,H323
http://opendatacommunities.org/id/london-borough-council/sutton,London Borough of Sutton,01/08/2020,6976339,514.28 ,Dunfield & Mead Ltd,28055,Peoples Services Directorate,Approved Lodgings,H323
http://opendatacommunities.org/id/london-borough-council/sutton,London Borough of Sutton,31/07/2020,40444120,"5,183.64 ",Dunfield & Mead Ltd,28055,Peoples Services Directorate,Approved Lodgings,H323
http://opendatacommunities.org/id/london-borough-council/sutton,London Borough of Sutton,31/07/2020,40444135,"3,930.35 ",Dunfield & Mead Ltd,28055,Peoples Services Directorate,Accommodation - Supported Living,H201
http://opendatacommunities.org/id/london-borough-council/sutton,London Borough of Sutton,31/07/2020,40444210,"3,930.35 ",Dunfield & Mead Ltd,28055,Peoples Services Directorate,Accommodation - Supported Living,H201
http://opendatacommunities.org/id/london-borough-council/sutton,London Borough of Sutton,31/07/2020,40444214,"3,575.00 ",Dunfield & Mead Ltd,28055,Peoples Services Directorate,Approved Lodgings,H323
http://opendatacommunities.org/id/london-borough-council/sutton,London Borough of Sutton,31/07/2020,40444267,"1,232.14 ",Dunfield & Mead Ltd,28055,Peoples Services Directorate,Approved Lodgings,H323
http://opendatacommunities.org/id/london-borough-council/sutton,London Borough of Sutton,07/08/2020,40444283,"3,071.92 ",Dunheved Lodge,11403,Peoples Services Directorate,Residential Care - Ext Provider,G310
http://opendatacommunities.org/id/london-borough-council/sutton,London Borough of Sutton,07/08/2020,40444283,"3,016.00 ",Dunheved Lodge,11403,Peoples Services Directorate,One to One Care,G335
http://opendatacommunities.org/id/london-borough-council/sutton,London Borough of Sutton,31/07/2020,6975618,"13,635.00 ",Dunheved Partnership Ltd,26353,"Environment, Housing & Regeneration Directorate",Bed and Breakfast Accommodation,G400
http://opendatacommunities.org/id/london-borough-council/sutton,London Borough of Sutton,31/03/2020,6976776,"4,559.00 ",Dunheved Partnership Ltd,26353,"Environment, Housing & Regeneration Directorate",Bed and Breakfast Accommodation,G400
http://opendatacommunities.org/id/london-borough-council/sutton,London Borough of Sutton,20/07/2020,6975912,"1,188.56 ",Dynamic Care Ltd,29928,Peoples Services Directorate,Approved Lodgings,H323
http://opendatacommunities.org/id/london-borough-council/sutton,London Borough of Sutton,20/08/2020,6976585,597.85 ,Dynamic Care Ltd,29928,Peoples Services Directorate,Approved Lodgings,H323
http://opendatacommunities.org/id/london-borough-council/sutton,London Borough of Sutton,20/08/2020,6976586,597.85 ,Dynamic Care Ltd,29928,Peoples Services Directorate,Approved Lodgings,H323
http://opendatacommunities.org/id/london-borough-council/sutton,London Borough of Sutton,20/08/2020,6976587,"1,151.42 ",Dynamic Care Ltd,29928,Peoples Services Directorate,Approved Lodgings,H323
http://opendatacommunities.org/id/london-borough-council/sutton,London Borough of Sutton,20/08/2020,6976588,"1,151.42 ",Dynamic Care Ltd,29928,Peoples Services Directorate,Approved Lodgings,H323
http://opendatacommunities.org/id/london-borough-council/sutton,London Borough of Sutton,01/08/2020,40444142,"3,819.64 ",Dynamic Care Ltd,29928,Peoples Services Directorate,Approved Lodgings,H323
http://opendatacommunities.org/id/london-borough-council/sutton,London Borough of Sutton,01/08/2020,40444142,553.56 ,Dynamic Care Ltd,29928,Peoples Services Directorate,Approved Lodgings,H323
http://opendatacommunities.org/id/london-borough-council/sutton,London Borough of Sutton,01/08/2020,40444156,"3,998.19 ",Dynamic Care Ltd,29928,Peoples Services Directorate,Approved Lodgings,H323
http://opendatacommunities.org/id/london-borough-council/sutton,London Borough of Sutton,01/08/2020,40444234,"5,480.34 ",Dynamic Care Ltd,29928,Peoples Services Directorate,Approved Lodgings,H323
http://opendatacommunities.org/id/london-borough-council/sutton,London Borough of Sutton,07/08/2020,40444611,728.57 ,East Coast Recovery Limited,28498,Peoples Services Directorate,Interim Placements - Ext Provider,G317
http://opendatacommunities.org/id/london-borough-council/sutton,London Borough of Sutton,07/08/2020,40444608,"3,379.20 ",Eastcroft Nursing Home,11420,Peoples Services Directorate,Nursing Care - Ext Provider,G311
http://opendatacommunities.org/id/london-borough-council/sutton,London Borough of Sutton,28/07/2020,6975626,"2,370.12 ",EDF Energy (Seeboard),13999,Resources Directorate,Electricity - General,D620
http://opendatacommunities.org/id/london-borough-council/sutton,London Borough of Sutton,28/07/2020,6975627,"(2,389.22)",EDF Energy (Seeboard),13999,Resources Directorate,Electricity - General,D620
http://opendatacommunities.org/id/london-borough-council/sutton,London Borough of Sutton,03/08/2020,6975853,472.86 ,EDF Energy (Seeboard),13999,"Environment, Housing & Regeneration Directorate",Electricity - General,D620
http://opendatacommunities.org/id/london-borough-council/sutton,London Borough of Sutton,04/08/2020,6975939,758.62 ,EDF Energy (Seeboard),13999,"Environment, Housing & Regeneration Directorate",Electricity - General,D620
http://opendatacommunities.org/id/london-borough-council/sutton,London Borough of Sutton,03/08/2020,6976381,854.24 ,EDF Energy (Seeboard),13999,"Environment, Housing & Regeneration Directorate",Electricity - General,D620
http://opendatacommunities.org/id/london-borough-council/sutton,London Borough of Sutton,07/08/2020,6976571,"5,788.96 ",EDF Energy (Seeboard),13999,HRA,Electricity - Anti Hypothermia Heating,D622
http://opendatacommunities.org/id/london-borough-council/sutton,London Borough of Sutton,07/08/2020,6976571,"(6,239.96)",EDF Energy (Seeboard),13999,HRA,Electricity - Anti Hypothermia Heating,D622
http://opendatacommunities.org/id/london-borough-council/sutton,London Borough of Sutton,07/08/2020,6976571,"3,538.28 ",EDF Energy (Seeboard),13999,HRA,Electricity - Anti Hypothermia Heating,D622
http://opendatacommunities.org/id/london-borough-council/sutton,London Borough of Sutton,24/06/2020,6974435,"1,052.97 ",EE Airtime,24846,Peoples Services Directorate,Telephones - Other Expenses,F373
http://opendatacommunities.org/id/london-borough-council/sutton,London Borough of Sutton,30/07/2020,6973956,"13,613.34 ",Eldercare,22163,Peoples Services Directorate,Equipment,H250
http://opendatacommunities.org/id/london-borough-council/sutton,London Borough of Sutton,30/07/2020,6973961,"1,135.81 ",Eldercare,22163,Peoples Services Directorate,Agency Services,G431
http://opendatacommunities.org/id/london-borough-council/sutton,London Borough of Sutton,31/07/2020,6975862,"1,213.60 ",Eldercare,22163,Peoples Services Directorate,Agency Services,G431
http://opendatacommunities.org/id/london-borough-council/sutton,London Borough of Sutton,31/07/2020,6975863,"20,132.40 ",Eldercare,22163,Peoples Services Directorate,Agency Services,G431
http://opendatacommunities.org/id/london-borough-council/sutton,London Borough of Sutton,31/07/2020,6975864,"17,604.71 ",Eldercare,22163,Peoples Services Directorate,Equipment,H250
http://opendatacommunities.org/id/london-borough-council/sutton,London Borough of Sutton,31/07/2020,6975956,"5,723.25 ",Eldercare,22163,Peoples Services Directorate,Agency Services,G431
http://opendatacommunities.org/id/london-borough-council/sutton,London Borough of Sutton,31/07/2020,6975957,"1,900.64 ",Eldercare,22163,Peoples Services Directorate,Agency Services,G431
http://opendatacommunities.org/id/london-borough-council/sutton,London Borough of Sutton,07/08/2020,40444637,"4,484.80 ",Eleanor Nursing & Social Care Ltd,25134,Peoples Services Directorate,Residential Care - Ext Provider,G310
http://opendatacommunities.org/id/london-borough-council/sutton,London Borough of Sutton,14/08/2020,1296900,"2,170.00 ",Elite CarePlus Ltd,26199,Peoples Services Directorate,Contract Cleaning,D806
http://opendatacommunities.org/id/london-borough-council/sutton,London Borough of Sutton,02/08/2020,40442855,672.00 ,Elite CarePlus Ltd,26199,Peoples Services Directorate,Home Care,G334
http://opendatacommunities.org/id/london-borough-council/sutton,London Borough of Sutton,02/08/2020,40442856,560.00 ,Elite CarePlus Ltd,26199,Peoples Services Directorate,Home Care,G334
http://opendatacommunities.org/id/london-borough-council/sutton,London Borough of Sutton,02/08/2020,40442857,656.00 ,Elite CarePlus Ltd,26199,Peoples Services Directorate,Home Care,G334
http://opendatacommunities.org/id/london-borough-council/sutton,London Borough of Sutton,02/08/2020,40442858,672.00 ,Elite CarePlus Ltd,26199,Peoples Services Directorate,Home Care,G334
http://opendatacommunities.org/id/london-borough-council/sutton,London Borough of Sutton,02/08/2020,40442860,784.00 ,Elite CarePlus Ltd,26199,Peoples Services Directorate,Home Care,G334
http://opendatacommunities.org/id/london-borough-council/sutton,London Borough of Sutton,02/08/2020,40442868,616.00 ,Elite CarePlus Ltd,26199,Peoples Services Directorate,Home Care,G334
http://opendatacommunities.org/id/london-borough-council/sutton,London Borough of Sutton,02/08/2020,40442890,480.00 ,Elite CarePlus Ltd,26199,Peoples Services Directorate,Home Care,G334
http://opendatacommunities.org/id/london-borough-council/sutton,London Borough of Sutton,02/08/2020,40442899,504.00 ,Elite CarePlus Ltd,26199,Peoples Services Directorate,Home Care,G334
http://opendatacommunities.org/id/london-borough-council/sutton,London Borough of Sutton,09/08/2020,40444877,480.00 ,Elite CarePlus Ltd,26199,Peoples Services Directorate,Home Care,G334
http://opendatacommunities.org/id/london-borough-council/sutton,London Borough of Sutton,09/08/2020,40444901,504.00 ,Elite CarePlus Ltd,26199,Peoples Services Directorate,Home Care,G334
http://opendatacommunities.org/id/london-borough-council/sutton,London Borough of Sutton,09/08/2020,40445024,672.00 ,Elite CarePlus Ltd,26199,Peoples Services Directorate,Home Care,G334
http://opendatacommunities.org/id/london-borough-council/sutton,London Borough of Sutton,09/08/2020,40445025,560.00 ,Elite CarePlus Ltd,26199,Peoples Services Directorate,Home Care,G334
http://opendatacommunities.org/id/london-borough-council/sutton,London Borough of Sutton,09/08/2020,40445030,656.00 ,Elite CarePlus Ltd,26199,Peoples Services Directorate,Home Care,G334
http://opendatacommunities.org/id/london-borough-council/sutton,London Borough of Sutton,09/08/2020,40445031,672.00 ,Elite CarePlus Ltd,26199,Peoples Services Directorate,Home Care,G334
http://opendatacommunities.org/id/london-borough-council/sutton,London Borough of Sutton,09/08/2020,40445033,784.00 ,Elite CarePlus Ltd,26199,Peoples Services Directorate,Home Care,G334
http://opendatacommunities.org/id/london-borough-council/sutton,London Borough of Sutton,09/08/2020,40445053,616.00 ,Elite CarePlus Ltd,26199,Peoples Services Directorate,Home Care,G334
http://opendatacommunities.org/id/london-borough-council/sutton,London Borough of Sutton,16/08/2020,40446405,672.00 ,Elite CarePlus Ltd,26199,Peoples Services Directorate,Home Care,G334
http://opendatacommunities.org/id/london-borough-council/sutton,London Borough of Sutton,16/08/2020,40446406,560.00 ,Elite CarePlus Ltd,26199,Peoples Services Directorate,Home Care,G334
http://opendatacommunities.org/id/london-borough-council/sutton,London Borough of Sutton,16/08/2020,40446407,656.00 ,Elite CarePlus Ltd,26199,Peoples Services Directorate,Home Care,G334
http://opendatacommunities.org/id/london-borough-council/sutton,London Borough of Sutton,16/08/2020,40446409,672.00 ,Elite CarePlus Ltd,26199,Peoples Services Directorate,Home Care,G334
http://opendatacommunities.org/id/london-borough-council/sutton,London Borough of Sutton,16/08/2020,40446411,784.00 ,Elite CarePlus Ltd,26199,Peoples Services Directorate,Home Care,G334
http://opendatacommunities.org/id/london-borough-council/sutton,London Borough of Sutton,16/08/2020,40446419,616.00 ,Elite CarePlus Ltd,26199,Peoples Services Directorate,Home Care,G334
http://opendatacommunities.org/id/london-borough-council/sutton,London Borough of Sutton,16/08/2020,40446440,480.00 ,Elite CarePlus Ltd,26199,Peoples Services Directorate,Home Care,G334
http://opendatacommunities.org/id/london-borough-council/sutton,London Borough of Sutton,16/08/2020,40446450,504.00 ,Elite CarePlus Ltd,26199,Peoples Services Directorate,Home Care,G334
http://opendatacommunities.org/id/london-borough-council/sutton,London Borough of Sutton,16/08/2020,40446453,448.00 ,Elite CarePlus Ltd,26199,Peoples Services Directorate,Home Care,G334
http://opendatacommunities.org/id/london-borough-council/sutton,London Borough of Sutton,23/08/2020,40450513,672.00 ,Elite CarePlus Ltd,26199,Peoples Services Directorate,Home Care,G334
http://opendatacommunities.org/id/london-borough-council/sutton,London Borough of Sutton,23/08/2020,40450514,560.00 ,Elite CarePlus Ltd,26199,Peoples Services Directorate,Home Care,G334
http://opendatacommunities.org/id/london-borough-council/sutton,London Borough of Sutton,23/08/2020,40450515,656.00 ,Elite CarePlus Ltd,26199,Peoples Services Directorate,Home Care,G334
http://opendatacommunities.org/id/london-borough-council/sutton,London Borough of Sutton,23/08/2020,40450523,672.00 ,Elite CarePlus Ltd,26199,Peoples Services Directorate,Home Care,G334
http://opendatacommunities.org/id/london-borough-council/sutton,London Borough of Sutton,23/08/2020,40450525,784.00 ,Elite CarePlus Ltd,26199,Peoples Services Directorate,Home Care,G334
http://opendatacommunities.org/id/london-borough-council/sutton,London Borough of Sutton,23/08/2020,40450535,616.00 ,Elite CarePlus Ltd,26199,Peoples Services Directorate,Home Care,G334
http://opendatacommunities.org/id/london-borough-council/sutton,London Borough of Sutton,23/08/2020,40450571,480.00 ,Elite CarePlus Ltd,26199,Peoples Services Directorate,Home Care,G334
http://opendatacommunities.org/id/london-borough-council/sutton,London Borough of Sutton,23/08/2020,40450602,504.00 ,Elite CarePlus Ltd,26199,Peoples Services Directorate,Home Care,G334
http://opendatacommunities.org/id/london-borough-council/sutton,London Borough of Sutton,23/08/2020,40450604,448.00 ,Elite CarePlus Ltd,26199,Peoples Services Directorate,Home Care,G334
http://opendatacommunities.org/id/london-borough-council/sutton,London Borough of Sutton,03/07/2020,6973864,937.10 ,Ellen Atkinson Limited,35351,Peoples Services Directorate,Other Services,F340
http://opendatacommunities.org/id/london-borough-council/sutton,London Borough of Sutton,07/08/2020,40444361,"7,390.52 ",Elysium Supported Living Limited,34957,Peoples Services Directorate,Residential Care - Ext Provider,G310
http://opendatacommunities.org/id/london-borough-council/sutton,London Borough of Sutton,01/08/2020,6975479,"3,900.00 ",Emerging Field Ltd,35401,"Environment, Housing & Regeneration Directorate",Other Services,F340
http://opendatacommunities.org/id/london-borough-council/sutton,London Borough of Sutton,28/07/2020,6975246,"145,000.00 ",Encompass,29087,"Environment, Housing & Regeneration Directorate",Provider Contract Payments,F470
http://opendatacommunities.org/id/london-borough-council/sutton,London Borough of Sutton,04/08/2020,6975803,"11,853.80 ",Enviva Paediatric Care/formerlyPNL Nursing Link Ltd (Pnl),28212,Peoples Services Directorate,One to One Care,G335
http://opendatacommunities.org/id/london-borough-council/sutton,London Borough of Sutton,04/08/2020,40445949,"1,220.10 ",Enviva Paediatric Care/formerlyPNL Nursing Link Ltd (Pnl),28212,Peoples Services Directorate,Provider Contract Payments,F470
http://opendatacommunities.org/id/london-borough-council/sutton,London Borough of Sutton,04/08/2020,40445950,458.92 ,Enviva Paediatric Care/formerlyPNL Nursing Link Ltd (Pnl),28212,Peoples Services Directorate,Provider Contract Payments,F470
http://opendatacommunities.org/id/london-borough-council/sutton,London Borough of Sutton,04/08/2020,40445951,792.60 ,Enviva Paediatric Care/formerlyPNL Nursing Link Ltd (Pnl),28212,Peoples Services Directorate,Provider Contract Payments,F470
http://opendatacommunities.org/id/london-borough-council/sutton,London Borough of Sutton,04/08/2020,40445952,"24,317.41 ",Enviva Paediatric Care/formerlyPNL Nursing Link Ltd (Pnl),28212,Peoples Services Directorate,Provider Contract Payments,F470
http://opendatacommunities.org/id/london-borough-council/sutton,London Borough of Sutton,31/07/2020,1296223,"19,743.57 ",Eothen Homes Ltd,11539,Peoples Services Directorate,Contract Cleaning,D806
http://opendatacommunities.org/id/london-borough-council/sutton,London Borough of Sutton,06/08/2020,1296355,"4,085.17 ",Eothen Homes Ltd,11539,Peoples Services Directorate,Contract Cleaning,D806
http://opendatacommunities.org/id/london-borough-council/sutton,London Borough of Sutton,07/08/2020,40444366,"2,600.00 ",Eothen Homes Ltd,11539,Peoples Services Directorate,Residential Care - Ext Provider,G310
http://opendatacommunities.org/id/london-borough-council/sutton,London Borough of Sutton,07/08/2020,40444421,"2,600.00 ",Eothen Homes Ltd,11539,Peoples Services Directorate,Residential Care - Ext Provider,G310
http://opendatacommunities.org/id/london-borough-council/sutton,London Borough of Sutton,07/08/2020,40444481,"2,600.00 ",Eothen Homes Ltd,11539,Peoples Services Directorate,Residential Care - Ext Provider,G310
http://opendatacommunities.org/id/london-borough-council/sutton,London Borough of Sutton,07/08/2020,40444482,"2,600.00 ",Eothen Homes Ltd,11539,Peoples Services Directorate,Residential Care - Ext Provider,G310
http://opendatacommunities.org/id/london-borough-council/sutton,London Borough of Sutton,07/08/2020,40444575,"2,692.86 ",Eothen Homes Ltd,11539,Peoples Services Directorate,Residential Care - Ext Provider,G310
http://opendatacommunities.org/id/london-borough-council/sutton,London Borough of Sutton,09/07/2020,6974981,"78,212.89 ",Epsom & St Helier Nhs Trust,11542,Chief Executive's Directorate,Provider Contract Payments,F470
http://opendatacommunities.org/id/london-borough-council/sutton,London Borough of Sutton,30/06/2020,6975525,"2,952.25 ",Epsom & St Helier Nhs Trust,11542,Peoples Services Directorate,Fees - Other,F299
http://opendatacommunities.org/id/london-borough-council/sutton,London Borough of Sutton,04/08/2020,6975847,"7,841.63 ",Epsom & St Helier Nhs Trust,11542,Chief Executive's Directorate,Provider Contract Payments,F470
http://opendatacommunities.org/id/london-borough-council/sutton,London Borough of Sutton,07/08/2020,6976383,"88,672.00 ",Epsom & St Helier Nhs Trust,11542,Chief Executive's Directorate,Provider Contract Payments,F470
http://opendatacommunities.org/id/london-borough-council/sutton,London Borough of Sutton,12/08/2020,6976389,"3,670.20 ",Epsom & St Helier Nhs Trust,11542,Peoples Services Directorate,Fees - Other,F299
